Body Name,Body,Date,Department,Beneficiary,Summary of Purpose (SeRCOP),Amount,Merchant Code,Transaction Number,Supplier ID
Sandwell Metropolitan Borough Council,http://www.sandwell.gov.uk/info/200202/performance_and_spending/1079/payments_over_500,01/08/2022,Adults Social Care Capital,AXIS EUROPE PLC                                                          ,Adults Social Care Capital,6570.66 ,Deferred Charges/Grant Payments,2223P05_CR00001,64946
Sandwell Metropolitan Borough Council,http://www.sandwell.gov.uk/info/200202/performance_and_spending/1079/payments_over_500,01/08/2022,Adults Social Care Capital,AXIS EUROPE PLC                                                          ,Adults Social Care Capital,7034.82 ,Deferred Charges/Grant Payments,2223P05_CR00002,64946
Sandwell Metropolitan Borough Council,http://www.sandwell.gov.uk/info/200202/performance_and_spending/1079/payments_over_500,01/08/2022,Adults Social Care Capital,AXIS EUROPE PLC                                                          ,Adults Social Care Capital,7135.05 ,Deferred Charges/Grant Payments,2223P05_CR00003,64946
Sandwell Metropolitan Borough Council,http://www.sandwell.gov.uk/info/200202/performance_and_spending/1079/payments_over_500,01/08/2022,Adults Social Care Capital,AXIS EUROPE PLC                                                          ,Adults Social Care Capital,8220.70 ,Deferred Charges/Grant Payments,2223P05_CR00004,64946
Sandwell Metropolitan Borough Council,http://www.sandwell.gov.uk/info/200202/performance_and_spending/1079/payments_over_500,01/08/2022,Adults Social Care Capital,AXIS EUROPE PLC                                                          ,Adults Social Care Capital,12433.15 ,Deferred Charges/Grant Payments,2223P05_CR00005,64946
Sandwell Metropolitan Borough Council,http://www.sandwell.gov.uk/info/200202/performance_and_spending/1079/payments_over_500,15/08/2022,Adults Social Care Capital,CDW LIMITED,Adults Social Care Capital,2821.65 ,ICT ,2223P05_CR00006,140946
Sandwell Metropolitan Borough Council,http://www.sandwell.gov.uk/info/200202/performance_and_spending/1079/payments_over_500,10/08/2022,Adults Social Care Capital,CDW LIMITED,Adults Social Care Capital,3441.50 ,ICT ,2223P05_CR00007,140946
Sandwell Metropolitan Borough Council,http://www.sandwell.gov.uk/info/200202/performance_and_spending/1079/payments_over_500,01/08/2022,Adults Social Care Capital,D P DESIGN PARTNERSHIP,Adults Social Care Capital,2475.00 ,"CIP - New Construction,Conversion, Enhancement & Reno",2223P05_CR00008,145811
Sandwell Metropolitan Borough Council,http://www.sandwell.gov.uk/info/200202/performance_and_spending/1079/payments_over_500,01/08/2022,Adults Social Care Capital,DLM BUILDING & MAINTENANCE LTD,Adults Social Care Capital,5833.39 ,Deferred Charges/Grant Payments,2223P05_CR00009,137596
Sandwell Metropolitan Borough Council,http://www.sandwell.gov.uk/info/200202/performance_and_spending/1079/payments_over_500,18/08/2022,Adults Social Care Capital,DOLPHIN LIFTS MIDLANDS LTD,Adults Social Care Capital,1189.60 ,Deferred Charges/Grant Payments,2223P05_CR00010,123852
Sandwell Metropolitan Borough Council,http://www.sandwell.gov.uk/info/200202/performance_and_spending/1079/payments_over_500,01/08/2022,Adults Social Care Capital,DOLPHIN LIFTS MIDLANDS LTD,Adults Social Care Capital,1461.66 ,Deferred Charges/Grant Payments,2223P05_CR00011,123852
Sandwell Metropolitan Borough Council,http://www.sandwell.gov.uk/info/200202/performance_and_spending/1079/payments_over_500,01/08/2022,Adults Social Care Capital,DOLPHIN LIFTS MIDLANDS LTD,Adults Social Care Capital,1491.60 ,Deferred Charges/Grant Payments,2223P05_CR00012,123852
Sandwell Metropolitan Borough Council,http://www.sandwell.gov.uk/info/200202/performance_and_spending/1079/payments_over_500,18/08/2022,Adults Social Care Capital,DOLPHIN LIFTS MIDLANDS LTD,Adults Social Care Capital,1685.00 ,Deferred Charges/Grant Payments,2223P05_CR00013,123852
Sandwell Metropolitan Borough Council,http://www.sandwell.gov.uk/info/200202/performance_and_spending/1079/payments_over_500,01/08/2022,Adults Social Care Capital,DOLPHIN LIFTS MIDLANDS LTD,Adults Social Care Capital,3314.40 ,Deferred Charges/Grant Payments,2223P05_CR00014,123852
Sandwell Metropolitan Borough Council,http://www.sandwell.gov.uk/info/200202/performance_and_spending/1079/payments_over_500,02/08/2022,Adults Social Care Capital,DOLPHIN LIFTS MIDLANDS LTD,Adults Social Care Capital,5840.00 ,Deferred Charges/Grant Payments,2223P05_CR00015,123852
Sandwell Metropolitan Borough Council,http://www.sandwell.gov.uk/info/200202/performance_and_spending/1079/payments_over_500,01/08/2022,Adults Social Care Capital,DOLPHIN LIFTS MIDLANDS LTD,Adults Social Care Capital,5963.00 ,Deferred Charges/Grant Payments,2223P05_CR00016,123852
Sandwell Metropolitan Borough Council,http://www.sandwell.gov.uk/info/200202/performance_and_spending/1079/payments_over_500,01/08/2022,Adults Social Care Capital,DOLPHIN LIFTS MIDLANDS LTD,Adults Social Care Capital,7308.33 ,Deferred Charges/Grant Payments,2223P05_CR00017,123852
Sandwell Metropolitan Borough Council,http://www.sandwell.gov.uk/info/200202/performance_and_spending/1079/payments_over_500,11/08/2022,Adults Social Care Capital,ECOS OFFICE FURNITURE,Adults Social Care Capital,2120.00 ,"CIP - New Construction,Conversion, Enhancement & Reno",2223P05_CR00018,163805
Sandwell Metropolitan Borough Council,http://www.sandwell.gov.uk/info/200202/performance_and_spending/1079/payments_over_500,10/08/2022,Adults Social Care Capital,HILL INTERIOR CONTRACTS LTD,Adults Social Care Capital,37367.49 ,"CIP - New Construction,Conversion, Enhancement & Reno",2223P05_CR00019,17158
Sandwell Metropolitan Borough Council,http://www.sandwell.gov.uk/info/200202/performance_and_spending/1079/payments_over_500,01/08/2022,Adults Social Care Capital,LIFT & ENGINEERING SERVICES LTD,Adults Social Care Capital,1226.57 ,CIP - Fixtures & Fittings,2223P05_CR00020,77003962
Sandwell Metropolitan Borough Council,http://www.sandwell.gov.uk/info/200202/performance_and_spending/1079/payments_over_500,01/08/2022,Adults Social Care Capital,LIQUIDLOGIC LIMITED,Adults Social Care Capital,48272.40 ,ICT ,2223P05_CR00021,83167
Sandwell Metropolitan Borough Council,http://www.sandwell.gov.uk/info/200202/performance_and_spending/1079/payments_over_500,02/08/2022,Adults Social Care Capital,MEDISAVE UK LTD,Adults Social Care Capital,2849.97 ,CIP - Fixtures & Fittings,2223P05_CR00022,68812
Sandwell Metropolitan Borough Council,http://www.sandwell.gov.uk/info/200202/performance_and_spending/1079/payments_over_500,01/08/2022,Adults Social Care Capital,PR PROPERTY MAINTENANCE,Adults Social Care Capital,7870.58 ,Deferred Charges/Grant Payments,2223P05_CR00023,33836
Sandwell Metropolitan Borough Council,http://www.sandwell.gov.uk/info/200202/performance_and_spending/1079/payments_over_500,01/08/2022,Adults Social Care Capital,PR PROPERTY MAINTENANCE,Adults Social Care Capital,8323.83 ,Deferred Charges/Grant Payments,2223P05_CR00024,33836
Sandwell Metropolitan Borough Council,http://www.sandwell.gov.uk/info/200202/performance_and_spending/1079/payments_over_500,01/08/2022,Adults Social Care Capital,PR PROPERTY MAINTENANCE,Adults Social Care Capital,9037.51 ,Deferred Charges/Grant Payments,2223P05_CR00025,33836
Sandwell Metropolitan Borough Council,http://www.sandwell.gov.uk/info/200202/performance_and_spending/1079/payments_over_500,01/08/2022,Adults Social Care Capital,PR PROPERTY MAINTENANCE,Adults Social Care Capital,15964.13 ,Deferred Charges/Grant Payments,2223P05_CR00026,33836
Sandwell Metropolitan Borough Council,http://www.sandwell.gov.uk/info/200202/performance_and_spending/1079/payments_over_500,01/08/2022,Adults Social Care Capital,RIDGE & PARTNERS LLP,Adults Social Care Capital,3800.00 ,"CIP - New Construction,Conversion, Enhancement & Reno",2223P05_CR00027,134994
Sandwell Metropolitan Borough Council,http://www.sandwell.gov.uk/info/200202/performance_and_spending/1079/payments_over_500,08/08/2022,Adults Social Care Capital,SEDDON CONSTRUCTION LIMITED,Adults Social Care Capital,211423.04 ,"CIP - New Construction,Conversion, Enhancement & Reno",2223P05_CR00028,132999
Sandwell Metropolitan Borough Council,http://www.sandwell.gov.uk/info/200202/performance_and_spending/1079/payments_over_500,01/08/2022,Adults Social Care Capital,TUNSTALL HEALTHCARE (UK) LIMITED,Adults Social Care Capital,7260.00 ,CIP - Fixtures & Fittings,2223P05_CR00029,77002038
Sandwell Metropolitan Borough Council,http://www.sandwell.gov.uk/info/200202/performance_and_spending/1079/payments_over_500,02/08/2022,Adults Social Care Capital,VINCI CONSTRUCTION LTD,Adults Social Care Capital,3827.76 ,Deferred Charges/Grant Payments,2223P05_CR00030,36361
Sandwell Metropolitan Borough Council,http://www.sandwell.gov.uk/info/200202/performance_and_spending/1079/payments_over_500,02/08/2022,Adults Social Care Capital,VINCI CONSTRUCTION LTD,Adults Social Care Capital,4898.66 ,Deferred Charges/Grant Payments,2223P05_CR00031,36361
Sandwell Metropolitan Borough Council,http://www.sandwell.gov.uk/info/200202/performance_and_spending/1079/payments_over_500,01/08/2022,Adults Social Care Capital,VINCI CONSTRUCTION LTD,Adults Social Care Capital,5261.66 ,Deferred Charges/Grant Payments,2223P05_CR00032,36361
Sandwell Metropolitan Borough Council,http://www.sandwell.gov.uk/info/200202/performance_and_spending/1079/payments_over_500,08/08/2022,Adults Social Care Capital,WILLMOTT DIXON CONSTRUCTION LIMITED,Adults Social Care Capital,390638.66 ,"CIP - New Construction,Conversion, Enhancement & Reno",2223P05_CR00033,34081
Sandwell Metropolitan Borough Council,http://www.sandwell.gov.uk/info/200202/performance_and_spending/1079/payments_over_500,01/08/2022,Adults Social Care Capital,ARGO UK LTD,Adults Social Care Capital,14830.04 ,Deferred Charges/Grant Payments,2223P05_CR00034,150962
Sandwell Metropolitan Borough Council,http://www.sandwell.gov.uk/info/200202/performance_and_spending/1079/payments_over_500,01/08/2022,Adults Social Care Capital,DESIGN SYNTAX LIMITED,Adults Social Care Capital,19109.50 ,Deferred Charges/Grant Payments,2223P05_CR00035,106226
Sandwell Metropolitan Borough Council,http://www.sandwell.gov.uk/info/200202/performance_and_spending/1079/payments_over_500,08/08/2022,Adults Social Care Capital,HOME DESIGN,Adults Social Care Capital,3865.00 ,Deferred Charges/Grant Payments,2223P05_CR00036,141847
Sandwell Metropolitan Borough Council,http://www.sandwell.gov.uk/info/200202/performance_and_spending/1079/payments_over_500,01/08/2022,Adults Social Care Capital,HOME DESIGN,Adults Social Care Capital,28225.00 ,Deferred Charges/Grant Payments,2223P05_CR00037,141847
Sandwell Metropolitan Borough Council,http://www.sandwell.gov.uk/info/200202/performance_and_spending/1079/payments_over_500,01/08/2022,Adults Social Care Capital,TDF DESIGN LIMITED,Adults Social Care Capital,11099.45 ,Deferred Charges/Grant Payments,2223P05_CR00038,10320
Sandwell Metropolitan Borough Council,http://www.sandwell.gov.uk/info/200202/performance_and_spending/1079/payments_over_500,01/08/2022,Adults Social Care Capital,TDF DESIGN LIMITED,Adults Social Care Capital,17912.03 ,Deferred Charges/Grant Payments,2223P05_CR00039,10320
Sandwell Metropolitan Borough Council,http://www.sandwell.gov.uk/info/200202/performance_and_spending/1079/payments_over_500,17/08/2022,Adults Social Care Capital,TDF DESIGN LIMITED,Adults Social Care Capital,18000.00 ,Deferred Charges/Grant Payments,2223P05_CR00040,10320
Sandwell Metropolitan Borough Council,http://www.sandwell.gov.uk/info/200202/performance_and_spending/1079/payments_over_500,10/08/2022,Adults Social Care Capital,REDACTED PERSONAL DATA,Adults Social Care Capital,3027.73 ,Deferred Charges/Grant Payments,2223P05_CR00041,REDACTED PERSONAL DATA
Sandwell Metropolitan Borough Council,http://www.sandwell.gov.uk/info/200202/performance_and_spending/1079/payments_over_500,01/08/2022,Childrens Services,4 COMMUNITY TRUST CIC,Childrens Services,716.39 ,Externally Purchased Professional Services ,2223P05_CR00042,137880
Sandwell Metropolitan Borough Council,http://www.sandwell.gov.uk/info/200202/performance_and_spending/1079/payments_over_500,01/08/2022,Childrens Services,4 COMMUNITY TRUST CIC,Childrens Services,749.92 ,Externally Purchased Professional Services ,2223P05_CR00043,137880
Sandwell Metropolitan Borough Council,http://www.sandwell.gov.uk/info/200202/performance_and_spending/1079/payments_over_500,01/08/2022,Childrens Services,4 COMMUNITY TRUST CIC,Childrens Services,1085.21 ,Externally Purchased Professional Services ,2223P05_CR00044,137880
Sandwell Metropolitan Borough Council,http://www.sandwell.gov.uk/info/200202/performance_and_spending/1079/payments_over_500,01/08/2022,Childrens Services,ACCESS UK LTD.,Childrens Services,10000.00 ,Externally Purchased Professional Services ,2223P05_CR00045,136561
Sandwell Metropolitan Borough Council,http://www.sandwell.gov.uk/info/200202/performance_and_spending/1079/payments_over_500,01/08/2022,Childrens Services,ACTION FOR CHILDREN SERVICES LIMITED,Childrens Services,28100.26 ,Externally Purchased Professional Services ,2223P05_CR00046,111189
Sandwell Metropolitan Borough Council,http://www.sandwell.gov.uk/info/200202/performance_and_spending/1079/payments_over_500,09/08/2022,Childrens Services,APD PRINT & DESIGN,Childrens Services,950.00 ,Advertising & Publicity,2223P05_CR00047,49454
Sandwell Metropolitan Borough Council,http://www.sandwell.gov.uk/info/200202/performance_and_spending/1079/payments_over_500,01/08/2022,Childrens Services,APD PRINT & DESIGN,Childrens Services,980.00 ,Advertising & Publicity,2223P05_CR00048,49454
Sandwell Metropolitan Borough Council,http://www.sandwell.gov.uk/info/200202/performance_and_spending/1079/payments_over_500,09/08/2022,Childrens Services,APD PRINT & DESIGN,Childrens Services,1150.00 ,Advertising & Publicity,2223P05_CR00049,49454
Sandwell Metropolitan Borough Council,http://www.sandwell.gov.uk/info/200202/performance_and_spending/1079/payments_over_500,01/08/2022,Childrens Services,APD PRINT & DESIGN,Childrens Services,515.00 ,"Printing, Stationery & General Office Expenses",2223P05_CR00050,49454
Sandwell Metropolitan Borough Council,http://www.sandwell.gov.uk/info/200202/performance_and_spending/1079/payments_over_500,08/08/2022,Childrens Services,ASSOCIATION OF ADULT EDUCATION AND TRAINING ORGANISATIONS,Childrens Services,820.00 ,Subscriptions,2223P05_CR00051,3837
Sandwell Metropolitan Borough Council,http://www.sandwell.gov.uk/info/200202/performance_and_spending/1079/payments_over_500,10/08/2022,Childrens Services,AUTIN DANCE THEATRE C.I.C.,Childrens Services,3999.00 ,Externally Purchased Professional Services ,2223P05_CR00052,162793
Sandwell Metropolitan Borough Council,http://www.sandwell.gov.uk/info/200202/performance_and_spending/1079/payments_over_500,01/08/2022,Childrens Services,AUTISM WEST MIDLANDS                            ,Childrens Services,9215.50 ,Grant Payments,2223P05_CR00053,65002404
Sandwell Metropolitan Borough Council,http://www.sandwell.gov.uk/info/200202/performance_and_spending/1079/payments_over_500,01/08/2022,Childrens Services,AUTISM WEST MIDLANDS                          ,Childrens Services,9215.50 ,Grant Payments,2223P05_CR00054,65002404
Sandwell Metropolitan Borough Council,http://www.sandwell.gov.uk/info/200202/performance_and_spending/1079/payments_over_500,01/08/2022,Childrens Services,BAKER ROSS LIMITED,Childrens Services,519.59 ,"Printing, Stationery & General Office Expenses",2223P05_CR00055,01269861
Sandwell Metropolitan Borough Council,http://www.sandwell.gov.uk/info/200202/performance_and_spending/1079/payments_over_500,01/08/2022,Childrens Services,BLAKEMORE FOOD SERVICE LTD,Childrens Services,580.52 ,Catering Provisions,2223P05_CR00056,2518
Sandwell Metropolitan Borough Council,http://www.sandwell.gov.uk/info/200202/performance_and_spending/1079/payments_over_500,01/08/2022,Childrens Services,BRIDGE CONSTRUCTION LTD,Childrens Services,746.52 ,Externally Purchased Professional Services ,2223P05_CR00057,127570
Sandwell Metropolitan Borough Council,http://www.sandwell.gov.uk/info/200202/performance_and_spending/1079/payments_over_500,01/08/2022,Childrens Services,BUBBLETACTICS,Childrens Services,700.00 ,Equipment & Furniture ,2223P05_CR00058,118212
Sandwell Metropolitan Borough Council,http://www.sandwell.gov.uk/info/200202/performance_and_spending/1079/payments_over_500,11/08/2022,Childrens Services,BUBBLETACTICS,Childrens Services,700.00 ,Equipment & Furniture ,2223P05_CR00059,118212
Sandwell Metropolitan Borough Council,http://www.sandwell.gov.uk/info/200202/performance_and_spending/1079/payments_over_500,03/08/2022,Childrens Services,BUFFET EXPRESS,Childrens Services,704.00 ,Catering Provisions,2223P05_CR00060,01730518
Sandwell Metropolitan Borough Council,http://www.sandwell.gov.uk/info/200202/performance_and_spending/1079/payments_over_500,02/08/2022,Childrens Services,BUFFET EXPRESS,Childrens Services,772.00 ,Catering Provisions,2223P05_CR00061,01730518
Sandwell Metropolitan Borough Council,http://www.sandwell.gov.uk/info/200202/performance_and_spending/1079/payments_over_500,22/08/2022,Childrens Services,CANAL & RIVER TRUST,Childrens Services,864.00 ,Licences,2223P05_CR00062,01631306
Sandwell Metropolitan Borough Council,http://www.sandwell.gov.uk/info/200202/performance_and_spending/1079/payments_over_500,01/08/2022,Childrens Services,CITRON HYGIENE UK LTD,Childrens Services,769.08 ,Hygiene Services,2223P05_CR00063,140849
Sandwell Metropolitan Borough Council,http://www.sandwell.gov.uk/info/200202/performance_and_spending/1079/payments_over_500,03/08/2022,Childrens Services,CLASSIC CARS 1997,Childrens Services,53524.50 ,Public Transport,2223P05_CR00064,06005093
Sandwell Metropolitan Borough Council,http://www.sandwell.gov.uk/info/200202/performance_and_spending/1079/payments_over_500,09/08/2022,Childrens Services,COGNISOFT LTD,Childrens Services,16843.43 ,ICT ,2223P05_CR00065,134201
Sandwell Metropolitan Borough Council,http://www.sandwell.gov.uk/info/200202/performance_and_spending/1079/payments_over_500,15/08/2022,Childrens Services,COMMUNITY SKILLS AND KNOWLEDGE NETWORK CIC,Childrens Services,5800.00 ,Grant Payments,2223P05_CR00066,133735
Sandwell Metropolitan Borough Council,http://www.sandwell.gov.uk/info/200202/performance_and_spending/1079/payments_over_500,05/08/2022,Childrens Services,CORONA ENERGY RETAIL 2 LIMITED,Childrens Services,831.52 ,Gas,2223P05_CR00067,118395
Sandwell Metropolitan Borough Council,http://www.sandwell.gov.uk/info/200202/performance_and_spending/1079/payments_over_500,17/08/2022,Childrens Services,CREATION SKATEPARK LTD,Childrens Services,1760.00 ,Equipment & Furniture ,2223P05_CR00068,82383
Sandwell Metropolitan Borough Council,http://www.sandwell.gov.uk/info/200202/performance_and_spending/1079/payments_over_500,17/08/2022,Childrens Services,CREATION SKATEPARK LTD,Childrens Services,1760.00 ,Equipment & Furniture ,2223P05_CR00069,82383
Sandwell Metropolitan Borough Council,http://www.sandwell.gov.uk/info/200202/performance_and_spending/1079/payments_over_500,01/08/2022,Childrens Services,DIGBETH DINING CLUB CIC,Childrens Services,5280.00 ,Catering Provisions,2223P05_CR00070,153646
Sandwell Metropolitan Borough Council,http://www.sandwell.gov.uk/info/200202/performance_and_spending/1079/payments_over_500,01/08/2022,Childrens Services,DIGBETH DINING CLUB CIC,Childrens Services,5550.00 ,Catering Provisions,2223P05_CR00071,153646
Sandwell Metropolitan Borough Council,http://www.sandwell.gov.uk/info/200202/performance_and_spending/1079/payments_over_500,01/08/2022,Childrens Services,DR PRINT (UK) LTD,Childrens Services,1155.00 ,Advertising & Publicity,2223P05_CR00072,63228
Sandwell Metropolitan Borough Council,http://www.sandwell.gov.uk/info/200202/performance_and_spending/1079/payments_over_500,03/08/2022,Childrens Services,DROACH TRAVEL LTD,Childrens Services,21293.70 ,Public Transport,2223P05_CR00073,06002707
Sandwell Metropolitan Borough Council,http://www.sandwell.gov.uk/info/200202/performance_and_spending/1079/payments_over_500,12/08/2022,Childrens Services,DRYWALL STEEL SECTIONS LTD,Childrens Services,1085.21 ,Externally Purchased Professional Services ,2223P05_CR00074,132994
Sandwell Metropolitan Borough Council,http://www.sandwell.gov.uk/info/200202/performance_and_spending/1079/payments_over_500,01/08/2022,Childrens Services,EATON VALLEY PRIMARY SCHOOL  ,Childrens Services,716.36 ,Externally Purchased Professional Services ,2223P05_CR00075,88755
Sandwell Metropolitan Borough Council,http://www.sandwell.gov.uk/info/200202/performance_and_spending/1079/payments_over_500,01/08/2022,Childrens Services,EATON VALLEY PRIMARY SCHOOL  ,Childrens Services,746.52 ,Externally Purchased Professional Services ,2223P05_CR00076,88755
Sandwell Metropolitan Borough Council,http://www.sandwell.gov.uk/info/200202/performance_and_spending/1079/payments_over_500,01/08/2022,Childrens Services,EATON VALLEY PRIMARY SCHOOL  ,Childrens Services,746.52 ,Externally Purchased Professional Services ,2223P05_CR00077,88755
Sandwell Metropolitan Borough Council,http://www.sandwell.gov.uk/info/200202/performance_and_spending/1079/payments_over_500,01/08/2022,Childrens Services,EATON VALLEY PRIMARY SCHOOL  ,Childrens Services,746.52 ,Externally Purchased Professional Services ,2223P05_CR00078,88755
Sandwell Metropolitan Borough Council,http://www.sandwell.gov.uk/info/200202/performance_and_spending/1079/payments_over_500,01/08/2022,Childrens Services,EATON VALLEY PRIMARY SCHOOL  ,Childrens Services,1085.21 ,Externally Purchased Professional Services ,2223P05_CR00079,88755
Sandwell Metropolitan Borough Council,http://www.sandwell.gov.uk/info/200202/performance_and_spending/1079/payments_over_500,01/08/2022,Childrens Services,EATON VALLEY PRIMARY SCHOOL  ,Childrens Services,1085.21 ,Externally Purchased Professional Services ,2223P05_CR00080,88755
Sandwell Metropolitan Borough Council,http://www.sandwell.gov.uk/info/200202/performance_and_spending/1079/payments_over_500,01/08/2022,Childrens Services,EON NEXT ENERGY LTD,Childrens Services,585.59 ,Electricity,2223P05_CR00081,149566
Sandwell Metropolitan Borough Council,http://www.sandwell.gov.uk/info/200202/performance_and_spending/1079/payments_over_500,01/08/2022,Childrens Services,EVERY CHILD NEEDS A MENTOR LIMITED,Childrens Services,5000.00 ,Externally Purchased Professional Services ,2223P05_CR00082,132828
Sandwell Metropolitan Borough Council,http://www.sandwell.gov.uk/info/200202/performance_and_spending/1079/payments_over_500,01/08/2022,Childrens Services,EVERY CHILD NEEDS A MENTOR LIMITED,Childrens Services,5000.00 ,Externally Purchased Professional Services ,2223P05_CR00083,132828
Sandwell Metropolitan Borough Council,http://www.sandwell.gov.uk/info/200202/performance_and_spending/1079/payments_over_500,01/08/2022,Childrens Services,GTG TRAINING LTD,Childrens Services,1833.92 ,Externally Purchased Professional Services ,2223P05_CR00084,148595
Sandwell Metropolitan Borough Council,http://www.sandwell.gov.uk/info/200202/performance_and_spending/1079/payments_over_500,01/08/2022,Childrens Services,GTG TRAINING LTD,Childrens Services,1879.75 ,Externally Purchased Professional Services ,2223P05_CR00085,148595
Sandwell Metropolitan Borough Council,http://www.sandwell.gov.uk/info/200202/performance_and_spending/1079/payments_over_500,01/08/2022,Childrens Services,HEART & SOUL COMMUNITY CIC LTD,Childrens Services,1048.24 ,Externally Purchased Professional Services ,2223P05_CR00086,133378
Sandwell Metropolitan Borough Council,http://www.sandwell.gov.uk/info/200202/performance_and_spending/1079/payments_over_500,01/08/2022,Childrens Services,HEART & SOUL COMMUNITY CIC LTD,Childrens Services,1048.24 ,Externally Purchased Professional Services ,2223P05_CR00087,133378
Sandwell Metropolitan Borough Council,http://www.sandwell.gov.uk/info/200202/performance_and_spending/1079/payments_over_500,01/08/2022,Childrens Services,HEART & SOUL COMMUNITY CIC LTD,Childrens Services,1048.24 ,Externally Purchased Professional Services ,2223P05_CR00088,133378
Sandwell Metropolitan Borough Council,http://www.sandwell.gov.uk/info/200202/performance_and_spending/1079/payments_over_500,01/08/2022,Childrens Services,HEARTLANDS BUSINESS GIFTS LTD,Childrens Services,2885.28 ,Advertising & Publicity,2223P05_CR00089,11316
Sandwell Metropolitan Borough Council,http://www.sandwell.gov.uk/info/200202/performance_and_spending/1079/payments_over_500,01/08/2022,Childrens Services,IDEAL FOR ALL LIMITED,Childrens Services,6904.00 ,Grant Payments,2223P05_CR00090,01678484
Sandwell Metropolitan Borough Council,http://www.sandwell.gov.uk/info/200202/performance_and_spending/1079/payments_over_500,01/08/2022,Childrens Services,INGESTRE ORANGERY AND GARDENS,Childrens Services,650.00 ,Materials & Consumables,2223P05_CR00091,127331
Sandwell Metropolitan Borough Council,http://www.sandwell.gov.uk/info/200202/performance_and_spending/1079/payments_over_500,01/08/2022,Childrens Services,IRON MAIDENS COMMERCIAL LAUNDRY LIMITED,Childrens Services,1406.82 ,Laundry,2223P05_CR00092,124628
Sandwell Metropolitan Borough Council,http://www.sandwell.gov.uk/info/200202/performance_and_spending/1079/payments_over_500,03/08/2022,Childrens Services,JPC TRAVEL SOLUTION,Childrens Services,57490.94 ,Public Transport,2223P05_CR00093,138533
Sandwell Metropolitan Borough Council,http://www.sandwell.gov.uk/info/200202/performance_and_spending/1079/payments_over_500,08/08/2022,Childrens Services,JUST STRAIGHT TALK,Childrens Services,1969.48 ,Grants,2223P05_CR00094,163039
Sandwell Metropolitan Borough Council,http://www.sandwell.gov.uk/info/200202/performance_and_spending/1079/payments_over_500,01/08/2022,Childrens Services,LE SSC LTD ( SPORTSCOOL WALSALL),Childrens Services,18716.00 ,Grant Payments,2223P05_CR00095,163731
Sandwell Metropolitan Borough Council,http://www.sandwell.gov.uk/info/200202/performance_and_spending/1079/payments_over_500,01/08/2022,Childrens Services,LEARNING INTO EMPLOYMENT ACADEMY LTD,Childrens Services,768.39 ,Externally Purchased Professional Services ,2223P05_CR00096,147427
Sandwell Metropolitan Borough Council,http://www.sandwell.gov.uk/info/200202/performance_and_spending/1079/payments_over_500,01/08/2022,Childrens Services,LEARNING INTO EMPLOYMENT ACADEMY LTD,Childrens Services,983.09 ,Externally Purchased Professional Services ,2223P05_CR00097,147427
Sandwell Metropolitan Borough Council,http://www.sandwell.gov.uk/info/200202/performance_and_spending/1079/payments_over_500,01/08/2022,Childrens Services,LIONCOURT HOMES LIMITED,Childrens Services,716.39 ,Externally Purchased Professional Services ,2223P05_CR00098,133372
Sandwell Metropolitan Borough Council,http://www.sandwell.gov.uk/info/200202/performance_and_spending/1079/payments_over_500,01/08/2022,Childrens Services,LIONCOURT HOMES LIMITED,Childrens Services,1010.75 ,Externally Purchased Professional Services ,2223P05_CR00099,133372
Sandwell Metropolitan Borough Council,http://www.sandwell.gov.uk/info/200202/performance_and_spending/1079/payments_over_500,01/08/2022,Childrens Services,LOCAL EDUCATION AND DEVELOPMENT,Childrens Services,2691.00 ,Discretionary Awards,2223P05_CR00100,148259
Sandwell Metropolitan Borough Council,http://www.sandwell.gov.uk/info/200202/performance_and_spending/1079/payments_over_500,01/08/2022,Childrens Services,MAJOR COACHWAYS LIMITED,Childrens Services,900.00 ,Equipment & Furniture ,2223P05_CR00101,06003722
Sandwell Metropolitan Borough Council,http://www.sandwell.gov.uk/info/200202/performance_and_spending/1079/payments_over_500,01/08/2022,Childrens Services,MALE FAMILY GROUP T/A WARRENS HALL FARM RIDING STABLES,Childrens Services,1428.00 ,Equipment & Furniture ,2223P05_CR00102,87755
Sandwell Metropolitan Borough Council,http://www.sandwell.gov.uk/info/200202/performance_and_spending/1079/payments_over_500,05/08/2022,Childrens Services,MALLINA GROUP,Childrens Services,990.00 ,Advertising & Publicity,2223P05_CR00103,117298
Sandwell Metropolitan Borough Council,http://www.sandwell.gov.uk/info/200202/performance_and_spending/1079/payments_over_500,19/08/2022,Childrens Services,MERCURIAL DANCE LTD,Childrens Services,2500.00 ,Externally Purchased Professional Services ,2223P05_CR00104,159482
Sandwell Metropolitan Borough Council,http://www.sandwell.gov.uk/info/200202/performance_and_spending/1079/payments_over_500,01/08/2022,Childrens Services,MERLIN CATERING & REFRIGERATION LTD,Childrens Services,977.77 ,Equipment & Furniture ,2223P05_CR00105,151839
Sandwell Metropolitan Borough Council,http://www.sandwell.gov.uk/info/200202/performance_and_spending/1079/payments_over_500,01/08/2022,Childrens Services,MURRAY HALL COMMUNITY TRUST,Childrens Services,1127.28 ,Conference Expenses,2223P05_CR00106,01627284
Sandwell Metropolitan Borough Council,http://www.sandwell.gov.uk/info/200202/performance_and_spending/1079/payments_over_500,23/08/2022,Childrens Services,NET BUILDER LIMITED,Childrens Services,900.00 ,Externally Purchased Professional Services ,2223P05_CR00107,139019
Sandwell Metropolitan Borough Council,http://www.sandwell.gov.uk/info/200202/performance_and_spending/1079/payments_over_500,11/08/2022,Childrens Services,NET BUILDER LIMITED,Childrens Services,3132.00 ,ICT ,2223P05_CR00108,139019
Sandwell Metropolitan Borough Council,http://www.sandwell.gov.uk/info/200202/performance_and_spending/1079/payments_over_500,01/08/2022,Childrens Services,NEWAVE LTD,Childrens Services,603.26 ,Agency Staff,2223P05_CR00109,101666
Sandwell Metropolitan Borough Council,http://www.sandwell.gov.uk/info/200202/performance_and_spending/1079/payments_over_500,01/08/2022,Childrens Services,NEWAVE LTD,Childrens Services,625.00 ,Agency Staff,2223P05_CR00110,101666
Sandwell Metropolitan Borough Council,http://www.sandwell.gov.uk/info/200202/performance_and_spending/1079/payments_over_500,01/08/2022,Childrens Services,NEWAVE LTD,Childrens Services,765.26 ,Agency Staff,2223P05_CR00111,101666
Sandwell Metropolitan Borough Council,http://www.sandwell.gov.uk/info/200202/performance_and_spending/1079/payments_over_500,01/08/2022,Childrens Services,NEWAVE LTD,Childrens Services,780.00 ,Agency Staff,2223P05_CR00112,101666
Sandwell Metropolitan Borough Council,http://www.sandwell.gov.uk/info/200202/performance_and_spending/1079/payments_over_500,03/08/2022,Childrens Services,NEWAVE LTD,Childrens Services,810.00 ,Agency Staff,2223P05_CR00113,101666
Sandwell Metropolitan Borough Council,http://www.sandwell.gov.uk/info/200202/performance_and_spending/1079/payments_over_500,01/08/2022,Childrens Services,NEWAVE LTD,Childrens Services,882.52 ,Agency Staff,2223P05_CR00114,101666
Sandwell Metropolitan Borough Council,http://www.sandwell.gov.uk/info/200202/performance_and_spending/1079/payments_over_500,03/08/2022,Childrens Services,NEWAVE LTD,Childrens Services,927.26 ,Agency Staff,2223P05_CR00115,101666
Sandwell Metropolitan Borough Council,http://www.sandwell.gov.uk/info/200202/performance_and_spending/1079/payments_over_500,01/08/2022,Childrens Services,NEWAVE LTD,Childrens Services,3230.80 ,Agency Staff,2223P05_CR00116,101666
Sandwell Metropolitan Borough Council,http://www.sandwell.gov.uk/info/200202/performance_and_spending/1079/payments_over_500,01/08/2022,Childrens Services,NEWAVE LTD,Childrens Services,3269.23 ,Agency Staff,2223P05_CR00117,101666
Sandwell Metropolitan Borough Council,http://www.sandwell.gov.uk/info/200202/performance_and_spending/1079/payments_over_500,01/08/2022,Childrens Services,NEWAVE LTD,Childrens Services,3685.22 ,Agency Staff,2223P05_CR00118,101666
Sandwell Metropolitan Borough Council,http://www.sandwell.gov.uk/info/200202/performance_and_spending/1079/payments_over_500,01/08/2022,Childrens Services,NEWAVE LTD,Childrens Services,4580.48 ,Agency Staff,2223P05_CR00119,101666
Sandwell Metropolitan Borough Council,http://www.sandwell.gov.uk/info/200202/performance_and_spending/1079/payments_over_500,01/08/2022,Childrens Services,POBBLE EDUCATION LTD,Childrens Services,9500.00 ,Subscriptions,2223P05_CR00120,150346
Sandwell Metropolitan Borough Council,http://www.sandwell.gov.uk/info/200202/performance_and_spending/1079/payments_over_500,01/08/2022,Childrens Services,PREMIER PRINT & PROMOTIONS LIMITED,Childrens Services,976.50 ,Advertising & Publicity,2223P05_CR00121,128540
Sandwell Metropolitan Borough Council,http://www.sandwell.gov.uk/info/200202/performance_and_spending/1079/payments_over_500,01/08/2022,Childrens Services,PREMIER PRINT & PROMOTIONS LIMITED,Childrens Services,1090.00 ,Advertising & Publicity,2223P05_CR00122,128540
Sandwell Metropolitan Borough Council,http://www.sandwell.gov.uk/info/200202/performance_and_spending/1079/payments_over_500,01/08/2022,Childrens Services,PREMIER SOCCER COACHING T/A PREMIER EDUCATION,Childrens Services,3360.00 ,Grant Payments,2223P05_CR00123,163599
Sandwell Metropolitan Borough Council,http://www.sandwell.gov.uk/info/200202/performance_and_spending/1079/payments_over_500,01/08/2022,Childrens Services,PROSPECTS SERVICES LIMITED,Childrens Services,4089.92 ,ICT ,2223P05_CR00124,01721288
Sandwell Metropolitan Borough Council,http://www.sandwell.gov.uk/info/200202/performance_and_spending/1079/payments_over_500,01/08/2022,Childrens Services,SANDWELL CHILDREN'S TRUST,Childrens Services,5421071.00 ,Other Establishments,2223P05_CR00125,133302
Sandwell Metropolitan Borough Council,http://www.sandwell.gov.uk/info/200202/performance_and_spending/1079/payments_over_500,17/08/2022,Childrens Services,SANDWELL CONSORTIUM CIC,Childrens Services,2125.00 ,Grants,2223P05_CR00126,104616
Sandwell Metropolitan Borough Council,http://www.sandwell.gov.uk/info/200202/performance_and_spending/1079/payments_over_500,17/08/2022,Childrens Services,SANDWELL CONSORTIUM CIC,Childrens Services,4662.37 ,Grants,2223P05_CR00127,104616
Sandwell Metropolitan Borough Council,http://www.sandwell.gov.uk/info/200202/performance_and_spending/1079/payments_over_500,12/08/2022,Childrens Services,SEDDON CONSTRUCTION LIMITED,Childrens Services,1010.75 ,Externally Purchased Professional Services ,2223P05_CR00128,132999
Sandwell Metropolitan Borough Council,http://www.sandwell.gov.uk/info/200202/performance_and_spending/1079/payments_over_500,12/08/2022,Childrens Services,SEDDON CONSTRUCTION LIMITED,Childrens Services,1010.75 ,Externally Purchased Professional Services ,2223P05_CR00129,132999
Sandwell Metropolitan Borough Council,http://www.sandwell.gov.uk/info/200202/performance_and_spending/1079/payments_over_500,01/08/2022,Childrens Services,SEDDON CONSTRUCTION LIMITED,Childrens Services,1044.28 ,Externally Purchased Professional Services ,2223P05_CR00130,132999
Sandwell Metropolitan Borough Council,http://www.sandwell.gov.uk/info/200202/performance_and_spending/1079/payments_over_500,12/08/2022,Childrens Services,SEDDON CONSTRUCTION LIMITED,Childrens Services,1044.28 ,Externally Purchased Professional Services ,2223P05_CR00131,132999
Sandwell Metropolitan Borough Council,http://www.sandwell.gov.uk/info/200202/performance_and_spending/1079/payments_over_500,01/08/2022,Childrens Services,SIPS EDUCATION LTD,Childrens Services,1950.00 ,Externally Purchased Professional Services ,2223P05_CR00132,110784
Sandwell Metropolitan Borough Council,http://www.sandwell.gov.uk/info/200202/performance_and_spending/1079/payments_over_500,01/08/2022,Childrens Services,SIPS EDUCATION LTD,Childrens Services,2500.00 ,Externally Purchased Professional Services ,2223P05_CR00133,110784
Sandwell Metropolitan Borough Council,http://www.sandwell.gov.uk/info/200202/performance_and_spending/1079/payments_over_500,12/08/2022,Childrens Services,SKILLS WORK AND ENTERPRISE DEVELOPMENT AGENCY LTD,Childrens Services,746.52 ,Externally Purchased Professional Services ,2223P05_CR00134,5092
Sandwell Metropolitan Borough Council,http://www.sandwell.gov.uk/info/200202/performance_and_spending/1079/payments_over_500,12/08/2022,Childrens Services,SKILLS WORK AND ENTERPRISE DEVELOPMENT AGENCY LTD,Childrens Services,1085.21 ,Externally Purchased Professional Services ,2223P05_CR00135,5092
Sandwell Metropolitan Borough Council,http://www.sandwell.gov.uk/info/200202/performance_and_spending/1079/payments_over_500,12/08/2022,Childrens Services,SKILLS WORK AND ENTERPRISE DEVELOPMENT AGENCY LTD,Childrens Services,1085.21 ,Externally Purchased Professional Services ,2223P05_CR00136,5092
Sandwell Metropolitan Borough Council,http://www.sandwell.gov.uk/info/200202/performance_and_spending/1079/payments_over_500,02/08/2022,Childrens Services,SOLIHULL MBC,Childrens Services,13530.00 ,SH Payments,2223P05_CR00137,01128751
Sandwell Metropolitan Borough Council,http://www.sandwell.gov.uk/info/200202/performance_and_spending/1079/payments_over_500,02/08/2022,Childrens Services,SOLIHULL MBC,Childrens Services,15000.00 ,SH Payments,2223P05_CR00138,01128751
Sandwell Metropolitan Borough Council,http://www.sandwell.gov.uk/info/200202/performance_and_spending/1079/payments_over_500,01/08/2022,Childrens Services,THE LAUNDRY ROOM (BEWDLEY) LIMITED,Childrens Services,525.97 ,Equipment & Furniture ,2223P05_CR00139,127518
Sandwell Metropolitan Borough Council,http://www.sandwell.gov.uk/info/200202/performance_and_spending/1079/payments_over_500,01/08/2022,Childrens Services,THE PRIORY PRIMARY,Childrens Services,2228.67 ,Rents,2223P05_CR00140,01746051
Sandwell Metropolitan Borough Council,http://www.sandwell.gov.uk/info/200202/performance_and_spending/1079/payments_over_500,01/08/2022,Childrens Services,THE PRIORY PRIMARY,Childrens Services,2618.56 ,Rents,2223P05_CR00141,01746051
Sandwell Metropolitan Borough Council,http://www.sandwell.gov.uk/info/200202/performance_and_spending/1079/payments_over_500,01/08/2022,Childrens Services,TIME STEP DANCE,Childrens Services,1980.00 ,Equipment & Furniture ,2223P05_CR00142,141570
Sandwell Metropolitan Borough Council,http://www.sandwell.gov.uk/info/200202/performance_and_spending/1079/payments_over_500,01/08/2022,Childrens Services,TINY TOEZ LIMITED,Childrens Services,746.52 ,Externally Purchased Professional Services ,2223P05_CR00143,23618
Sandwell Metropolitan Borough Council,http://www.sandwell.gov.uk/info/200202/performance_and_spending/1079/payments_over_500,01/08/2022,Childrens Services,TINY TOEZ LIMITED,Childrens Services,560.00 ,Grants,2223P05_CR00144,23618
Sandwell Metropolitan Borough Council,http://www.sandwell.gov.uk/info/200202/performance_and_spending/1079/payments_over_500,08/08/2022,Childrens Services,TOP CHURCH TRAINING,Childrens Services,1849.25 ,Grants,2223P05_CR00145,163127
Sandwell Metropolitan Borough Council,http://www.sandwell.gov.uk/info/200202/performance_and_spending/1079/payments_over_500,14/08/2022,Childrens Services,TOPPS MANAGEMENT & SUPPORT SERVICES LTD,Childrens Services,7142.80 ,Discretionary Awards,2223P05_CR00146,68846
Sandwell Metropolitan Borough Council,http://www.sandwell.gov.uk/info/200202/performance_and_spending/1079/payments_over_500,01/08/2022,Childrens Services,TOPPS MANAGEMENT & SUPPORT SERVICES LTD,Childrens Services,787.62 ,Externally Purchased Professional Services ,2223P05_CR00147,68846
Sandwell Metropolitan Borough Council,http://www.sandwell.gov.uk/info/200202/performance_and_spending/1079/payments_over_500,01/08/2022,Childrens Services,TOPPS MANAGEMENT & SUPPORT SERVICES LTD,Childrens Services,996.94 ,Externally Purchased Professional Services ,2223P05_CR00148,68846
Sandwell Metropolitan Borough Council,http://www.sandwell.gov.uk/info/200202/performance_and_spending/1079/payments_over_500,01/08/2022,Childrens Services,TOPPS MANAGEMENT & SUPPORT SERVICES LTD,Childrens Services,996.94 ,Externally Purchased Professional Services ,2223P05_CR00149,68846
Sandwell Metropolitan Borough Council,http://www.sandwell.gov.uk/info/200202/performance_and_spending/1079/payments_over_500,01/08/2022,Childrens Services,TOPPS MANAGEMENT & SUPPORT SERVICES LTD,Childrens Services,996.94 ,Externally Purchased Professional Services ,2223P05_CR00150,68846
Sandwell Metropolitan Borough Council,http://www.sandwell.gov.uk/info/200202/performance_and_spending/1079/payments_over_500,12/08/2022,Childrens Services,TOTALENERGIES GAS & POWER LTD,Childrens Services,530.22 ,Electricity,2223P05_CR00151,107605
Sandwell Metropolitan Borough Council,http://www.sandwell.gov.uk/info/200202/performance_and_spending/1079/payments_over_500,12/08/2022,Childrens Services,TOTALENERGIES GAS & POWER LTD,Childrens Services,668.21 ,Electricity,2223P05_CR00152,107605
Sandwell Metropolitan Borough Council,http://www.sandwell.gov.uk/info/200202/performance_and_spending/1079/payments_over_500,01/08/2022,Childrens Services,TOTALENERGIES GAS & POWER LTD,Childrens Services,1032.54 ,Electricity,2223P05_CR00153,107605
Sandwell Metropolitan Borough Council,http://www.sandwell.gov.uk/info/200202/performance_and_spending/1079/payments_over_500,01/08/2022,Childrens Services,TRIBAL EDUCATION LTD,Childrens Services,1200.00 ,Subscriptions,2223P05_CR00154,17382
Sandwell Metropolitan Borough Council,http://www.sandwell.gov.uk/info/200202/performance_and_spending/1079/payments_over_500,01/08/2022,Childrens Services,TTS GROUP LTD,Childrens Services,979.86 ,Materials & Consumables,2223P05_CR00155,4695
Sandwell Metropolitan Borough Council,http://www.sandwell.gov.uk/info/200202/performance_and_spending/1079/payments_over_500,01/08/2022,Childrens Services,VALENCIA FINE FOODS LIMITED,Childrens Services,746.52 ,Externally Purchased Professional Services ,2223P05_CR00156,131572
Sandwell Metropolitan Borough Council,http://www.sandwell.gov.uk/info/200202/performance_and_spending/1079/payments_over_500,01/08/2022,Childrens Services,VALENCIA FINE FOODS LIMITED,Childrens Services,1044.28 ,Externally Purchased Professional Services ,2223P05_CR00157,131572
Sandwell Metropolitan Borough Council,http://www.sandwell.gov.uk/info/200202/performance_and_spending/1079/payments_over_500,01/08/2022,Childrens Services,VALENCIA FINE FOODS LIMITED,Childrens Services,1250.52 ,Externally Purchased Professional Services ,2223P05_CR00158,131572
Sandwell Metropolitan Borough Council,http://www.sandwell.gov.uk/info/200202/performance_and_spending/1079/payments_over_500,09/08/2022,Childrens Services,"VS SERVICES CLEANING, DOG WALKING AND MINI VALETS",Childrens Services,630.00 ,Agency Staff,2223P05_CR00159,163803
Sandwell Metropolitan Borough Council,http://www.sandwell.gov.uk/info/200202/performance_and_spending/1079/payments_over_500,01/08/2022,Childrens Services,WATER PLUS SELECT LIMITED,Childrens Services,533.65 ,Water Services,2223P05_CR00160,129644
Sandwell Metropolitan Borough Council,http://www.sandwell.gov.uk/info/200202/performance_and_spending/1079/payments_over_500,03/08/2022,Childrens Services,WEST BROMWICH ALBION FC LTD,Childrens Services,1088.40 ,Hire of Facilities,2223P05_CR00161,01606624
Sandwell Metropolitan Borough Council,http://www.sandwell.gov.uk/info/200202/performance_and_spending/1079/payments_over_500,01/08/2022,Childrens Services,WEST BROMWICH ALBION FC LTD,Childrens Services,1906.00 ,Hire of Facilities,2223P05_CR00162,01606624
Sandwell Metropolitan Borough Council,http://www.sandwell.gov.uk/info/200202/performance_and_spending/1079/payments_over_500,18/08/2022,Childrens Services,WEST MIDLANDS ACCESSIBLE TRANSPORT LTD,Childrens Services,992.55 ,Public Transport,2223P05_CR00163,01694764
Sandwell Metropolitan Borough Council,http://www.sandwell.gov.uk/info/200202/performance_and_spending/1079/payments_over_500,01/08/2022,Childrens Services,WEST MIDLANDS EMPLOYERS,Childrens Services,600.00 ,SH Payments,2223P05_CR00164,01587505
Sandwell Metropolitan Borough Council,http://www.sandwell.gov.uk/info/200202/performance_and_spending/1079/payments_over_500,01/08/2022,Childrens Services,WEST MIDLANDS TRAVEL LIMITED,Childrens Services,1148.45 ,Public Transport,2223P05_CR00165,01736688
Sandwell Metropolitan Borough Council,http://www.sandwell.gov.uk/info/200202/performance_and_spending/1079/payments_over_500,01/08/2022,Childrens Services,WEST MIDLANDS TRAVEL LIMITED,Childrens Services,3500.18 ,Public Transport,2223P05_CR00166,01736688
Sandwell Metropolitan Borough Council,http://www.sandwell.gov.uk/info/200202/performance_and_spending/1079/payments_over_500,01/08/2022,Childrens Services,WEST MIDLANDS TRAVEL LIMITED,Childrens Services,3500.18 ,Public Transport,2223P05_CR00167,01736688
Sandwell Metropolitan Borough Council,http://www.sandwell.gov.uk/info/200202/performance_and_spending/1079/payments_over_500,01/08/2022,Childrens Services,WOOD GREEN ACADEMY,Childrens Services,700.00 ,Childcare,2223P05_CR00168,20560
Sandwell Metropolitan Borough Council,http://www.sandwell.gov.uk/info/200202/performance_and_spending/1079/payments_over_500,01/08/2022,Childrens Services,YELLOW CARS,Childrens Services,26327.12 ,Public Transport,2223P05_CR00169,116819
Sandwell Metropolitan Borough Council,http://www.sandwell.gov.uk/info/200202/performance_and_spending/1079/payments_over_500,05/08/2022,Childrens Services,ROZ SHABAZZ-JOHNSON,Childrens Services,3000.00 ,Externally Purchased Professional Services ,2223P05_CR00170,159497
Sandwell Metropolitan Borough Council,http://www.sandwell.gov.uk/info/200202/performance_and_spending/1079/payments_over_500,21/08/2022,Childrens Services,KATIE BURCHETT,Childrens Services,1250.00 ,Externally Purchased Professional Services ,2223P05_CR00171,162816
Sandwell Metropolitan Borough Council,http://www.sandwell.gov.uk/info/200202/performance_and_spending/1079/payments_over_500,20/08/2022,Childrens Services,BEN SEMP,Childrens Services,2000.00 ,Externally Purchased Professional Services ,2223P05_CR00172,107250
Sandwell Metropolitan Borough Council,http://www.sandwell.gov.uk/info/200202/performance_and_spending/1079/payments_over_500,05/08/2022,Childrens Services,RUTH PORTER,Childrens Services,1200.00 ,Externally Purchased Professional Services ,2223P05_CR00173,163710
Sandwell Metropolitan Borough Council,http://www.sandwell.gov.uk/info/200202/performance_and_spending/1079/payments_over_500,01/08/2022,Childrens Services,RUTH PORTER,Childrens Services,1200.00 ,Externally Purchased Professional Services ,2223P05_CR00174,163710
Sandwell Metropolitan Borough Council,http://www.sandwell.gov.uk/info/200202/performance_and_spending/1079/payments_over_500,11/08/2022,Childrens Services,RUTH PORTER,Childrens Services,1200.00 ,Externally Purchased Professional Services ,2223P05_CR00175,163710
Sandwell Metropolitan Borough Council,http://www.sandwell.gov.uk/info/200202/performance_and_spending/1079/payments_over_500,01/08/2022,Childrens Services,REDACTED PERSONAL DATA,Childrens Services,620.00 ,Externally Purchased Professional Services ,2223P05_CR00176,REDACTED PERSONAL DATA
Sandwell Metropolitan Borough Council,http://www.sandwell.gov.uk/info/200202/performance_and_spending/1079/payments_over_500,19/08/2022,Childrens Services,REDACTED PERSONAL DATA,Childrens Services,537.84 ,External Contract Hire,2223P05_CR00177,REDACTED PERSONAL DATA
Sandwell Metropolitan Borough Council,http://www.sandwell.gov.uk/info/200202/performance_and_spending/1079/payments_over_500,09/08/2022,Childrens Services,REDACTED PERSONAL DATA,Childrens Services,695.00 ,External Contract Hire,2223P05_CR00178,REDACTED PERSONAL DATA
Sandwell Metropolitan Borough Council,http://www.sandwell.gov.uk/info/200202/performance_and_spending/1079/payments_over_500,18/08/2022,Childrens Services,ALL STARS WALSALL C.I.C.,Childrens Services,1400.00 ,Grant Payments,2223P05_CR00179,153410
Sandwell Metropolitan Borough Council,http://www.sandwell.gov.uk/info/200202/performance_and_spending/1079/payments_over_500,03/08/2022,Childrens Services,COMMUNITY TRANSPORT,Childrens Services,6166.00 ,Grant Payments,2223P05_CR00180,01447963
Sandwell Metropolitan Borough Council,http://www.sandwell.gov.uk/info/200202/performance_and_spending/1079/payments_over_500,18/08/2022,Childrens Services,YEMENI COMMUNITY ASSOCIATION IN SANDWELL,Childrens Services,2100.00 ,Grant Payments,2223P05_CR00181,01711292
Sandwell Metropolitan Borough Council,http://www.sandwell.gov.uk/info/200202/performance_and_spending/1079/payments_over_500,08/08/2022,Childrens Services Capital,CALBRI MAINTENANCE SERVICES LTD,Childrens Services Capital,31775.00 ,"CIP - New Construction,Conversion, Enhancement & Reno",2223P05_CR00182,145411
Sandwell Metropolitan Borough Council,http://www.sandwell.gov.uk/info/200202/performance_and_spending/1079/payments_over_500,01/08/2022,Childrens Services Capital,CLEVELAND CONTAINERS LTD,Childrens Services Capital,3870.00 ,"CIP - New Construction,Conversion, Enhancement & Reno",2223P05_CR00183,161918
Sandwell Metropolitan Borough Council,http://www.sandwell.gov.uk/info/200202/performance_and_spending/1079/payments_over_500,02/08/2022,Childrens Services Capital,D P DESIGN PARTNERSHIP,Childrens Services Capital,2550.00 ,"CIP - New Construction,Conversion, Enhancement & Reno",2223P05_CR00184,145811
Sandwell Metropolitan Borough Council,http://www.sandwell.gov.uk/info/200202/performance_and_spending/1079/payments_over_500,16/08/2022,Childrens Services Capital,KAPPION LTD,Childrens Services Capital,4776.25 ,"CIP - New Construction,Conversion, Enhancement & Reno",2223P05_CR00185,163885
Sandwell Metropolitan Borough Council,http://www.sandwell.gov.uk/info/200202/performance_and_spending/1079/payments_over_500,02/08/2022,Childrens Services Capital,NICHOLLS COLTON & PARTNERS LTD,Childrens Services Capital,2595.00 ,"CIP - New Construction,Conversion, Enhancement & Reno",2223P05_CR00186,3215
Sandwell Metropolitan Borough Council,http://www.sandwell.gov.uk/info/200202/performance_and_spending/1079/payments_over_500,19/08/2022,Housing & Communities,PETERS LIMITED,Neighbourhoods,729.26 ,Materials & Consumables,2223P05_CR00187,01059117
Sandwell Metropolitan Borough Council,http://www.sandwell.gov.uk/info/200202/performance_and_spending/1079/payments_over_500,01/08/2022,Housing & Communities,PETERS LIMITED,Neighbourhoods,940.00 ,Materials & Consumables,2223P05_CR00188,01059117
Sandwell Metropolitan Borough Council,http://www.sandwell.gov.uk/info/200202/performance_and_spending/1079/payments_over_500,01/08/2022,Housing & Communities,ACCESS INNOVATIONS UK LTD,Neighbourhoods,914.55 ,Fire Service Workshops,2223P05_CR00189,137694
Sandwell Metropolitan Borough Council,http://www.sandwell.gov.uk/info/200202/performance_and_spending/1079/payments_over_500,12/08/2022,Housing & Communities,ACCESSHIRE NATIONWIDE,Neighbourhoods,779.00 ,Vehicle Hiring Charges,2223P05_CR00190,123955
Sandwell Metropolitan Borough Council,http://www.sandwell.gov.uk/info/200202/performance_and_spending/1079/payments_over_500,01/08/2022,Housing & Communities,ACCESSHIRE NATIONWIDE,Neighbourhoods,1533.00 ,Vehicle Hiring Charges,2223P05_CR00191,123955
Sandwell Metropolitan Borough Council,http://www.sandwell.gov.uk/info/200202/performance_and_spending/1079/payments_over_500,01/08/2022,Housing & Communities,ADT FIRE & SECURITY PLC,Neighbourhoods,833.76 ,Subscriptions,2223P05_CR00192,01115015
Sandwell Metropolitan Borough Council,http://www.sandwell.gov.uk/info/200202/performance_and_spending/1079/payments_over_500,22/08/2022,Housing & Communities,AUTOSTORES MOTOR FACTORS,Neighbourhoods,529.39 ,Fire Service Workshops,2223P05_CR00193,140904
Sandwell Metropolitan Borough Council,http://www.sandwell.gov.uk/info/200202/performance_and_spending/1079/payments_over_500,01/08/2022,Housing & Communities,BA BUSH & SON LTD,Neighbourhoods,880.50 ,Tyres,2223P05_CR00194,159771
Sandwell Metropolitan Borough Council,http://www.sandwell.gov.uk/info/200202/performance_and_spending/1079/payments_over_500,09/08/2022,Housing & Communities,BA BUSH & SON LTD,Neighbourhoods,1502.00 ,Tyres,2223P05_CR00195,159771
Sandwell Metropolitan Borough Council,http://www.sandwell.gov.uk/info/200202/performance_and_spending/1079/payments_over_500,01/08/2022,Housing & Communities,BOB RICHARDSON TOOLS & FASTENERS LTD,Neighbourhoods,1265.00 ,Fire Service Workshops,2223P05_CR00196,01082705
Sandwell Metropolitan Borough Council,http://www.sandwell.gov.uk/info/200202/performance_and_spending/1079/payments_over_500,01/08/2022,Housing & Communities,BUCHER MUNICIPAL LTD,Neighbourhoods,785.50 ,Fire Service Workshops,2223P05_CR00197,01053625
Sandwell Metropolitan Borough Council,http://www.sandwell.gov.uk/info/200202/performance_and_spending/1079/payments_over_500,01/08/2022,Housing & Communities,COOPER MOBILE SERVICES LTD,Neighbourhoods,1214.50 ,Fire Service Workshops,2223P05_CR00198,01304378
Sandwell Metropolitan Borough Council,http://www.sandwell.gov.uk/info/200202/performance_and_spending/1079/payments_over_500,08/08/2022,Housing & Communities,COOPER MOBILE SERVICES LTD,Neighbourhoods,2005.00 ,Fire Service Workshops,2223P05_CR00199,01304378
Sandwell Metropolitan Borough Council,http://www.sandwell.gov.uk/info/200202/performance_and_spending/1079/payments_over_500,19/08/2022,Housing & Communities,COOPER MOBILE SERVICES LTD,Neighbourhoods,3561.84 ,Fire Service Workshops,2223P05_CR00200,01304378
Sandwell Metropolitan Borough Council,http://www.sandwell.gov.uk/info/200202/performance_and_spending/1079/payments_over_500,01/08/2022,Housing & Communities,DAWSONGROUP VANS,Neighbourhoods,528.55 ,Vehicle Hiring Charges,2223P05_CR00201,151498
Sandwell Metropolitan Borough Council,http://www.sandwell.gov.uk/info/200202/performance_and_spending/1079/payments_over_500,01/08/2022,Housing & Communities,DAWSONGROUP VANS,Neighbourhoods,528.55 ,Vehicle Hiring Charges,2223P05_CR00202,151498
Sandwell Metropolitan Borough Council,http://www.sandwell.gov.uk/info/200202/performance_and_spending/1079/payments_over_500,01/08/2022,Housing & Communities,DAWSONGROUP VANS,Neighbourhoods,627.08 ,Vehicle Hiring Charges,2223P05_CR00203,151498
Sandwell Metropolitan Borough Council,http://www.sandwell.gov.uk/info/200202/performance_and_spending/1079/payments_over_500,01/08/2022,Housing & Communities,DAYS RENTAL,Neighbourhoods,502.20 ,Vehicle Hiring Charges,2223P05_CR00204,128169
Sandwell Metropolitan Borough Council,http://www.sandwell.gov.uk/info/200202/performance_and_spending/1079/payments_over_500,01/08/2022,Housing & Communities,DAYS RENTAL,Neighbourhoods,502.20 ,Vehicle Hiring Charges,2223P05_CR00205,128169
Sandwell Metropolitan Borough Council,http://www.sandwell.gov.uk/info/200202/performance_and_spending/1079/payments_over_500,01/08/2022,Housing & Communities,DAYS RENTAL,Neighbourhoods,502.20 ,Vehicle Hiring Charges,2223P05_CR00206,128169
Sandwell Metropolitan Borough Council,http://www.sandwell.gov.uk/info/200202/performance_and_spending/1079/payments_over_500,01/08/2022,Housing & Communities,DAYS RENTAL,Neighbourhoods,518.94 ,Vehicle Hiring Charges,2223P05_CR00207,128169
Sandwell Metropolitan Borough Council,http://www.sandwell.gov.uk/info/200202/performance_and_spending/1079/payments_over_500,01/08/2022,Housing & Communities,DAYS RENTAL,Neighbourhoods,518.94 ,Vehicle Hiring Charges,2223P05_CR00208,128169
Sandwell Metropolitan Borough Council,http://www.sandwell.gov.uk/info/200202/performance_and_spending/1079/payments_over_500,01/08/2022,Housing & Communities,DAYS RENTAL,Neighbourhoods,518.94 ,Vehicle Hiring Charges,2223P05_CR00209,128169
Sandwell Metropolitan Borough Council,http://www.sandwell.gov.uk/info/200202/performance_and_spending/1079/payments_over_500,01/08/2022,Housing & Communities,DAYS RENTAL,Neighbourhoods,641.70 ,Vehicle Hiring Charges,2223P05_CR00210,128169
Sandwell Metropolitan Borough Council,http://www.sandwell.gov.uk/info/200202/performance_and_spending/1079/payments_over_500,01/08/2022,Housing & Communities,DAYS RENTAL,Neighbourhoods,641.70 ,Vehicle Hiring Charges,2223P05_CR00211,128169
Sandwell Metropolitan Borough Council,http://www.sandwell.gov.uk/info/200202/performance_and_spending/1079/payments_over_500,01/08/2022,Housing & Communities,DAYS RENTAL,Neighbourhoods,862.20 ,Vehicle Hiring Charges,2223P05_CR00212,128169
Sandwell Metropolitan Borough Council,http://www.sandwell.gov.uk/info/200202/performance_and_spending/1079/payments_over_500,01/08/2022,Housing & Communities,DAYS RENTAL,Neighbourhoods,890.94 ,Vehicle Hiring Charges,2223P05_CR00213,128169
Sandwell Metropolitan Borough Council,http://www.sandwell.gov.uk/info/200202/performance_and_spending/1079/payments_over_500,01/08/2022,Housing & Communities,DAYS RENTAL,Neighbourhoods,890.94 ,Vehicle Hiring Charges,2223P05_CR00214,128169
Sandwell Metropolitan Borough Council,http://www.sandwell.gov.uk/info/200202/performance_and_spending/1079/payments_over_500,01/08/2022,Housing & Communities,DAYS RENTAL,Neighbourhoods,890.94 ,Vehicle Hiring Charges,2223P05_CR00215,128169
Sandwell Metropolitan Borough Council,http://www.sandwell.gov.uk/info/200202/performance_and_spending/1079/payments_over_500,01/08/2022,Housing & Communities,DAYS RENTAL,Neighbourhoods,890.94 ,Vehicle Hiring Charges,2223P05_CR00216,128169
Sandwell Metropolitan Borough Council,http://www.sandwell.gov.uk/info/200202/performance_and_spending/1079/payments_over_500,01/08/2022,Housing & Communities,DAYS RENTAL,Neighbourhoods,890.94 ,Vehicle Hiring Charges,2223P05_CR00217,128169
Sandwell Metropolitan Borough Council,http://www.sandwell.gov.uk/info/200202/performance_and_spending/1079/payments_over_500,01/08/2022,Housing & Communities,DAYS RENTAL,Neighbourhoods,890.94 ,Vehicle Hiring Charges,2223P05_CR00218,128169
Sandwell Metropolitan Borough Council,http://www.sandwell.gov.uk/info/200202/performance_and_spending/1079/payments_over_500,01/08/2022,Housing & Communities,DAYS RENTAL,Neighbourhoods,1114.14 ,Vehicle Hiring Charges,2223P05_CR00219,128169
Sandwell Metropolitan Borough Council,http://www.sandwell.gov.uk/info/200202/performance_and_spending/1079/payments_over_500,17/08/2022,Housing & Communities,DENNIS EAGLE LTD,Neighbourhoods,523.22 ,Fire Service Workshops,2223P05_CR00220,01004865
Sandwell Metropolitan Borough Council,http://www.sandwell.gov.uk/info/200202/performance_and_spending/1079/payments_over_500,24/08/2022,Housing & Communities,DENNIS EAGLE LTD,Neighbourhoods,529.58 ,Fire Service Workshops,2223P05_CR00221,01004865
Sandwell Metropolitan Borough Council,http://www.sandwell.gov.uk/info/200202/performance_and_spending/1079/payments_over_500,24/08/2022,Housing & Communities,DENNIS EAGLE LTD,Neighbourhoods,567.11 ,Fire Service Workshops,2223P05_CR00222,01004865
Sandwell Metropolitan Borough Council,http://www.sandwell.gov.uk/info/200202/performance_and_spending/1079/payments_over_500,11/08/2022,Housing & Communities,DENNIS EAGLE LTD,Neighbourhoods,577.80 ,Fire Service Workshops,2223P05_CR00223,01004865
Sandwell Metropolitan Borough Council,http://www.sandwell.gov.uk/info/200202/performance_and_spending/1079/payments_over_500,09/08/2022,Housing & Communities,DENNIS EAGLE LTD,Neighbourhoods,635.34 ,Fire Service Workshops,2223P05_CR00224,01004865
Sandwell Metropolitan Borough Council,http://www.sandwell.gov.uk/info/200202/performance_and_spending/1079/payments_over_500,08/08/2022,Housing & Communities,DENNIS EAGLE LTD,Neighbourhoods,688.23 ,Fire Service Workshops,2223P05_CR00225,01004865
Sandwell Metropolitan Borough Council,http://www.sandwell.gov.uk/info/200202/performance_and_spending/1079/payments_over_500,08/08/2022,Housing & Communities,DENNIS EAGLE LTD,Neighbourhoods,752.19 ,Fire Service Workshops,2223P05_CR00226,01004865
Sandwell Metropolitan Borough Council,http://www.sandwell.gov.uk/info/200202/performance_and_spending/1079/payments_over_500,15/08/2022,Housing & Communities,DENNIS EAGLE LTD,Neighbourhoods,756.91 ,Fire Service Workshops,2223P05_CR00227,01004865
Sandwell Metropolitan Borough Council,http://www.sandwell.gov.uk/info/200202/performance_and_spending/1079/payments_over_500,17/08/2022,Housing & Communities,DENNIS EAGLE LTD,Neighbourhoods,853.11 ,Fire Service Workshops,2223P05_CR00228,01004865
Sandwell Metropolitan Borough Council,http://www.sandwell.gov.uk/info/200202/performance_and_spending/1079/payments_over_500,16/08/2022,Housing & Communities,DENNIS EAGLE LTD,Neighbourhoods,926.28 ,Fire Service Workshops,2223P05_CR00229,01004865
Sandwell Metropolitan Borough Council,http://www.sandwell.gov.uk/info/200202/performance_and_spending/1079/payments_over_500,15/08/2022,Housing & Communities,DENNIS EAGLE LTD,Neighbourhoods,937.48 ,Fire Service Workshops,2223P05_CR00230,01004865
Sandwell Metropolitan Borough Council,http://www.sandwell.gov.uk/info/200202/performance_and_spending/1079/payments_over_500,11/08/2022,Housing & Communities,DENNIS EAGLE LTD,Neighbourhoods,997.35 ,Fire Service Workshops,2223P05_CR00231,01004865
Sandwell Metropolitan Borough Council,http://www.sandwell.gov.uk/info/200202/performance_and_spending/1079/payments_over_500,24/08/2022,Housing & Communities,DENNIS EAGLE LTD,Neighbourhoods,1241.36 ,Fire Service Workshops,2223P05_CR00232,01004865
Sandwell Metropolitan Borough Council,http://www.sandwell.gov.uk/info/200202/performance_and_spending/1079/payments_over_500,15/08/2022,Housing & Communities,DENNIS EAGLE LTD,Neighbourhoods,1283.84 ,Fire Service Workshops,2223P05_CR00233,01004865
Sandwell Metropolitan Borough Council,http://www.sandwell.gov.uk/info/200202/performance_and_spending/1079/payments_over_500,16/08/2022,Housing & Communities,DENNIS EAGLE LTD,Neighbourhoods,1916.58 ,Fire Service Workshops,2223P05_CR00234,01004865
Sandwell Metropolitan Borough Council,http://www.sandwell.gov.uk/info/200202/performance_and_spending/1079/payments_over_500,01/08/2022,Housing & Communities,ENTERPRISE FLEX-E-RENT,Neighbourhoods,610.35 ,Vehicle Hiring Charges,2223P05_CR00235,142092
Sandwell Metropolitan Borough Council,http://www.sandwell.gov.uk/info/200202/performance_and_spending/1079/payments_over_500,01/08/2022,Housing & Communities,EUROHIRE VEHICLE RENTALS (OLDBURY) LTD,Neighbourhoods,770.00 ,Vehicle Hiring Charges,2223P05_CR00236,01007945
Sandwell Metropolitan Borough Council,http://www.sandwell.gov.uk/info/200202/performance_and_spending/1079/payments_over_500,26/08/2022,Housing & Communities,FR SHARROCK LTD,Neighbourhoods,1280.60 ,Fire Service Workshops,2223P05_CR00237,01496028
Sandwell Metropolitan Borough Council,http://www.sandwell.gov.uk/info/200202/performance_and_spending/1079/payments_over_500,10/08/2022,Housing & Communities,FR SHARROCK LTD,Neighbourhoods,1558.00 ,Purchase of Vehicles,2223P05_CR00238,01496028
Sandwell Metropolitan Borough Council,http://www.sandwell.gov.uk/info/200202/performance_and_spending/1079/payments_over_500,01/08/2022,Housing & Communities,FREIGHT TRANSPORT ASSOCIATION,Neighbourhoods,2178.00 ,Externally Purchased Professional Services ,2223P05_CR00239,10335
Sandwell Metropolitan Borough Council,http://www.sandwell.gov.uk/info/200202/performance_and_spending/1079/payments_over_500,01/08/2022,Housing & Communities,FREIGHT TRANSPORT ASSOCIATION,Neighbourhoods,3481.17 ,Externally Purchased Professional Services ,2223P05_CR00240,10335
Sandwell Metropolitan Borough Council,http://www.sandwell.gov.uk/info/200202/performance_and_spending/1079/payments_over_500,26/08/2022,Housing & Communities,FREIGHT TRANSPORT ASSOCIATION,Neighbourhoods,1900.00 ,Subscriptions,2223P05_CR00241,10335
Sandwell Metropolitan Borough Council,http://www.sandwell.gov.uk/info/200202/performance_and_spending/1079/payments_over_500,12/08/2022,Housing & Communities,FUCHS LUBRICANTS (UK) LTD,Neighbourhoods,1190.00 ,Fire Service Workshops,2223P05_CR00242,130133
Sandwell Metropolitan Borough Council,http://www.sandwell.gov.uk/info/200202/performance_and_spending/1079/payments_over_500,12/08/2022,Housing & Communities,FUCHS LUBRICANTS (UK) LTD,Neighbourhoods,1520.00 ,Fire Service Workshops,2223P05_CR00243,130133
Sandwell Metropolitan Borough Council,http://www.sandwell.gov.uk/info/200202/performance_and_spending/1079/payments_over_500,12/08/2022,Housing & Communities,FUCHS LUBRICANTS (UK) LTD,Neighbourhoods,1760.00 ,Fire Service Workshops,2223P05_CR00244,130133
Sandwell Metropolitan Borough Council,http://www.sandwell.gov.uk/info/200202/performance_and_spending/1079/payments_over_500,12/08/2022,Housing & Communities,FUCHS LUBRICANTS (UK) LTD,Neighbourhoods,2800.00 ,Fire Service Workshops,2223P05_CR00245,130133
Sandwell Metropolitan Borough Council,http://www.sandwell.gov.uk/info/200202/performance_and_spending/1079/payments_over_500,18/08/2022,Housing & Communities,GAREJ ARWYN GARAGE CYF,Neighbourhoods,970.73 ,Fire Service Workshops,2223P05_CR00246,164011
Sandwell Metropolitan Borough Council,http://www.sandwell.gov.uk/info/200202/performance_and_spending/1079/payments_over_500,25/08/2022,Housing & Communities,GEESINK NORBA LTD,Neighbourhoods,738.47 ,Fire Service Workshops,2223P05_CR00247,102799
Sandwell Metropolitan Borough Council,http://www.sandwell.gov.uk/info/200202/performance_and_spending/1079/payments_over_500,05/08/2022,Housing & Communities,GEESINK NORBA LTD,Neighbourhoods,1197.05 ,Fire Service Workshops,2223P05_CR00248,102799
Sandwell Metropolitan Borough Council,http://www.sandwell.gov.uk/info/200202/performance_and_spending/1079/payments_over_500,01/08/2022,Housing & Communities,GEESINK NORBA LTD,Neighbourhoods,1484.42 ,Fire Service Workshops,2223P05_CR00249,102799
Sandwell Metropolitan Borough Council,http://www.sandwell.gov.uk/info/200202/performance_and_spending/1079/payments_over_500,01/08/2022,Housing & Communities,GEESINK NORBA LTD,Neighbourhoods,2423.32 ,Fire Service Workshops,2223P05_CR00250,102799
Sandwell Metropolitan Borough Council,http://www.sandwell.gov.uk/info/200202/performance_and_spending/1079/payments_over_500,16/08/2022,Housing & Communities,GUNN JCB LTD,Neighbourhoods,545.00 ,Fire Service Workshops,2223P05_CR00251,01015439
Sandwell Metropolitan Borough Council,http://www.sandwell.gov.uk/info/200202/performance_and_spending/1079/payments_over_500,02/08/2022,Housing & Communities,HADLEYS STEAM CLEANING LTD,Neighbourhoods,1137.00 ,Repairs & Maintenance,2223P05_CR00252,132536
Sandwell Metropolitan Borough Council,http://www.sandwell.gov.uk/info/200202/performance_and_spending/1079/payments_over_500,26/08/2022,Housing & Communities,JAMES LISTER & SONS LTD,Neighbourhoods,570.00 ,Fire Service Workshops,2223P05_CR00253,01021821
Sandwell Metropolitan Borough Council,http://www.sandwell.gov.uk/info/200202/performance_and_spending/1079/payments_over_500,11/08/2022,Housing & Communities,LISTER WILDER LTD,Neighbourhoods,2184.00 ,Equipment & Furniture ,2223P05_CR00254,145897
Sandwell Metropolitan Borough Council,http://www.sandwell.gov.uk/info/200202/performance_and_spending/1079/payments_over_500,01/08/2022,Housing & Communities,MARSHALL PEUGEOT PETERBOROUGH,Neighbourhoods,29208.97 ,Licences & Test Fees,2223P05_CR00255,147845
Sandwell Metropolitan Borough Council,http://www.sandwell.gov.uk/info/200202/performance_and_spending/1079/payments_over_500,01/08/2022,Housing & Communities,MARSHALL PEUGEOT PETERBOROUGH,Neighbourhoods,29208.97 ,Licences & Test Fees,2223P05_CR00256,147845
Sandwell Metropolitan Borough Council,http://www.sandwell.gov.uk/info/200202/performance_and_spending/1079/payments_over_500,15/08/2022,Housing & Communities,MELLOR COACHCRAFT,Neighbourhoods,1320.00 ,Fire Service Workshops,2223P05_CR00257,76558
Sandwell Metropolitan Borough Council,http://www.sandwell.gov.uk/info/200202/performance_and_spending/1079/payments_over_500,01/08/2022,Housing & Communities,MIDLAND TRUCK & VAN LTD,Neighbourhoods,843.03 ,Fire Service Workshops,2223P05_CR00258,128784
Sandwell Metropolitan Borough Council,http://www.sandwell.gov.uk/info/200202/performance_and_spending/1079/payments_over_500,24/08/2022,Housing & Communities,MOTUS COMMERCIALS HALESOWEN,Neighbourhoods,669.39 ,Fire Service Workshops,2223P05_CR00259,142253
Sandwell Metropolitan Borough Council,http://www.sandwell.gov.uk/info/200202/performance_and_spending/1079/payments_over_500,01/08/2022,Housing & Communities,N.D. BROWN LIMITED,Neighbourhoods,1393.70 ,Vehicle Hiring Charges,2223P05_CR00260,01129124
Sandwell Metropolitan Borough Council,http://www.sandwell.gov.uk/info/200202/performance_and_spending/1079/payments_over_500,12/08/2022,Housing & Communities,NATIONWIDE PLATFORMS LTD,Neighbourhoods,1124.20 ,Vehicle Hiring Charges,2223P05_CR00261,82015
Sandwell Metropolitan Borough Council,http://www.sandwell.gov.uk/info/200202/performance_and_spending/1079/payments_over_500,01/08/2022,Housing & Communities,NORTHGATE VEHICLE HIRE (WEST MIDLANDS) LTD,Neighbourhoods,1229.53 ,Vehicle Hiring Charges,2223P05_CR00262,01057676
Sandwell Metropolitan Borough Council,http://www.sandwell.gov.uk/info/200202/performance_and_spending/1079/payments_over_500,01/08/2022,Housing & Communities,NORTHGATE VEHICLE HIRE (WEST MIDLANDS) LTD,Neighbourhoods,3481.50 ,Vehicle Hiring Charges,2223P05_CR00263,01057676
Sandwell Metropolitan Borough Council,http://www.sandwell.gov.uk/info/200202/performance_and_spending/1079/payments_over_500,01/08/2022,Housing & Communities,OAKLEYS LTD,Neighbourhoods,2200.00 ,Equipment & Furniture ,2223P05_CR00264,01598115
Sandwell Metropolitan Borough Council,http://www.sandwell.gov.uk/info/200202/performance_and_spending/1079/payments_over_500,01/08/2022,Housing & Communities,PARTSPLUS,Neighbourhoods,698.95 ,Fire Service Workshops,2223P05_CR00265,01087922
Sandwell Metropolitan Borough Council,http://www.sandwell.gov.uk/info/200202/performance_and_spending/1079/payments_over_500,11/08/2022,Housing & Communities,PARTSPLUS,Neighbourhoods,880.93 ,Fire Service Workshops,2223P05_CR00266,01087922
Sandwell Metropolitan Borough Council,http://www.sandwell.gov.uk/info/200202/performance_and_spending/1079/payments_over_500,01/08/2022,Housing & Communities,PHS BESAFE,Neighbourhoods,1083.30 ,Laundry,2223P05_CR00267,124613
Sandwell Metropolitan Borough Council,http://www.sandwell.gov.uk/info/200202/performance_and_spending/1079/payments_over_500,21/08/2022,Housing & Communities,PHS BESAFE,Neighbourhoods,1083.30 ,Laundry,2223P05_CR00268,124613
Sandwell Metropolitan Borough Council,http://www.sandwell.gov.uk/info/200202/performance_and_spending/1079/payments_over_500,01/08/2022,Housing & Communities,ROBINS & DAY BIRMINGHAM NORTH,Neighbourhoods,1080.25 ,Fire Service Workshops,2223P05_CR00269,155696
Sandwell Metropolitan Borough Council,http://www.sandwell.gov.uk/info/200202/performance_and_spending/1079/payments_over_500,01/08/2022,Housing & Communities,ROBINS & DAY BIRMINGHAM NORTH,Neighbourhoods,1800.34 ,Fire Service Workshops,2223P05_CR00270,155696
Sandwell Metropolitan Borough Council,http://www.sandwell.gov.uk/info/200202/performance_and_spending/1079/payments_over_500,16/08/2022,Housing & Communities,ROBINS & DAY PARTS WEST MIDLANDS,Neighbourhoods,505.47 ,Fire Service Workshops,2223P05_CR00271,118812
Sandwell Metropolitan Borough Council,http://www.sandwell.gov.uk/info/200202/performance_and_spending/1079/payments_over_500,12/08/2022,Housing & Communities,RUSSELLS LTD,Neighbourhoods,1025.26 ,Repairs & Maintenance,2223P05_CR00272,145675
Sandwell Metropolitan Borough Council,http://www.sandwell.gov.uk/info/200202/performance_and_spending/1079/payments_over_500,19/08/2022,Housing & Communities,RYGOR COMMERCIALS LTD,Neighbourhoods,1130.16 ,Fire Service Workshops,2223P05_CR00273,3345
Sandwell Metropolitan Borough Council,http://www.sandwell.gov.uk/info/200202/performance_and_spending/1079/payments_over_500,18/08/2022,Housing & Communities,SHELLEY TRANSMISSION SERVICES LTD,Neighbourhoods,895.00 ,Fire Service Workshops,2223P05_CR00274,163886
Sandwell Metropolitan Borough Council,http://www.sandwell.gov.uk/info/200202/performance_and_spending/1079/payments_over_500,09/08/2022,Housing & Communities,SHELLEY TRANSMISSION SERVICES LTD,Neighbourhoods,1200.00 ,Fire Service Workshops,2223P05_CR00275,163886
Sandwell Metropolitan Borough Council,http://www.sandwell.gov.uk/info/200202/performance_and_spending/1079/payments_over_500,03/08/2022,Housing & Communities,SIMON TULLETT MACHINERY COMPANY LIMITED,Neighbourhoods,650.02 ,Repairs & Maintenance,2223P05_CR00276,109117
Sandwell Metropolitan Borough Council,http://www.sandwell.gov.uk/info/200202/performance_and_spending/1079/payments_over_500,01/08/2022,Housing & Communities,SIMON TULLETT MACHINERY COMPANY LIMITED,Neighbourhoods,664.15 ,Repairs & Maintenance,2223P05_CR00277,109117
Sandwell Metropolitan Borough Council,http://www.sandwell.gov.uk/info/200202/performance_and_spending/1079/payments_over_500,02/08/2022,Housing & Communities,TERBERG MATEC UK LTD,Neighbourhoods,503.72 ,Fire Service Workshops,2223P05_CR00278,21235
Sandwell Metropolitan Borough Council,http://www.sandwell.gov.uk/info/200202/performance_and_spending/1079/payments_over_500,17/08/2022,Housing & Communities,TERBERG MATEC UK LTD,Neighbourhoods,1098.62 ,Fire Service Workshops,2223P05_CR00279,21235
Sandwell Metropolitan Borough Council,http://www.sandwell.gov.uk/info/200202/performance_and_spending/1079/payments_over_500,11/08/2022,Housing & Communities,TERBERG MATEC UK LTD,Neighbourhoods,1879.61 ,Fire Service Workshops,2223P05_CR00280,21235
Sandwell Metropolitan Borough Council,http://www.sandwell.gov.uk/info/200202/performance_and_spending/1079/payments_over_500,01/08/2022,Housing & Communities,TERBERG MATEC UK LTD,Neighbourhoods,1968.95 ,Fire Service Workshops,2223P05_CR00281,21235
Sandwell Metropolitan Borough Council,http://www.sandwell.gov.uk/info/200202/performance_and_spending/1079/payments_over_500,25/08/2022,Housing & Communities,TERBERG MATEC UK LTD,Neighbourhoods,2182.18 ,Fire Service Workshops,2223P05_CR00282,21235
Sandwell Metropolitan Borough Council,http://www.sandwell.gov.uk/info/200202/performance_and_spending/1079/payments_over_500,25/08/2022,Housing & Communities,TH WHITE LIMITED,Neighbourhoods,670.87 ,Fire Service Workshops,2223P05_CR00283,01774713
Sandwell Metropolitan Borough Council,http://www.sandwell.gov.uk/info/200202/performance_and_spending/1079/payments_over_500,01/08/2022,Housing & Communities,TH WHITE LIMITED,Neighbourhoods,3205.00 ,Fire Service Workshops,2223P05_CR00284,01774713
Sandwell Metropolitan Borough Council,http://www.sandwell.gov.uk/info/200202/performance_and_spending/1079/payments_over_500,08/08/2022,Housing & Communities,TH WHITE LIMITED,Neighbourhoods,3798.70 ,Fire Service Workshops,2223P05_CR00285,01774713
Sandwell Metropolitan Borough Council,http://www.sandwell.gov.uk/info/200202/performance_and_spending/1079/payments_over_500,01/08/2022,Housing & Communities,TRUCK & TRAILER EQUIPMENT LIMITED,Neighbourhoods,661.50 ,Fire Service Workshops,2223P05_CR00286,126296
Sandwell Metropolitan Borough Council,http://www.sandwell.gov.uk/info/200202/performance_and_spending/1079/payments_over_500,23/08/2022,Housing & Communities,TRUCK & TRAILER EQUIPMENT LIMITED,Neighbourhoods,800.00 ,Fire Service Workshops,2223P05_CR00287,126296
Sandwell Metropolitan Borough Council,http://www.sandwell.gov.uk/info/200202/performance_and_spending/1079/payments_over_500,24/08/2022,Housing & Communities,WESTWAY NISSAN,Neighbourhoods,972.50 ,Fire Service Workshops,2223P05_CR00288,34091
Sandwell Metropolitan Borough Council,http://www.sandwell.gov.uk/info/200202/performance_and_spending/1079/payments_over_500,14/08/2022,Housing & Communities,2G CREATIVE LTD,Neighbourhoods,8740.00 ,Civic Events,2223P05_CR00289,151226
Sandwell Metropolitan Borough Council,http://www.sandwell.gov.uk/info/200202/performance_and_spending/1079/payments_over_500,08/08/2022,Housing & Communities,A E CHAPMAN & CO (OLD HILL) LTD,Neighbourhoods,589.02 ,Advertising & Publicity,2223P05_CR00290,77001665
Sandwell Metropolitan Borough Council,http://www.sandwell.gov.uk/info/200202/performance_and_spending/1079/payments_over_500,01/08/2022,Housing & Communities,ALLSTAR BUSINESS SOLUTIONS LIMITED,Neighbourhoods,2359.99 ,Fuel ,2223P05_CR00291,104057
Sandwell Metropolitan Borough Council,http://www.sandwell.gov.uk/info/200202/performance_and_spending/1079/payments_over_500,15/08/2022,Housing & Communities,ALLSTAR BUSINESS SOLUTIONS LIMITED,Neighbourhoods,2881.44 ,Fuel ,2223P05_CR00292,104057
Sandwell Metropolitan Borough Council,http://www.sandwell.gov.uk/info/200202/performance_and_spending/1079/payments_over_500,14/08/2022,Housing & Communities,ANDREW SYKES HIRE LTD,Neighbourhoods,528.00 ,Equipment & Furniture ,2223P05_CR00293,97528
Sandwell Metropolitan Borough Council,http://www.sandwell.gov.uk/info/200202/performance_and_spending/1079/payments_over_500,14/08/2022,Housing & Communities,ANDREW SYKES HIRE LTD,Neighbourhoods,2073.60 ,Equipment & Furniture ,2223P05_CR00294,97528
Sandwell Metropolitan Borough Council,http://www.sandwell.gov.uk/info/200202/performance_and_spending/1079/payments_over_500,12/08/2022,Housing & Communities,BAKER ROSS LIMITED,Neighbourhoods,575.45 ,"Printing, Stationery & General Office Expenses",2223P05_CR00295,01269861
Sandwell Metropolitan Borough Council,http://www.sandwell.gov.uk/info/200202/performance_and_spending/1079/payments_over_500,01/08/2022,Housing & Communities,BCH PROPERTY LIMITED,Neighbourhoods,533.44 ,Rents,2223P05_CR00296,01011861
Sandwell Metropolitan Borough Council,http://www.sandwell.gov.uk/info/200202/performance_and_spending/1079/payments_over_500,01/08/2022,Housing & Communities,BCH PROPERTY LIMITED,Neighbourhoods,560.00 ,Rents,2223P05_CR00297,01011861
Sandwell Metropolitan Borough Council,http://www.sandwell.gov.uk/info/200202/performance_and_spending/1079/payments_over_500,01/08/2022,Housing & Communities,BCH PROPERTY LIMITED,Neighbourhoods,595.92 ,Rents,2223P05_CR00298,01011861
Sandwell Metropolitan Borough Council,http://www.sandwell.gov.uk/info/200202/performance_and_spending/1079/payments_over_500,01/08/2022,Housing & Communities,BCH PROPERTY LIMITED,Neighbourhoods,625.05 ,Rents,2223P05_CR00299,01011861
Sandwell Metropolitan Borough Council,http://www.sandwell.gov.uk/info/200202/performance_and_spending/1079/payments_over_500,01/08/2022,Housing & Communities,BCH PROPERTY LIMITED,Neighbourhoods,733.48 ,Rents,2223P05_CR00300,01011861
Sandwell Metropolitan Borough Council,http://www.sandwell.gov.uk/info/200202/performance_and_spending/1079/payments_over_500,01/08/2022,Housing & Communities,BCH PROPERTY LIMITED,Neighbourhoods,779.28 ,Rents,2223P05_CR00301,01011861
Sandwell Metropolitan Borough Council,http://www.sandwell.gov.uk/info/200202/performance_and_spending/1079/payments_over_500,01/08/2022,Housing & Communities,BCH PROPERTY LIMITED,Neighbourhoods,840.00 ,Rents,2223P05_CR00302,01011861
Sandwell Metropolitan Borough Council,http://www.sandwell.gov.uk/info/200202/performance_and_spending/1079/payments_over_500,01/08/2022,Housing & Communities,BCH PROPERTY LIMITED,Neighbourhoods,933.52 ,Rents,2223P05_CR00303,01011861
Sandwell Metropolitan Borough Council,http://www.sandwell.gov.uk/info/200202/performance_and_spending/1079/payments_over_500,01/08/2022,Housing & Communities,BCH PROPERTY LIMITED,Neighbourhoods,933.52 ,Rents,2223P05_CR00304,01011861
Sandwell Metropolitan Borough Council,http://www.sandwell.gov.uk/info/200202/performance_and_spending/1079/payments_over_500,01/08/2022,Housing & Communities,BCH PROPERTY LIMITED,Neighbourhoods,962.64 ,Rents,2223P05_CR00305,01011861
Sandwell Metropolitan Borough Council,http://www.sandwell.gov.uk/info/200202/performance_and_spending/1079/payments_over_500,01/08/2022,Housing & Communities,BCH PROPERTY LIMITED,Neighbourhoods,1066.88 ,Rents,2223P05_CR00306,01011861
Sandwell Metropolitan Borough Council,http://www.sandwell.gov.uk/info/200202/performance_and_spending/1079/payments_over_500,01/08/2022,Housing & Communities,BCH PROPERTY LIMITED,Neighbourhoods,1283.52 ,Rents,2223P05_CR00307,01011861
Sandwell Metropolitan Borough Council,http://www.sandwell.gov.uk/info/200202/performance_and_spending/1079/payments_over_500,01/08/2022,Housing & Communities,BCH PROPERTY LIMITED,Neighbourhoods,1283.52 ,Rents,2223P05_CR00308,01011861
Sandwell Metropolitan Borough Council,http://www.sandwell.gov.uk/info/200202/performance_and_spending/1079/payments_over_500,01/08/2022,Housing & Communities,BCH PROPERTY LIMITED,Neighbourhoods,1568.00 ,Rents,2223P05_CR00309,01011861
Sandwell Metropolitan Borough Council,http://www.sandwell.gov.uk/info/200202/performance_and_spending/1079/payments_over_500,01/08/2022,Housing & Communities,BCH PROPERTY LIMITED,Neighbourhoods,1568.00 ,Rents,2223P05_CR00310,01011861
Sandwell Metropolitan Borough Council,http://www.sandwell.gov.uk/info/200202/performance_and_spending/1079/payments_over_500,01/08/2022,Housing & Communities,BEECHWOOD TREES & LANDSCAPE LTD,Neighbourhoods,630.00 ,Externally Purchased Professional Services ,2223P05_CR00311,93287
Sandwell Metropolitan Borough Council,http://www.sandwell.gov.uk/info/200202/performance_and_spending/1079/payments_over_500,01/08/2022,Housing & Communities,BEECHWOOD TREES & LANDSCAPE LTD,Neighbourhoods,990.00 ,Externally Purchased Professional Services ,2223P05_CR00312,93287
Sandwell Metropolitan Borough Council,http://www.sandwell.gov.uk/info/200202/performance_and_spending/1079/payments_over_500,01/08/2022,Housing & Communities,BEECHWOOD TREES & LANDSCAPE LTD,Neighbourhoods,1235.00 ,Externally Purchased Professional Services ,2223P05_CR00313,93287
Sandwell Metropolitan Borough Council,http://www.sandwell.gov.uk/info/200202/performance_and_spending/1079/payments_over_500,01/08/2022,Housing & Communities,BEECHWOOD TREES & LANDSCAPE LTD,Neighbourhoods,1260.00 ,Externally Purchased Professional Services ,2223P05_CR00314,93287
Sandwell Metropolitan Borough Council,http://www.sandwell.gov.uk/info/200202/performance_and_spending/1079/payments_over_500,01/08/2022,Housing & Communities,BEECHWOOD TREES & LANDSCAPE LTD,Neighbourhoods,3120.00 ,Externally Purchased Professional Services ,2223P05_CR00315,93287
Sandwell Metropolitan Borough Council,http://www.sandwell.gov.uk/info/200202/performance_and_spending/1079/payments_over_500,01/08/2022,Housing & Communities,BESTWAY WHOLESALE LTD,Neighbourhoods,960.49 ,Catering Provisions,2223P05_CR00316,161815
Sandwell Metropolitan Borough Council,http://www.sandwell.gov.uk/info/200202/performance_and_spending/1079/payments_over_500,23/08/2022,Housing & Communities,BIBLIOTHECA LIMITED,Neighbourhoods,1500.00 ,Externally Purchased Professional Services ,2223P05_CR00317,94179
Sandwell Metropolitan Borough Council,http://www.sandwell.gov.uk/info/200202/performance_and_spending/1079/payments_over_500,01/08/2022,Housing & Communities,BIBLIOTHECA LIMITED,Neighbourhoods,3200.00 ,Externally Purchased Professional Services ,2223P05_CR00318,94179
Sandwell Metropolitan Borough Council,http://www.sandwell.gov.uk/info/200202/performance_and_spending/1079/payments_over_500,01/08/2022,Housing & Communities,BIBLIOTHECA LIMITED,Neighbourhoods,531.86 ,Materials & Consumables,2223P05_CR00319,94179
Sandwell Metropolitan Borough Council,http://www.sandwell.gov.uk/info/200202/performance_and_spending/1079/payments_over_500,01/08/2022,Housing & Communities,BIG BEAR MUSIC GROUP,Neighbourhoods,3375.00 ,Civic Events,2223P05_CR00320,119267
Sandwell Metropolitan Borough Council,http://www.sandwell.gov.uk/info/200202/performance_and_spending/1079/payments_over_500,01/08/2022,Housing & Communities,BIG BEAR MUSIC GROUP,Neighbourhoods,1750.00 ,Externally Purchased Professional Services ,2223P05_CR00321,119267
Sandwell Metropolitan Borough Council,http://www.sandwell.gov.uk/info/200202/performance_and_spending/1079/payments_over_500,01/08/2022,Housing & Communities,BIRMINGHAM INTERNATIONAL JAZZ & BLUES FESTIVAL LIMITED,Neighbourhoods,2825.00 ,Externally Purchased Professional Services ,2223P05_CR00322,87922
Sandwell Metropolitan Borough Council,http://www.sandwell.gov.uk/info/200202/performance_and_spending/1079/payments_over_500,16/08/2022,Housing & Communities,BOOSTER CUSHION THEATRE LTD,Neighbourhoods,600.00 ,Materials & Consumables,2223P05_CR00323,45891
Sandwell Metropolitan Borough Council,http://www.sandwell.gov.uk/info/200202/performance_and_spending/1079/payments_over_500,05/08/2022,Housing & Communities,BOOSTER CUSHION THEATRE LTD,Neighbourhoods,750.00 ,Materials & Consumables,2223P05_CR00324,45891
Sandwell Metropolitan Borough Council,http://www.sandwell.gov.uk/info/200202/performance_and_spending/1079/payments_over_500,01/08/2022,Housing & Communities,CAPRI CONCEIVE LTD,Neighbourhoods,1050.00 ,Civic Events,2223P05_CR00325,163096
Sandwell Metropolitan Borough Council,http://www.sandwell.gov.uk/info/200202/performance_and_spending/1079/payments_over_500,02/08/2022,Housing & Communities,CERTAS ENERGY LIMITED,Neighbourhoods,15975.64 ,Fuel ,2223P05_CR00326,80421
Sandwell Metropolitan Borough Council,http://www.sandwell.gov.uk/info/200202/performance_and_spending/1079/payments_over_500,01/08/2022,Housing & Communities,CERTAS ENERGY LIMITED,Neighbourhoods,1472.16 ,Oil,2223P05_CR00327,80421
Sandwell Metropolitan Borough Council,http://www.sandwell.gov.uk/info/200202/performance_and_spending/1079/payments_over_500,01/08/2022,Housing & Communities,CITRON HYGIENE UK LTD,Neighbourhoods,1223.52 ,Hygiene Services,2223P05_CR00328,140849
Sandwell Metropolitan Borough Council,http://www.sandwell.gov.uk/info/200202/performance_and_spending/1079/payments_over_500,01/08/2022,Housing & Communities,CITRON HYGIENE UK LTD,Neighbourhoods,735.28 ,Materials & Consumables,2223P05_CR00329,140849
Sandwell Metropolitan Borough Council,http://www.sandwell.gov.uk/info/200202/performance_and_spending/1079/payments_over_500,01/08/2022,Housing & Communities,CITRON HYGIENE UK LTD,Neighbourhoods,1185.48 ,Materials & Consumables,2223P05_CR00330,140849
Sandwell Metropolitan Borough Council,http://www.sandwell.gov.uk/info/200202/performance_and_spending/1079/payments_over_500,01/08/2022,Housing & Communities,CODE RED ENTERTAINMENT,Neighbourhoods,900.00 ,Civic Events,2223P05_CR00331,158272
Sandwell Metropolitan Borough Council,http://www.sandwell.gov.uk/info/200202/performance_and_spending/1079/payments_over_500,02/08/2022,Housing & Communities,CODE RED ENTERTAINMENT,Neighbourhoods,900.00 ,Civic Events,2223P05_CR00332,158272
Sandwell Metropolitan Borough Council,http://www.sandwell.gov.uk/info/200202/performance_and_spending/1079/payments_over_500,01/08/2022,Housing & Communities,CODE RED ENTERTAINMENT,Neighbourhoods,900.00 ,Civic Events,2223P05_CR00333,158272
Sandwell Metropolitan Borough Council,http://www.sandwell.gov.uk/info/200202/performance_and_spending/1079/payments_over_500,08/08/2022,Housing & Communities,CODE RED ENTERTAINMENT,Neighbourhoods,1500.00 ,Civic Events,2223P05_CR00334,158272
Sandwell Metropolitan Borough Council,http://www.sandwell.gov.uk/info/200202/performance_and_spending/1079/payments_over_500,01/08/2022,Housing & Communities,CODE RED ENTERTAINMENT,Neighbourhoods,1500.00 ,Civic Events,2223P05_CR00335,158272
Sandwell Metropolitan Borough Council,http://www.sandwell.gov.uk/info/200202/performance_and_spending/1079/payments_over_500,01/08/2022,Housing & Communities,CODE RED ENTERTAINMENT,Neighbourhoods,1900.00 ,Civic Events,2223P05_CR00336,158272
Sandwell Metropolitan Borough Council,http://www.sandwell.gov.uk/info/200202/performance_and_spending/1079/payments_over_500,01/08/2022,Housing & Communities,CODE RED ENTERTAINMENT,Neighbourhoods,2100.00 ,Civic Events,2223P05_CR00337,158272
Sandwell Metropolitan Borough Council,http://www.sandwell.gov.uk/info/200202/performance_and_spending/1079/payments_over_500,04/08/2022,Housing & Communities,COMMUNITY PARTNERSHIP PERSONNEL,Neighbourhoods,3873.00 ,Agency Staff,2223P05_CR00338,150003
Sandwell Metropolitan Borough Council,http://www.sandwell.gov.uk/info/200202/performance_and_spending/1079/payments_over_500,04/08/2022,Housing & Communities,COMMUNITY PARTNERSHIP PERSONNEL,Neighbourhoods,4417.00 ,Agency Staff,2223P05_CR00339,150003
Sandwell Metropolitan Borough Council,http://www.sandwell.gov.uk/info/200202/performance_and_spending/1079/payments_over_500,01/08/2022,Housing & Communities,CONTRACT LETTINGS LTD,Neighbourhoods,541.80 ,Rents,2223P05_CR00340,76625
Sandwell Metropolitan Borough Council,http://www.sandwell.gov.uk/info/200202/performance_and_spending/1079/payments_over_500,01/08/2022,Housing & Communities,CONTRACT LETTINGS LTD,Neighbourhoods,541.80 ,Rents,2223P05_CR00341,76625
Sandwell Metropolitan Borough Council,http://www.sandwell.gov.uk/info/200202/performance_and_spending/1079/payments_over_500,01/08/2022,Housing & Communities,CONTRACT LETTINGS LTD,Neighbourhoods,559.86 ,Rents,2223P05_CR00342,76625
Sandwell Metropolitan Borough Council,http://www.sandwell.gov.uk/info/200202/performance_and_spending/1079/payments_over_500,01/08/2022,Housing & Communities,CONTRACT LETTINGS LTD,Neighbourhoods,559.86 ,Rents,2223P05_CR00343,76625
Sandwell Metropolitan Borough Council,http://www.sandwell.gov.uk/info/200202/performance_and_spending/1079/payments_over_500,01/08/2022,Housing & Communities,CONTRACT LETTINGS LTD,Neighbourhoods,678.60 ,Rents,2223P05_CR00344,76625
Sandwell Metropolitan Borough Council,http://www.sandwell.gov.uk/info/200202/performance_and_spending/1079/payments_over_500,01/08/2022,Housing & Communities,CONTRACT LETTINGS LTD,Neighbourhoods,678.60 ,Rents,2223P05_CR00345,76625
Sandwell Metropolitan Borough Council,http://www.sandwell.gov.uk/info/200202/performance_and_spending/1079/payments_over_500,01/08/2022,Housing & Communities,CONTRACT LETTINGS LTD,Neighbourhoods,701.22 ,Rents,2223P05_CR00346,76625
Sandwell Metropolitan Borough Council,http://www.sandwell.gov.uk/info/200202/performance_and_spending/1079/payments_over_500,01/08/2022,Housing & Communities,CONTRACT LETTINGS LTD,Neighbourhoods,738.60 ,Rents,2223P05_CR00347,76625
Sandwell Metropolitan Borough Council,http://www.sandwell.gov.uk/info/200202/performance_and_spending/1079/payments_over_500,01/08/2022,Housing & Communities,CONTRACT LETTINGS LTD,Neighbourhoods,738.60 ,Rents,2223P05_CR00348,76625
Sandwell Metropolitan Borough Council,http://www.sandwell.gov.uk/info/200202/performance_and_spending/1079/payments_over_500,01/08/2022,Housing & Communities,CONTRACT LETTINGS LTD,Neighbourhoods,763.22 ,Rents,2223P05_CR00349,76625
Sandwell Metropolitan Borough Council,http://www.sandwell.gov.uk/info/200202/performance_and_spending/1079/payments_over_500,01/08/2022,Housing & Communities,CONTRACT LETTINGS LTD,Neighbourhoods,763.22 ,Rents,2223P05_CR00350,76625
Sandwell Metropolitan Borough Council,http://www.sandwell.gov.uk/info/200202/performance_and_spending/1079/payments_over_500,22/08/2022,Housing & Communities,CRADLEY HEATH CREATIVE,Neighbourhoods,3435.00 ,Civic Events,2223P05_CR00351,120521
Sandwell Metropolitan Borough Council,http://www.sandwell.gov.uk/info/200202/performance_and_spending/1079/payments_over_500,15/08/2022,Housing & Communities,CREATIVE ACTIVE LIVES CIC,Neighbourhoods,600.00 ,Civic Events,2223P05_CR00352,138641
Sandwell Metropolitan Borough Council,http://www.sandwell.gov.uk/info/200202/performance_and_spending/1079/payments_over_500,01/08/2022,Housing & Communities,CREATIVE ACTIVE LIVES CIC,Neighbourhoods,650.00 ,Civic Events,2223P05_CR00353,138641
Sandwell Metropolitan Borough Council,http://www.sandwell.gov.uk/info/200202/performance_and_spending/1079/payments_over_500,01/08/2022,Housing & Communities,CREATIVE ACTIVE LIVES CIC,Neighbourhoods,1300.00 ,Civic Events,2223P05_CR00354,138641
Sandwell Metropolitan Borough Council,http://www.sandwell.gov.uk/info/200202/performance_and_spending/1079/payments_over_500,01/08/2022,Housing & Communities,CREATIVE ACTIVE LIVES CIC,Neighbourhoods,2650.00 ,Civic Events,2223P05_CR00355,138641
Sandwell Metropolitan Borough Council,http://www.sandwell.gov.uk/info/200202/performance_and_spending/1079/payments_over_500,01/08/2022,Housing & Communities,DOOCEY INFRASTRUCTURE LIMITED,Neighbourhoods,2050.00 ,Operational Services ,2223P05_CR00356,102966
Sandwell Metropolitan Borough Council,http://www.sandwell.gov.uk/info/200202/performance_and_spending/1079/payments_over_500,01/08/2022,Housing & Communities,DORMY HOTEL,Neighbourhoods,525.00 ,Rents,2223P05_CR00357,01737052
Sandwell Metropolitan Borough Council,http://www.sandwell.gov.uk/info/200202/performance_and_spending/1079/payments_over_500,01/08/2022,Housing & Communities,DORMY HOTEL,Neighbourhoods,625.00 ,Rents,2223P05_CR00358,01737052
Sandwell Metropolitan Borough Council,http://www.sandwell.gov.uk/info/200202/performance_and_spending/1079/payments_over_500,01/08/2022,Housing & Communities,DORMY HOTEL,Neighbourhoods,647.57 ,Rents,2223P05_CR00359,01737052
Sandwell Metropolitan Borough Council,http://www.sandwell.gov.uk/info/200202/performance_and_spending/1079/payments_over_500,01/08/2022,Housing & Communities,DORMY HOTEL,Neighbourhoods,693.33 ,Rents,2223P05_CR00360,01737052
Sandwell Metropolitan Borough Council,http://www.sandwell.gov.uk/info/200202/performance_and_spending/1079/payments_over_500,01/08/2022,Housing & Communities,DORMY HOTEL,Neighbourhoods,875.00 ,Rents,2223P05_CR00361,01737052
Sandwell Metropolitan Borough Council,http://www.sandwell.gov.uk/info/200202/performance_and_spending/1079/payments_over_500,01/08/2022,Housing & Communities,DORMY HOTEL,Neighbourhoods,984.01 ,Rents,2223P05_CR00362,01737052
Sandwell Metropolitan Borough Council,http://www.sandwell.gov.uk/info/200202/performance_and_spending/1079/payments_over_500,01/08/2022,Housing & Communities,DORMY HOTEL,Neighbourhoods,1120.00 ,Rents,2223P05_CR00363,01737052
Sandwell Metropolitan Borough Council,http://www.sandwell.gov.uk/info/200202/performance_and_spending/1079/payments_over_500,01/08/2022,Housing & Communities,DORMY HOTEL,Neighbourhoods,1254.17 ,Rents,2223P05_CR00364,01737052
Sandwell Metropolitan Borough Council,http://www.sandwell.gov.uk/info/200202/performance_and_spending/1079/payments_over_500,01/08/2022,Housing & Communities,DORMY HOTEL,Neighbourhoods,1285.56 ,Rents,2223P05_CR00365,01737052
Sandwell Metropolitan Borough Council,http://www.sandwell.gov.uk/info/200202/performance_and_spending/1079/payments_over_500,01/08/2022,Housing & Communities,DORMY HOTEL,Neighbourhoods,1291.67 ,Rents,2223P05_CR00366,01737052
Sandwell Metropolitan Borough Council,http://www.sandwell.gov.uk/info/200202/performance_and_spending/1079/payments_over_500,01/08/2022,Housing & Communities,DORMY HOTEL,Neighbourhoods,1458.33 ,Rents,2223P05_CR00367,01737052
Sandwell Metropolitan Borough Council,http://www.sandwell.gov.uk/info/200202/performance_and_spending/1079/payments_over_500,01/08/2022,Housing & Communities,DORMY HOTEL,Neighbourhoods,1467.16 ,Rents,2223P05_CR00368,01737052
Sandwell Metropolitan Borough Council,http://www.sandwell.gov.uk/info/200202/performance_and_spending/1079/payments_over_500,01/08/2022,Housing & Communities,DORMY HOTEL,Neighbourhoods,1575.00 ,Rents,2223P05_CR00369,01737052
Sandwell Metropolitan Borough Council,http://www.sandwell.gov.uk/info/200202/performance_and_spending/1079/payments_over_500,01/08/2022,Housing & Communities,DORMY HOTEL,Neighbourhoods,2444.44 ,Rents,2223P05_CR00370,01737052
Sandwell Metropolitan Borough Council,http://www.sandwell.gov.uk/info/200202/performance_and_spending/1079/payments_over_500,01/08/2022,Housing & Communities,DORMY HOTEL,Neighbourhoods,2625.00 ,Rents,2223P05_CR00371,01737052
Sandwell Metropolitan Borough Council,http://www.sandwell.gov.uk/info/200202/performance_and_spending/1079/payments_over_500,01/08/2022,Housing & Communities,DORMY HOTEL,Neighbourhoods,3022.01 ,Rents,2223P05_CR00372,01737052
Sandwell Metropolitan Borough Council,http://www.sandwell.gov.uk/info/200202/performance_and_spending/1079/payments_over_500,01/08/2022,Housing & Communities,DORMY HOTEL,Neighbourhoods,3266.67 ,Rents,2223P05_CR00373,01737052
Sandwell Metropolitan Borough Council,http://www.sandwell.gov.uk/info/200202/performance_and_spending/1079/payments_over_500,01/08/2022,Housing & Communities,DORMY HOTEL,Neighbourhoods,3750.00 ,Rents,2223P05_CR00374,01737052
Sandwell Metropolitan Borough Council,http://www.sandwell.gov.uk/info/200202/performance_and_spending/1079/payments_over_500,01/08/2022,Housing & Communities,DORMY HOTEL,Neighbourhoods,3780.00 ,Rents,2223P05_CR00375,01737052
Sandwell Metropolitan Borough Council,http://www.sandwell.gov.uk/info/200202/performance_and_spending/1079/payments_over_500,01/08/2022,Housing & Communities,DORMY HOTEL,Neighbourhoods,4666.67 ,Rents,2223P05_CR00376,01737052
Sandwell Metropolitan Borough Council,http://www.sandwell.gov.uk/info/200202/performance_and_spending/1079/payments_over_500,01/08/2022,Housing & Communities,DORMY HOTEL,Neighbourhoods,5250.00 ,Rents,2223P05_CR00377,01737052
Sandwell Metropolitan Borough Council,http://www.sandwell.gov.uk/info/200202/performance_and_spending/1079/payments_over_500,12/08/2022,Housing & Communities,DR PRINT (UK) LTD,Neighbourhoods,3639.55 ,Equipment & Furniture ,2223P05_CR00378,63228
Sandwell Metropolitan Borough Council,http://www.sandwell.gov.uk/info/200202/performance_and_spending/1079/payments_over_500,05/08/2022,Housing & Communities,EMBLEM PRINT PRODUCTS LTD,Neighbourhoods,540.72 ,Materials & Consumables,2223P05_CR00379,01744823
Sandwell Metropolitan Borough Council,http://www.sandwell.gov.uk/info/200202/performance_and_spending/1079/payments_over_500,01/08/2022,Housing & Communities,EUROPEAN'S WELFARE ASSOCIATION CIC,Housing & Communities,690.00 ,Externally Purchased Professional Services ,2223P05_CR00380,123703
Sandwell Metropolitan Borough Council,http://www.sandwell.gov.uk/info/200202/performance_and_spending/1079/payments_over_500,01/08/2022,Housing & Communities,G & B KENDALL & SONS,Neighbourhoods,560.00 ,Externally Purchased Professional Services ,2223P05_CR00381,01422772
Sandwell Metropolitan Borough Council,http://www.sandwell.gov.uk/info/200202/performance_and_spending/1079/payments_over_500,01/08/2022,Housing & Communities,G & B KENDALL & SONS,Neighbourhoods,2270.00 ,Materials & Consumables,2223P05_CR00382,01422772
Sandwell Metropolitan Borough Council,http://www.sandwell.gov.uk/info/200202/performance_and_spending/1079/payments_over_500,01/08/2022,Housing & Communities,GILANI ENTERPRISES LIMITED,Neighbourhoods,500.00 ,Rents,2223P05_CR00383,2696
Sandwell Metropolitan Borough Council,http://www.sandwell.gov.uk/info/200202/performance_and_spending/1079/payments_over_500,01/08/2022,Housing & Communities,GILANI ENTERPRISES LIMITED,Neighbourhoods,700.00 ,Rents,2223P05_CR00384,2696
Sandwell Metropolitan Borough Council,http://www.sandwell.gov.uk/info/200202/performance_and_spending/1079/payments_over_500,01/08/2022,Housing & Communities,GILANI ENTERPRISES LIMITED,Neighbourhoods,800.00 ,Rents,2223P05_CR00385,2696
Sandwell Metropolitan Borough Council,http://www.sandwell.gov.uk/info/200202/performance_and_spending/1079/payments_over_500,01/08/2022,Housing & Communities,GILANI ENTERPRISES LIMITED,Neighbourhoods,833.33 ,Rents,2223P05_CR00386,2696
Sandwell Metropolitan Borough Council,http://www.sandwell.gov.uk/info/200202/performance_and_spending/1079/payments_over_500,01/08/2022,Housing & Communities,GILANI ENTERPRISES LIMITED,Neighbourhoods,1200.00 ,Rents,2223P05_CR00387,2696
Sandwell Metropolitan Borough Council,http://www.sandwell.gov.uk/info/200202/performance_and_spending/1079/payments_over_500,01/08/2022,Housing & Communities,GILANI ENTERPRISES LIMITED,Neighbourhoods,1200.00 ,Rents,2223P05_CR00388,2696
Sandwell Metropolitan Borough Council,http://www.sandwell.gov.uk/info/200202/performance_and_spending/1079/payments_over_500,01/08/2022,Housing & Communities,GILANI ENTERPRISES LIMITED,Neighbourhoods,1400.00 ,Rents,2223P05_CR00389,2696
Sandwell Metropolitan Borough Council,http://www.sandwell.gov.uk/info/200202/performance_and_spending/1079/payments_over_500,01/08/2022,Housing & Communities,GILANI ENTERPRISES LIMITED,Neighbourhoods,1600.00 ,Rents,2223P05_CR00390,2696
Sandwell Metropolitan Borough Council,http://www.sandwell.gov.uk/info/200202/performance_and_spending/1079/payments_over_500,01/08/2022,Housing & Communities,GILANI ENTERPRISES LIMITED,Neighbourhoods,1708.33 ,Rents,2223P05_CR00391,2696
Sandwell Metropolitan Borough Council,http://www.sandwell.gov.uk/info/200202/performance_and_spending/1079/payments_over_500,01/08/2022,Housing & Communities,GILANI ENTERPRISES LIMITED,Neighbourhoods,1833.33 ,Rents,2223P05_CR00392,2696
Sandwell Metropolitan Borough Council,http://www.sandwell.gov.uk/info/200202/performance_and_spending/1079/payments_over_500,01/08/2022,Housing & Communities,GILANI ENTERPRISES LIMITED,Neighbourhoods,1900.00 ,Rents,2223P05_CR00393,2696
Sandwell Metropolitan Borough Council,http://www.sandwell.gov.uk/info/200202/performance_and_spending/1079/payments_over_500,01/08/2022,Housing & Communities,GILANI ENTERPRISES LIMITED,Neighbourhoods,1900.00 ,Rents,2223P05_CR00394,2696
Sandwell Metropolitan Borough Council,http://www.sandwell.gov.uk/info/200202/performance_and_spending/1079/payments_over_500,01/08/2022,Housing & Communities,GILANI ENTERPRISES LIMITED,Neighbourhoods,1916.67 ,Rents,2223P05_CR00395,2696
Sandwell Metropolitan Borough Council,http://www.sandwell.gov.uk/info/200202/performance_and_spending/1079/payments_over_500,01/08/2022,Housing & Communities,GILANI ENTERPRISES LIMITED,Neighbourhoods,2200.00 ,Rents,2223P05_CR00396,2696
Sandwell Metropolitan Borough Council,http://www.sandwell.gov.uk/info/200202/performance_and_spending/1079/payments_over_500,01/08/2022,Housing & Communities,GILANI ENTERPRISES LIMITED,Neighbourhoods,2333.33 ,Rents,2223P05_CR00397,2696
Sandwell Metropolitan Borough Council,http://www.sandwell.gov.uk/info/200202/performance_and_spending/1079/payments_over_500,01/08/2022,Housing & Communities,GILANI ENTERPRISES LIMITED,Neighbourhoods,2458.33 ,Rents,2223P05_CR00398,2696
Sandwell Metropolitan Borough Council,http://www.sandwell.gov.uk/info/200202/performance_and_spending/1079/payments_over_500,01/08/2022,Housing & Communities,GILANI ENTERPRISES LIMITED,Neighbourhoods,2500.00 ,Rents,2223P05_CR00399,2696
Sandwell Metropolitan Borough Council,http://www.sandwell.gov.uk/info/200202/performance_and_spending/1079/payments_over_500,01/08/2022,Housing & Communities,GILANI ENTERPRISES LIMITED,Neighbourhoods,2700.00 ,Rents,2223P05_CR00400,2696
Sandwell Metropolitan Borough Council,http://www.sandwell.gov.uk/info/200202/performance_and_spending/1079/payments_over_500,01/08/2022,Housing & Communities,GILANI ENTERPRISES LIMITED,Neighbourhoods,3700.00 ,Rents,2223P05_CR00401,2696
Sandwell Metropolitan Borough Council,http://www.sandwell.gov.uk/info/200202/performance_and_spending/1079/payments_over_500,01/08/2022,Housing & Communities,GILANI ENTERPRISES LIMITED,Neighbourhoods,4100.00 ,Rents,2223P05_CR00402,2696
Sandwell Metropolitan Borough Council,http://www.sandwell.gov.uk/info/200202/performance_and_spending/1079/payments_over_500,01/08/2022,Housing & Communities,GILANI ENTERPRISES LIMITED,Neighbourhoods,4200.00 ,Rents,2223P05_CR00403,2696
Sandwell Metropolitan Borough Council,http://www.sandwell.gov.uk/info/200202/performance_and_spending/1079/payments_over_500,01/08/2022,Housing & Communities,GILANI ENTERPRISES LIMITED,Neighbourhoods,5900.00 ,Rents,2223P05_CR00404,2696
Sandwell Metropolitan Borough Council,http://www.sandwell.gov.uk/info/200202/performance_and_spending/1079/payments_over_500,16/08/2022,Housing & Communities,GREENTECH LTD,Neighbourhoods,710.86 ,Materials & Consumables,2223P05_CR00405,163053
Sandwell Metropolitan Borough Council,http://www.sandwell.gov.uk/info/200202/performance_and_spending/1079/payments_over_500,16/08/2022,Housing & Communities,GREENTECH LTD,Neighbourhoods,1408.89 ,Materials & Consumables,2223P05_CR00406,163053
Sandwell Metropolitan Borough Council,http://www.sandwell.gov.uk/info/200202/performance_and_spending/1079/payments_over_500,16/08/2022,Housing & Communities,GREENTECH LTD,Neighbourhoods,2110.48 ,Materials & Consumables,2223P05_CR00407,163053
Sandwell Metropolitan Borough Council,http://www.sandwell.gov.uk/info/200202/performance_and_spending/1079/payments_over_500,08/08/2022,Housing & Communities,GURU NANAK GURDWARA SMETHWICK,Neighbourhoods,4000.00 ,Civic Events,2223P05_CR00408,13023146
Sandwell Metropolitan Borough Council,http://www.sandwell.gov.uk/info/200202/performance_and_spending/1079/payments_over_500,03/08/2022,Housing & Communities,HAYSTOUN CONSTRUCTION LTD,Neighbourhoods,655.52 ,Equipment & Furniture ,2223P05_CR00409,11849
Sandwell Metropolitan Borough Council,http://www.sandwell.gov.uk/info/200202/performance_and_spending/1079/payments_over_500,01/08/2022,Housing & Communities,HAYSTOUN CONSTRUCTION LTD,Neighbourhoods,745.00 ,Equipment & Furniture ,2223P05_CR00410,11849
Sandwell Metropolitan Borough Council,http://www.sandwell.gov.uk/info/200202/performance_and_spending/1079/payments_over_500,11/08/2022,Housing & Communities,HAYSTOUN CONSTRUCTION LTD,Neighbourhoods,1021.61 ,Equipment & Furniture ,2223P05_CR00411,11849
Sandwell Metropolitan Borough Council,http://www.sandwell.gov.uk/info/200202/performance_and_spending/1079/payments_over_500,11/08/2022,Housing & Communities,HAYSTOUN CONSTRUCTION LTD,Neighbourhoods,1192.23 ,Equipment & Furniture ,2223P05_CR00412,11849
Sandwell Metropolitan Borough Council,http://www.sandwell.gov.uk/info/200202/performance_and_spending/1079/payments_over_500,01/08/2022,Housing & Communities,HAYSTOUN CONSTRUCTION LTD,Neighbourhoods,5788.47 ,Equipment & Furniture ,2223P05_CR00413,11849
Sandwell Metropolitan Borough Council,http://www.sandwell.gov.uk/info/200202/performance_and_spending/1079/payments_over_500,01/08/2022,Housing & Communities,HAYSTOUN CONSTRUCTION LTD,Neighbourhoods,7000.00 ,Equipment & Furniture ,2223P05_CR00414,11849
Sandwell Metropolitan Borough Council,http://www.sandwell.gov.uk/info/200202/performance_and_spending/1079/payments_over_500,01/08/2022,Housing & Communities,HAYSTOUN CONSTRUCTION LTD,Neighbourhoods,11674.24 ,Equipment & Furniture ,2223P05_CR00415,11849
Sandwell Metropolitan Borough Council,http://www.sandwell.gov.uk/info/200202/performance_and_spending/1079/payments_over_500,01/08/2022,Housing & Communities,HAYSTOUN CONSTRUCTION LTD,Neighbourhoods,14184.56 ,Equipment & Furniture ,2223P05_CR00416,11849
Sandwell Metropolitan Borough Council,http://www.sandwell.gov.uk/info/200202/performance_and_spending/1079/payments_over_500,11/08/2022,Housing & Communities,HAYSTOUN CONSTRUCTION LTD,Neighbourhoods,1045.00 ,Operational Services ,2223P05_CR00417,11849
Sandwell Metropolitan Borough Council,http://www.sandwell.gov.uk/info/200202/performance_and_spending/1079/payments_over_500,25/07/2022,Housing & Communities,HEARTS AGLOW RECORDS LTD,Neighbourhoods,600.00 ,Materials & Consumables,2223P05_CR00418,163673
Sandwell Metropolitan Borough Council,http://www.sandwell.gov.uk/info/200202/performance_and_spending/1079/payments_over_500,02/08/2022,Housing & Communities,"HIGHFIELD HOUSE HOTEL,",Neighbourhoods,770.00 ,Rents,2223P05_CR00419,162756
Sandwell Metropolitan Borough Council,http://www.sandwell.gov.uk/info/200202/performance_and_spending/1079/payments_over_500,01/08/2022,Housing & Communities,"HIGHFIELD HOUSE HOTEL,",Neighbourhoods,1240.00 ,Rents,2223P05_CR00420,162756
Sandwell Metropolitan Borough Council,http://www.sandwell.gov.uk/info/200202/performance_and_spending/1079/payments_over_500,01/08/2022,Housing & Communities,"HIGHFIELD HOUSE HOTEL,",Neighbourhoods,2255.00 ,Rents,2223P05_CR00421,162756
Sandwell Metropolitan Borough Council,http://www.sandwell.gov.uk/info/200202/performance_and_spending/1079/payments_over_500,01/08/2022,Housing & Communities,"HIGHFIELD HOUSE HOTEL,",Neighbourhoods,2500.00 ,Rents,2223P05_CR00422,162756
Sandwell Metropolitan Borough Council,http://www.sandwell.gov.uk/info/200202/performance_and_spending/1079/payments_over_500,01/08/2022,Housing & Communities,"HIGHFIELD HOUSE HOTEL,",Neighbourhoods,2550.00 ,Rents,2223P05_CR00423,162756
Sandwell Metropolitan Borough Council,http://www.sandwell.gov.uk/info/200202/performance_and_spending/1079/payments_over_500,01/08/2022,Housing & Communities,"HIGHFIELD HOUSE HOTEL,",Neighbourhoods,7350.00 ,Rents,2223P05_CR00424,162756
Sandwell Metropolitan Borough Council,http://www.sandwell.gov.uk/info/200202/performance_and_spending/1079/payments_over_500,01/08/2022,Housing & Communities,HIGHWAY TRAFFIC MANAGEMENT LIMITED,Neighbourhoods,15620.00 ,Operational Services ,2223P05_CR00425,1755
Sandwell Metropolitan Borough Council,http://www.sandwell.gov.uk/info/200202/performance_and_spending/1079/payments_over_500,10/08/2022,Housing & Communities,HIRE STATION LIMITED T/A BRANDON HIRE STATION,Neighbourhoods,1694.50 ,Equipment & Furniture ,2223P05_CR00426,138598
Sandwell Metropolitan Borough Council,http://www.sandwell.gov.uk/info/200202/performance_and_spending/1079/payments_over_500,01/08/2022,Housing & Communities,HIVES AND HONEY,Neighbourhoods,1600.00 ,Civic Events,2223P05_CR00427,150114
Sandwell Metropolitan Borough Council,http://www.sandwell.gov.uk/info/200202/performance_and_spending/1079/payments_over_500,01/08/2022,Housing & Communities,HOME FARM NURSERIES (PINVIN) LIMITED,Neighbourhoods,1798.25 ,Equipment & Furniture ,2223P05_CR00428,77003445
Sandwell Metropolitan Borough Council,http://www.sandwell.gov.uk/info/200202/performance_and_spending/1079/payments_over_500,01/08/2022,Housing & Communities,HOME FARM NURSERIES (PINVIN) LIMITED,Neighbourhoods,1895.48 ,Equipment & Furniture ,2223P05_CR00429,77003445
Sandwell Metropolitan Borough Council,http://www.sandwell.gov.uk/info/200202/performance_and_spending/1079/payments_over_500,02/08/2022,Housing & Communities,INFAMOUS COMMUNITY ARTS,Neighbourhoods,4670.00 ,Civic Events,2223P05_CR00430,102940
Sandwell Metropolitan Borough Council,http://www.sandwell.gov.uk/info/200202/performance_and_spending/1079/payments_over_500,02/08/2022,Housing & Communities,INFAMOUS COMMUNITY ARTS,Neighbourhoods,4980.00 ,Civic Events,2223P05_CR00431,102940
Sandwell Metropolitan Borough Council,http://www.sandwell.gov.uk/info/200202/performance_and_spending/1079/payments_over_500,10/08/2022,Housing & Communities,INTERCLASS PLC,Housing & Communities,27960.63 ,"CIP - New Construction,Conversion, Enhancement & Reno",2223P05_CR00432,77001959
Sandwell Metropolitan Borough Council,http://www.sandwell.gov.uk/info/200202/performance_and_spending/1079/payments_over_500,12/08/2022,Housing & Communities,JAY SECURITY AND EVENTS LIMITED,Neighbourhoods,42053.00 ,Security,2223P05_CR00433,162111
Sandwell Metropolitan Borough Council,http://www.sandwell.gov.uk/info/200202/performance_and_spending/1079/payments_over_500,16/08/2022,Housing & Communities,JULIAN PROPERTIES (MIDLANDS) LTD,Neighbourhoods,500.00 ,Rents,2223P05_CR00434,109909
Sandwell Metropolitan Borough Council,http://www.sandwell.gov.uk/info/200202/performance_and_spending/1079/payments_over_500,18/08/2022,Housing & Communities,MACINTOSH FOODSERVICE SOLUTIONS LTD,Neighbourhoods,5175.00 ,Catering Equipment,2223P05_CR00435,162369
Sandwell Metropolitan Borough Council,http://www.sandwell.gov.uk/info/200202/performance_and_spending/1079/payments_over_500,11/08/2022,Housing & Communities,MACINTOSH FOODSERVICE SOLUTIONS LTD,Neighbourhoods,21686.51 ,Catering Equipment,2223P05_CR00436,162369
Sandwell Metropolitan Borough Council,http://www.sandwell.gov.uk/info/200202/performance_and_spending/1079/payments_over_500,11/08/2022,Housing & Communities,MACINTOSH FOODSERVICE SOLUTIONS LTD,Neighbourhoods,36320.00 ,Catering Equipment,2223P05_CR00437,162369
Sandwell Metropolitan Borough Council,http://www.sandwell.gov.uk/info/200202/performance_and_spending/1079/payments_over_500,01/08/2022,Housing & Communities,MACINTOSH FOODSERVICE SOLUTIONS LTD,Neighbourhoods,8550.00 ,Externally Purchased Professional Services ,2223P05_CR00438,162369
Sandwell Metropolitan Borough Council,http://www.sandwell.gov.uk/info/200202/performance_and_spending/1079/payments_over_500,18/08/2022,Housing & Communities,MANOR ABBEY FOODS LTD,Neighbourhoods,689.10 ,Catering Provisions,2223P05_CR00439,63063
Sandwell Metropolitan Borough Council,http://www.sandwell.gov.uk/info/200202/performance_and_spending/1079/payments_over_500,01/08/2022,Housing & Communities,MANOR ABBEY FOODS LTD,Neighbourhoods,754.10 ,Catering Provisions,2223P05_CR00440,63063
Sandwell Metropolitan Borough Council,http://www.sandwell.gov.uk/info/200202/performance_and_spending/1079/payments_over_500,18/08/2022,Housing & Communities,MANOR ABBEY FOODS LTD,Neighbourhoods,879.91 ,Catering Provisions,2223P05_CR00441,63063
Sandwell Metropolitan Borough Council,http://www.sandwell.gov.uk/info/200202/performance_and_spending/1079/payments_over_500,01/08/2022,Housing & Communities,MANOR ABBEY FOODS LTD,Neighbourhoods,1271.92 ,Catering Provisions,2223P05_CR00442,63063
Sandwell Metropolitan Borough Council,http://www.sandwell.gov.uk/info/200202/performance_and_spending/1079/payments_over_500,18/08/2022,Housing & Communities,MANOR ABBEY FOODS LTD,Neighbourhoods,1961.55 ,Catering Provisions,2223P05_CR00443,63063
Sandwell Metropolitan Borough Council,http://www.sandwell.gov.uk/info/200202/performance_and_spending/1079/payments_over_500,11/08/2022,Housing & Communities,MIDLAND CHILLED FOODS LIMITED,Neighbourhoods,555.39 ,Catering Provisions,2223P05_CR00444,106924
Sandwell Metropolitan Borough Council,http://www.sandwell.gov.uk/info/200202/performance_and_spending/1079/payments_over_500,08/08/2022,Housing & Communities,MIDLAND CHILLED FOODS LIMITED,Neighbourhoods,647.87 ,Catering Provisions,2223P05_CR00445,106924
Sandwell Metropolitan Borough Council,http://www.sandwell.gov.uk/info/200202/performance_and_spending/1079/payments_over_500,11/08/2022,Housing & Communities,MIDLAND CHILLED FOODS LIMITED,Neighbourhoods,739.74 ,Catering Provisions,2223P05_CR00446,106924
Sandwell Metropolitan Borough Council,http://www.sandwell.gov.uk/info/200202/performance_and_spending/1079/payments_over_500,03/08/2022,Housing & Communities,MIDLAND FORESTRY LIMITED,Neighbourhoods,500.00 ,Externally Purchased Professional Services ,2223P05_CR00447,45812
Sandwell Metropolitan Borough Council,http://www.sandwell.gov.uk/info/200202/performance_and_spending/1079/payments_over_500,01/08/2022,Housing & Communities,MIDLAND FORESTRY LIMITED,Neighbourhoods,572.00 ,Externally Purchased Professional Services ,2223P05_CR00448,45812
Sandwell Metropolitan Borough Council,http://www.sandwell.gov.uk/info/200202/performance_and_spending/1079/payments_over_500,02/08/2022,Housing & Communities,MIDLAND FORESTRY LIMITED,Neighbourhoods,585.00 ,Externally Purchased Professional Services ,2223P05_CR00449,45812
Sandwell Metropolitan Borough Council,http://www.sandwell.gov.uk/info/200202/performance_and_spending/1079/payments_over_500,01/08/2022,Housing & Communities,MIDLAND FORESTRY LIMITED,Neighbourhoods,688.00 ,Externally Purchased Professional Services ,2223P05_CR00450,45812
Sandwell Metropolitan Borough Council,http://www.sandwell.gov.uk/info/200202/performance_and_spending/1079/payments_over_500,01/08/2022,Housing & Communities,MIDLAND FORESTRY LIMITED,Neighbourhoods,704.00 ,Externally Purchased Professional Services ,2223P05_CR00451,45812
Sandwell Metropolitan Borough Council,http://www.sandwell.gov.uk/info/200202/performance_and_spending/1079/payments_over_500,03/08/2022,Housing & Communities,MIDLAND FORESTRY LIMITED,Neighbourhoods,800.00 ,Externally Purchased Professional Services ,2223P05_CR00452,45812
Sandwell Metropolitan Borough Council,http://www.sandwell.gov.uk/info/200202/performance_and_spending/1079/payments_over_500,01/08/2022,Housing & Communities,MIDLAND FORESTRY LIMITED,Neighbourhoods,924.00 ,Externally Purchased Professional Services ,2223P05_CR00453,45812
Sandwell Metropolitan Borough Council,http://www.sandwell.gov.uk/info/200202/performance_and_spending/1079/payments_over_500,03/08/2022,Housing & Communities,MIDLAND FORESTRY LIMITED,Neighbourhoods,968.00 ,Externally Purchased Professional Services ,2223P05_CR00454,45812
Sandwell Metropolitan Borough Council,http://www.sandwell.gov.uk/info/200202/performance_and_spending/1079/payments_over_500,03/08/2022,Housing & Communities,MIDLAND FORESTRY LIMITED,Neighbourhoods,1002.00 ,Externally Purchased Professional Services ,2223P05_CR00455,45812
Sandwell Metropolitan Borough Council,http://www.sandwell.gov.uk/info/200202/performance_and_spending/1079/payments_over_500,01/08/2022,Housing & Communities,MIDLAND FORESTRY LIMITED,Neighbourhoods,1056.00 ,Externally Purchased Professional Services ,2223P05_CR00456,45812
Sandwell Metropolitan Borough Council,http://www.sandwell.gov.uk/info/200202/performance_and_spending/1079/payments_over_500,01/08/2022,Housing & Communities,MIDLAND FORESTRY LIMITED,Neighbourhoods,1338.00 ,Externally Purchased Professional Services ,2223P05_CR00457,45812
Sandwell Metropolitan Borough Council,http://www.sandwell.gov.uk/info/200202/performance_and_spending/1079/payments_over_500,03/08/2022,Housing & Communities,MIDLAND FORESTRY LIMITED,Neighbourhoods,1498.00 ,Externally Purchased Professional Services ,2223P05_CR00458,45812
Sandwell Metropolitan Borough Council,http://www.sandwell.gov.uk/info/200202/performance_and_spending/1079/payments_over_500,03/08/2022,Housing & Communities,MIDLAND FORESTRY LIMITED,Neighbourhoods,1836.00 ,Externally Purchased Professional Services ,2223P05_CR00459,45812
Sandwell Metropolitan Borough Council,http://www.sandwell.gov.uk/info/200202/performance_and_spending/1079/payments_over_500,03/08/2022,Housing & Communities,MIDLAND FORESTRY LIMITED,Neighbourhoods,2148.00 ,Externally Purchased Professional Services ,2223P05_CR00460,45812
Sandwell Metropolitan Borough Council,http://www.sandwell.gov.uk/info/200202/performance_and_spending/1079/payments_over_500,01/08/2022,Housing & Communities,MIDLAND FORESTRY LIMITED,Neighbourhoods,10840.00 ,Externally Purchased Professional Services ,2223P05_CR00461,45812
Sandwell Metropolitan Borough Council,http://www.sandwell.gov.uk/info/200202/performance_and_spending/1079/payments_over_500,31/08/2022,Housing & Communities,MIDLAND HEART LIMITED,Neighbourhoods,2379.33 ,Tenants Expenses,2223P05_CR00462,16583
Sandwell Metropolitan Borough Council,http://www.sandwell.gov.uk/info/200202/performance_and_spending/1079/payments_over_500,01/08/2022,Housing & Communities,NAMIB SECURITY LTD,Neighbourhoods,1728.00 ,Waste Disposal Charges,2223P05_CR00463,163703
Sandwell Metropolitan Borough Council,http://www.sandwell.gov.uk/info/200202/performance_and_spending/1079/payments_over_500,01/08/2022,Housing & Communities,NOMIX ENVIRO LTD,Neighbourhoods,1342.00 ,Materials & Consumables,2223P05_CR00464,37313
Sandwell Metropolitan Borough Council,http://www.sandwell.gov.uk/info/200202/performance_and_spending/1079/payments_over_500,01/08/2022,Housing & Communities,PARAGON GROUP UK LTD,Neighbourhoods,510.00 ,"Printing, Stationery & General Office Expenses",2223P05_CR00465,01399104
Sandwell Metropolitan Borough Council,http://www.sandwell.gov.uk/info/200202/performance_and_spending/1079/payments_over_500,01/08/2022,Housing & Communities,PARIS CARPETS FLOORING LTD,Neighbourhoods,1919.24 ,Building Maintenance & Improvements,2223P05_CR00466,163265
Sandwell Metropolitan Borough Council,http://www.sandwell.gov.uk/info/200202/performance_and_spending/1079/payments_over_500,01/08/2022,Housing & Communities,PENHAM EXCEL LIMITED,Neighbourhoods,6200.00 ,Civic Events,2223P05_CR00467,126855
Sandwell Metropolitan Borough Council,http://www.sandwell.gov.uk/info/200202/performance_and_spending/1079/payments_over_500,01/08/2022,Housing & Communities,PENNON WATER SERVICES T/A SOURCE FOR BUSINESS,Neighbourhoods,693.68 ,Water Services,2223P05_CR00468,131726
Sandwell Metropolitan Borough Council,http://www.sandwell.gov.uk/info/200202/performance_and_spending/1079/payments_over_500,01/08/2022,Housing & Communities,PETERS LIMITED,Neighbourhoods,781.70 ,Materials & Consumables,2223P05_CR00469,01059117
Sandwell Metropolitan Borough Council,http://www.sandwell.gov.uk/info/200202/performance_and_spending/1079/payments_over_500,08/08/2022,Housing & Communities,PITCHMARK LTD,Neighbourhoods,2560.00 ,Materials & Consumables,2223P05_CR00470,120374
Sandwell Metropolitan Borough Council,http://www.sandwell.gov.uk/info/200202/performance_and_spending/1079/payments_over_500,01/08/2022,Housing & Communities,POLYGON DAMAGE CONTROL,Neighbourhoods,1161.00 ,Materials & Consumables,2223P05_CR00471,163345
Sandwell Metropolitan Borough Council,http://www.sandwell.gov.uk/info/200202/performance_and_spending/1079/payments_over_500,01/08/2022,Housing & Communities,POWERED BY CAN LTD,Neighbourhoods,3800.00 ,Grant Payments,2223P05_CR00472,116825
Sandwell Metropolitan Borough Council,http://www.sandwell.gov.uk/info/200202/performance_and_spending/1079/payments_over_500,01/08/2022,Housing & Communities,PPL PRS LTD,Neighbourhoods,3709.88 ,Civic Events,2223P05_CR00473,134302
Sandwell Metropolitan Borough Council,http://www.sandwell.gov.uk/info/200202/performance_and_spending/1079/payments_over_500,01/08/2022,Housing & Communities,PRINT DIRECT LIMITED,Neighbourhoods,839.50 ,Advertising & Publicity,2223P05_CR00474,118575
Sandwell Metropolitan Borough Council,http://www.sandwell.gov.uk/info/200202/performance_and_spending/1079/payments_over_500,01/08/2022,Housing & Communities,PROFILE SECURITY SERVICES LTD,Neighbourhoods,9972.74 ,Security,2223P05_CR00475,131253
Sandwell Metropolitan Borough Council,http://www.sandwell.gov.uk/info/200202/performance_and_spending/1079/payments_over_500,01/08/2022,Housing & Communities,PROFILE SECURITY SERVICES LTD,Neighbourhoods,10302.00 ,Security,2223P05_CR00476,131253
Sandwell Metropolitan Borough Council,http://www.sandwell.gov.uk/info/200202/performance_and_spending/1079/payments_over_500,01/08/2022,Housing & Communities,PROFILE SECURITY SERVICES LTD,Neighbourhoods,10336.00 ,Security,2223P05_CR00477,131253
Sandwell Metropolitan Borough Council,http://www.sandwell.gov.uk/info/200202/performance_and_spending/1079/payments_over_500,01/08/2022,Housing & Communities,PROFILE SECURITY SERVICES LTD,Neighbourhoods,10417.60 ,Security,2223P05_CR00478,131253
Sandwell Metropolitan Borough Council,http://www.sandwell.gov.uk/info/200202/performance_and_spending/1079/payments_over_500,01/08/2022,Housing & Communities,PROFILE SECURITY SERVICES LTD,Neighbourhoods,10444.80 ,Security,2223P05_CR00479,131253
Sandwell Metropolitan Borough Council,http://www.sandwell.gov.uk/info/200202/performance_and_spending/1079/payments_over_500,03/08/2022,Housing & Communities,PROMARCO PROMOTIONS LTD,Neighbourhoods,592.00 ,Civic Events,2223P05_CR00480,01577242
Sandwell Metropolitan Borough Council,http://www.sandwell.gov.uk/info/200202/performance_and_spending/1079/payments_over_500,03/08/2022,Housing & Communities,PROMARCO PROMOTIONS LTD,Neighbourhoods,650.00 ,Civic Events,2223P05_CR00481,01577242
Sandwell Metropolitan Borough Council,http://www.sandwell.gov.uk/info/200202/performance_and_spending/1079/payments_over_500,03/08/2022,Housing & Communities,PROMARCO PROMOTIONS LTD,Neighbourhoods,1095.00 ,Civic Events,2223P05_CR00482,01577242
Sandwell Metropolitan Borough Council,http://www.sandwell.gov.uk/info/200202/performance_and_spending/1079/payments_over_500,01/08/2022,Housing & Communities,PROQUEST LLC,Neighbourhoods,7820.61 ,Materials & Consumables,2223P05_CR00483,79665
Sandwell Metropolitan Borough Council,http://www.sandwell.gov.uk/info/200202/performance_and_spending/1079/payments_over_500,01/08/2022,Housing & Communities,Q TECHNICAL SERVICES UK LTD,Neighbourhoods,780.00 ,Equipment & Furniture ,2223P05_CR00484,135645
Sandwell Metropolitan Borough Council,http://www.sandwell.gov.uk/info/200202/performance_and_spending/1079/payments_over_500,01/08/2022,Housing & Communities,READING AGENCY FOR LIBRARIES LTD,Neighbourhoods,1009.40 ,Civic Events,2223P05_CR00485,10863
Sandwell Metropolitan Borough Council,http://www.sandwell.gov.uk/info/200202/performance_and_spending/1079/payments_over_500,01/08/2022,Housing & Communities,READING AGENCY FOR LIBRARIES LTD,Neighbourhoods,2635.00 ,Civic Events,2223P05_CR00486,10863
Sandwell Metropolitan Borough Council,http://www.sandwell.gov.uk/info/200202/performance_and_spending/1079/payments_over_500,03/08/2022,Housing & Communities,RED MOON CONCEPTS LTD,Neighbourhoods,507.83 ,Catering Equipment,2223P05_CR00487,162312
Sandwell Metropolitan Borough Council,http://www.sandwell.gov.uk/info/200202/performance_and_spending/1079/payments_over_500,03/08/2022,Housing & Communities,RED MOON CONCEPTS LTD,Neighbourhoods,514.20 ,Catering Equipment,2223P05_CR00488,162312
Sandwell Metropolitan Borough Council,http://www.sandwell.gov.uk/info/200202/performance_and_spending/1079/payments_over_500,05/08/2022,Housing & Communities,RED MOON CONCEPTS LTD,Neighbourhoods,1287.55 ,Catering Equipment,2223P05_CR00489,162312
Sandwell Metropolitan Borough Council,http://www.sandwell.gov.uk/info/200202/performance_and_spending/1079/payments_over_500,01/08/2022,Housing & Communities,RED MOON CONCEPTS LTD,Neighbourhoods,1574.92 ,Catering Equipment,2223P05_CR00490,162312
Sandwell Metropolitan Borough Council,http://www.sandwell.gov.uk/info/200202/performance_and_spending/1079/payments_over_500,01/08/2022,Housing & Communities,RENAISSANCE CREATIVE DESIGN & PRINT LTD,Neighbourhoods,770.00 ,"Printing, Stationery & General Office Expenses",2223P05_CR00491,97376
Sandwell Metropolitan Borough Council,http://www.sandwell.gov.uk/info/200202/performance_and_spending/1079/payments_over_500,01/08/2022,Housing & Communities,RIGHT TO CARE LTD.,Neighbourhoods,1100.00 ,Rents,2223P05_CR00492,133426
Sandwell Metropolitan Borough Council,http://www.sandwell.gov.uk/info/200202/performance_and_spending/1079/payments_over_500,01/08/2022,Housing & Communities,RIGHT TO CARE LTD.,Neighbourhoods,1217.86 ,Rents,2223P05_CR00493,133426
Sandwell Metropolitan Borough Council,http://www.sandwell.gov.uk/info/200202/performance_and_spending/1079/payments_over_500,01/08/2022,Housing & Communities,RTC MEDICAL SOLUTIONS LTD,Neighbourhoods,660.00 ,Equipment & Furniture ,2223P05_CR00494,163261
Sandwell Metropolitan Borough Council,http://www.sandwell.gov.uk/info/200202/performance_and_spending/1079/payments_over_500,01/08/2022,Housing & Communities,RTC MEDICAL SOLUTIONS LTD,Neighbourhoods,880.00 ,Equipment & Furniture ,2223P05_CR00495,163261
Sandwell Metropolitan Borough Council,http://www.sandwell.gov.uk/info/200202/performance_and_spending/1079/payments_over_500,01/08/2022,Housing & Communities,S & T AUDIO LTD (PMT ONLINE),Neighbourhoods,3206.58 ,Civic Events,2223P05_CR00496,163732
Sandwell Metropolitan Borough Council,http://www.sandwell.gov.uk/info/200202/performance_and_spending/1079/payments_over_500,01/08/2022,Housing & Communities,SANDWELL & WEST BIRMINGHAM HOSPITALS NHS TRUST,Neighbourhoods,7375.00 ,Grant Payments,2223P05_CR00497,1385
Sandwell Metropolitan Borough Council,http://www.sandwell.gov.uk/info/200202/performance_and_spending/1079/payments_over_500,16/08/2022,Housing & Communities,SANDWELL FUNDCO 3 LTD,Neighbourhoods,116009.24 ,SH Payments,2223P05_CR00498,113986
Sandwell Metropolitan Borough Council,http://www.sandwell.gov.uk/info/200202/performance_and_spending/1079/payments_over_500,01/08/2022,Housing & Communities,SANDWELL FUNDCO 3 LTD,Neighbourhoods,116009.24 ,SH Payments,2223P05_CR00499,113986
Sandwell Metropolitan Borough Council,http://www.sandwell.gov.uk/info/200202/performance_and_spending/1079/payments_over_500,09/08/2022,Housing & Communities,SANDWELL LEISURE TRUST,Neighbourhoods,3136.04 ,SH Payments,2223P05_CR00500,23305
Sandwell Metropolitan Borough Council,http://www.sandwell.gov.uk/info/200202/performance_and_spending/1079/payments_over_500,01/08/2022,Housing & Communities,SERCO LIMITED,Neighbourhoods,758.65 ,Waste Disposal Charges,2223P05_CR00501,53771
Sandwell Metropolitan Borough Council,http://www.sandwell.gov.uk/info/200202/performance_and_spending/1079/payments_over_500,01/08/2022,Housing & Communities,SERCO LIMITED,Neighbourhoods,12420.20 ,Waste Disposal Charges,2223P05_CR00502,53771
Sandwell Metropolitan Borough Council,http://www.sandwell.gov.uk/info/200202/performance_and_spending/1079/payments_over_500,01/08/2022,Housing & Communities,SERCO LIMITED,Neighbourhoods,15441.11 ,Waste Disposal Charges,2223P05_CR00503,53771
Sandwell Metropolitan Borough Council,http://www.sandwell.gov.uk/info/200202/performance_and_spending/1079/payments_over_500,01/08/2022,Housing & Communities,SPECTRUM PLASTICS LTD,Neighbourhoods,1138.00 ,"Printing, Stationery & General Office Expenses",2223P05_CR00504,2017
Sandwell Metropolitan Borough Council,http://www.sandwell.gov.uk/info/200202/performance_and_spending/1079/payments_over_500,01/08/2022,Housing & Communities,SPLINTER STUDIOS,Neighbourhoods,700.00 ,Civic Events,2223P05_CR00505,141799
Sandwell Metropolitan Borough Council,http://www.sandwell.gov.uk/info/200202/performance_and_spending/1079/payments_over_500,01/08/2022,Housing & Communities,SPLINTER STUDIOS,Neighbourhoods,1000.00 ,Civic Events,2223P05_CR00506,141799
Sandwell Metropolitan Borough Council,http://www.sandwell.gov.uk/info/200202/performance_and_spending/1079/payments_over_500,01/08/2022,Housing & Communities,STAFFORDSHIRE COUNTY COUNCIL,Neighbourhoods,418563.67 ,Waste Disposal Charges,2223P05_CR00507,01124861
Sandwell Metropolitan Borough Council,http://www.sandwell.gov.uk/info/200202/performance_and_spending/1079/payments_over_500,01/08/2022,Housing & Communities,STAFFORDSHIRE COUNTY COUNCIL,Neighbourhoods,418563.67 ,Waste Disposal Charges,2223P05_CR00508,01124861
Sandwell Metropolitan Borough Council,http://www.sandwell.gov.uk/info/200202/performance_and_spending/1079/payments_over_500,01/08/2022,Housing & Communities,STAFFORDSHIRE COUNTY COUNCIL,Neighbourhoods,418563.67 ,Waste Disposal Charges,2223P05_CR00509,01124861
Sandwell Metropolitan Borough Council,http://www.sandwell.gov.uk/info/200202/performance_and_spending/1079/payments_over_500,01/08/2022,Housing & Communities,STAFFORDSHIRE COUNTY COUNCIL,Neighbourhoods,418563.67 ,Waste Disposal Charges,2223P05_CR00510,01124861
Sandwell Metropolitan Borough Council,http://www.sandwell.gov.uk/info/200202/performance_and_spending/1079/payments_over_500,01/08/2022,Housing & Communities,STUDIO LODGE,Neighbourhoods,1820.00 ,Rents,2223P05_CR00511,138742
Sandwell Metropolitan Borough Council,http://www.sandwell.gov.uk/info/200202/performance_and_spending/1079/payments_over_500,01/08/2022,Housing & Communities,STUDIO LODGE,Neighbourhoods,4725.00 ,Rents,2223P05_CR00512,138742
Sandwell Metropolitan Borough Council,http://www.sandwell.gov.uk/info/200202/performance_and_spending/1079/payments_over_500,05/08/2022,Housing & Communities,STUDIO LODGE,Neighbourhoods,5610.00 ,Rents,2223P05_CR00513,138742
Sandwell Metropolitan Borough Council,http://www.sandwell.gov.uk/info/200202/performance_and_spending/1079/payments_over_500,01/08/2022,Housing & Communities,SUEZ RECYLING AND RECOVERY HOLDINGS UK LTD,Neighbourhoods,2061.11 ,Waste Disposal Charges,2223P05_CR00514,129939
Sandwell Metropolitan Borough Council,http://www.sandwell.gov.uk/info/200202/performance_and_spending/1079/payments_over_500,01/08/2022,Housing & Communities,SURF & TURF INSTANT SHELTERS LIMITED,Neighbourhoods,14875.65 ,Equipment & Furniture ,2223P05_CR00515,111869
Sandwell Metropolitan Borough Council,http://www.sandwell.gov.uk/info/200202/performance_and_spending/1079/payments_over_500,01/08/2022,Housing & Communities,TAYLORMADE CASTINGS LIMITED,Neighbourhoods,660.00 ,Operational Services ,2223P05_CR00516,19578
Sandwell Metropolitan Borough Council,http://www.sandwell.gov.uk/info/200202/performance_and_spending/1079/payments_over_500,01/08/2022,Housing & Communities,TELETRAC NAVMAN (UK) LTD,Neighbourhoods,665.00 ,External Contract Hire,2223P05_CR00517,129341
Sandwell Metropolitan Borough Council,http://www.sandwell.gov.uk/info/200202/performance_and_spending/1079/payments_over_500,01/08/2022,Housing & Communities,TH WHITE LIMITED,Neighbourhoods,1600.00 ,Materials & Consumables,2223P05_CR00518,01774713
Sandwell Metropolitan Borough Council,http://www.sandwell.gov.uk/info/200202/performance_and_spending/1079/payments_over_500,04/08/2022,Housing & Communities,THE OYSTER PARTNERSHIP LTD,Neighbourhoods,4000.00 ,Agency Staff,2223P05_CR00519,148917
Sandwell Metropolitan Borough Council,http://www.sandwell.gov.uk/info/200202/performance_and_spending/1079/payments_over_500,04/08/2022,Housing & Communities,THE OYSTER PARTNERSHIP LTD,Neighbourhoods,8000.00 ,Agency Staff,2223P05_CR00520,148917
Sandwell Metropolitan Borough Council,http://www.sandwell.gov.uk/info/200202/performance_and_spending/1079/payments_over_500,10/08/2022,Housing & Communities,TOTALENERGIES GAS & POWER LTD,Housing & Communities,5823.31 ,"CIP - New Construction,Conversion, Enhancement & Reno",2223P05_CR00521,107605
Sandwell Metropolitan Borough Council,http://www.sandwell.gov.uk/info/200202/performance_and_spending/1079/payments_over_500,02/08/2022,Housing & Communities,TOTALENERGIES GAS & POWER LTD,Housing & Communities,16233.99 ,"CIP - New Construction,Conversion, Enhancement & Reno",2223P05_CR00522,107605
Sandwell Metropolitan Borough Council,http://www.sandwell.gov.uk/info/200202/performance_and_spending/1079/payments_over_500,01/08/2022,Housing & Communities,TOTALENERGIES GAS & POWER LTD,Neighbourhoods,1074.44 ,Electricity,2223P05_CR00523,107605
Sandwell Metropolitan Borough Council,http://www.sandwell.gov.uk/info/200202/performance_and_spending/1079/payments_over_500,01/08/2022,Housing & Communities,TOTALENERGIES GAS & POWER LTD,Neighbourhoods,603.36 ,Gas,2223P05_CR00524,107605
Sandwell Metropolitan Borough Council,http://www.sandwell.gov.uk/info/200202/performance_and_spending/1079/payments_over_500,01/08/2022,Housing & Communities,TRH WALSALL LTD,Neighbourhoods,750.12 ,Rents,2223P05_CR00525,85648
Sandwell Metropolitan Borough Council,http://www.sandwell.gov.uk/info/200202/performance_and_spending/1079/payments_over_500,01/08/2022,Housing & Communities,TRH WALSALL LTD,Neighbourhoods,933.52 ,Rents,2223P05_CR00526,85648
Sandwell Metropolitan Borough Council,http://www.sandwell.gov.uk/info/200202/performance_and_spending/1079/payments_over_500,01/08/2022,Housing & Communities,TRH WALSALL LTD,Neighbourhoods,933.52 ,Rents,2223P05_CR00527,85648
Sandwell Metropolitan Borough Council,http://www.sandwell.gov.uk/info/200202/performance_and_spending/1079/payments_over_500,01/08/2022,Housing & Communities,TRH WALSALL LTD,Neighbourhoods,933.52 ,Rents,2223P05_CR00528,85648
Sandwell Metropolitan Borough Council,http://www.sandwell.gov.uk/info/200202/performance_and_spending/1079/payments_over_500,01/08/2022,Housing & Communities,TRH WALSALL LTD,Neighbourhoods,933.52 ,Rents,2223P05_CR00529,85648
Sandwell Metropolitan Borough Council,http://www.sandwell.gov.uk/info/200202/performance_and_spending/1079/payments_over_500,01/08/2022,Housing & Communities,TRH WALSALL LTD,Neighbourhoods,933.52 ,Rents,2223P05_CR00530,85648
Sandwell Metropolitan Borough Council,http://www.sandwell.gov.uk/info/200202/performance_and_spending/1079/payments_over_500,01/08/2022,Housing & Communities,TRH WALSALL LTD,Neighbourhoods,1275.12 ,Rents,2223P05_CR00531,85648
Sandwell Metropolitan Borough Council,http://www.sandwell.gov.uk/info/200202/performance_and_spending/1079/payments_over_500,01/08/2022,Housing & Communities,TRH WALSALL LTD,Neighbourhoods,1283.52 ,Rents,2223P05_CR00532,85648
Sandwell Metropolitan Borough Council,http://www.sandwell.gov.uk/info/200202/performance_and_spending/1079/payments_over_500,01/08/2022,Housing & Communities,TRH WALSALL LTD,Neighbourhoods,1283.52 ,Rents,2223P05_CR00533,85648
Sandwell Metropolitan Borough Council,http://www.sandwell.gov.uk/info/200202/performance_and_spending/1079/payments_over_500,01/08/2022,Housing & Communities,TRH WALSALL LTD,Neighbourhoods,1533.64 ,Rents,2223P05_CR00534,85648
Sandwell Metropolitan Borough Council,http://www.sandwell.gov.uk/info/200202/performance_and_spending/1079/payments_over_500,01/08/2022,Housing & Communities,TRH WALSALL LTD,Neighbourhoods,2800.56 ,Rents,2223P05_CR00535,85648
Sandwell Metropolitan Borough Council,http://www.sandwell.gov.uk/info/200202/performance_and_spending/1079/payments_over_500,01/08/2022,Housing & Communities,TTS GROUP LTD,Neighbourhoods,934.90 ,Grounds Maintenance & Improvements,2223P05_CR00536,4695
Sandwell Metropolitan Borough Council,http://www.sandwell.gov.uk/info/200202/performance_and_spending/1079/payments_over_500,01/08/2022,Housing & Communities,VENDAID LTD,Neighbourhoods,516.94 ,Catering Provisions,2223P05_CR00537,01045695
Sandwell Metropolitan Borough Council,http://www.sandwell.gov.uk/info/200202/performance_and_spending/1079/payments_over_500,01/08/2022,Housing & Communities,WATER PLUS SELECT LIMITED,Neighbourhoods,670.97 ,Water Services,2223P05_CR00538,129644
Sandwell Metropolitan Borough Council,http://www.sandwell.gov.uk/info/200202/performance_and_spending/1079/payments_over_500,01/08/2022,Housing & Communities,WATER PLUS SELECT LIMITED,Neighbourhoods,782.52 ,Water Services,2223P05_CR00539,129644
Sandwell Metropolitan Borough Council,http://www.sandwell.gov.uk/info/200202/performance_and_spending/1079/payments_over_500,01/08/2022,Housing & Communities,WATER PLUS SELECT LIMITED,Neighbourhoods,944.17 ,Water Services,2223P05_CR00540,129644
Sandwell Metropolitan Borough Council,http://www.sandwell.gov.uk/info/200202/performance_and_spending/1079/payments_over_500,01/08/2022,Housing & Communities,WATES CONSTRUCTION LTD                             ,Housing & Communities,308419.87 ,"CIP - New Construction,Conversion, Enhancement & Reno",2223P05_CR00541,77000882
Sandwell Metropolitan Borough Council,http://www.sandwell.gov.uk/info/200202/performance_and_spending/1079/payments_over_500,17/08/2022,Housing & Communities,WATES CONSTRUCTION LTD                          ,Housing & Communities,309322.53 ,"CIP - New Construction,Conversion, Enhancement & Reno",2223P05_CR00542,77000882
Sandwell Metropolitan Borough Council,http://www.sandwell.gov.uk/info/200202/performance_and_spending/1079/payments_over_500,01/08/2022,Housing & Communities,WEST MIDLANDS MARQUEES,Neighbourhoods,3900.00 ,Equipment & Furniture ,2223P05_CR00543,134805
Sandwell Metropolitan Borough Council,http://www.sandwell.gov.uk/info/200202/performance_and_spending/1079/payments_over_500,01/08/2022,Housing & Communities,WOODBERRY OF LEAMINGTON SPA,Neighbourhoods,660.00 ,Equipment & Furniture ,2223P05_CR00544,123734
Sandwell Metropolitan Borough Council,http://www.sandwell.gov.uk/info/200202/performance_and_spending/1079/payments_over_500,01/08/2022,Housing & Communities,WYNNSTAY (AGRICULTURAL SUPPLIES) LIMITED,Neighbourhoods,984.16 ,Externally Purchased Professional Services ,2223P05_CR00545,121165
Sandwell Metropolitan Borough Council,http://www.sandwell.gov.uk/info/200202/performance_and_spending/1079/payments_over_500,01/08/2022,Housing & Communities,WYNNSTAY (AGRICULTURAL SUPPLIES) LIMITED,Neighbourhoods,1126.04 ,Externally Purchased Professional Services ,2223P05_CR00546,121165
Sandwell Metropolitan Borough Council,http://www.sandwell.gov.uk/info/200202/performance_and_spending/1079/payments_over_500,01/08/2022,Housing & Communities,WYNNSTAY (AGRICULTURAL SUPPLIES) LIMITED,Neighbourhoods,2185.45 ,Externally Purchased Professional Services ,2223P05_CR00547,121165
Sandwell Metropolitan Borough Council,http://www.sandwell.gov.uk/info/200202/performance_and_spending/1079/payments_over_500,01/08/2022,Housing & Communities,WYNNSTAY (AGRICULTURAL SUPPLIES) LIMITED,Neighbourhoods,909.24 ,Materials & Consumables,2223P05_CR00548,121165
Sandwell Metropolitan Borough Council,http://www.sandwell.gov.uk/info/200202/performance_and_spending/1079/payments_over_500,01/08/2022,Housing & Communities,WARDELL ARMSTRONG,Neighbourhoods,1595.00 ,Consultancy,2223P05_CR00549,10331
Sandwell Metropolitan Borough Council,http://www.sandwell.gov.uk/info/200202/performance_and_spending/1079/payments_over_500,01/08/2022,Housing & Communities,WARDELL ARMSTRONG,Neighbourhoods,1085.00 ,Consultancy,2223P05_CR00550,10331
Sandwell Metropolitan Borough Council,http://www.sandwell.gov.uk/info/200202/performance_and_spending/1079/payments_over_500,25/08/2022,Housing & Communities,REDACTED PERSONAL DATA,Neighbourhoods,8000.00 ,Rents,2223P05_CR00551,REDACTED PERSONAL DATA
Sandwell Metropolitan Borough Council,http://www.sandwell.gov.uk/info/200202/performance_and_spending/1079/payments_over_500,31/08/2022,Housing & Communities,REDACTED PERSONAL DATA,Housing & Communities,700.00 ,Rents,2223P05_CR00552,REDACTED PERSONAL DATA
Sandwell Metropolitan Borough Council,http://www.sandwell.gov.uk/info/200202/performance_and_spending/1079/payments_over_500,02/08/2022,Housing & Communities,RANBIR KAUR.,Neighbourhoods,1100.00 ,Civic Events,2223P05_CR00553,163114
Sandwell Metropolitan Borough Council,http://www.sandwell.gov.uk/info/200202/performance_and_spending/1079/payments_over_500,02/08/2022,Housing & Communities,RANBIR KAUR.,Neighbourhoods,1100.00 ,Civic Events,2223P05_CR00554,163114
Sandwell Metropolitan Borough Council,http://www.sandwell.gov.uk/info/200202/performance_and_spending/1079/payments_over_500,02/08/2022,Housing & Communities,RANBIR KAUR.,Neighbourhoods,1100.00 ,Civic Events,2223P05_CR00555,163114
Sandwell Metropolitan Borough Council,http://www.sandwell.gov.uk/info/200202/performance_and_spending/1079/payments_over_500,02/08/2022,Housing & Communities,RANBIR KAUR.,Neighbourhoods,1100.00 ,Civic Events,2223P05_CR00556,163114
Sandwell Metropolitan Borough Council,http://www.sandwell.gov.uk/info/200202/performance_and_spending/1079/payments_over_500,02/08/2022,Housing & Communities,RANBIR KAUR.,Neighbourhoods,750.00 ,Civic Events,2223P05_CR00557,163114
Sandwell Metropolitan Borough Council,http://www.sandwell.gov.uk/info/200202/performance_and_spending/1079/payments_over_500,12/08/2022,Housing & Communities,TREVOR CAMPBELL,Neighbourhoods,720.00 ,Civic Events,2223P05_CR00558,163876
Sandwell Metropolitan Borough Council,http://www.sandwell.gov.uk/info/200202/performance_and_spending/1079/payments_over_500,01/08/2022,Housing & Communities,BEN WETHERILL,Neighbourhoods,1040.00 ,Externally Purchased Professional Services ,2223P05_CR00559,155066
Sandwell Metropolitan Borough Council,http://www.sandwell.gov.uk/info/200202/performance_and_spending/1079/payments_over_500,05/08/2022,Housing & Communities,WAFER HADLEY,Neighbourhoods,1000.00 ,Consultancy,2223P05_CR00560,136196
Sandwell Metropolitan Borough Council,http://www.sandwell.gov.uk/info/200202/performance_and_spending/1079/payments_over_500,01/08/2022,Housing & Communities,MICHELLE CAIN,Neighbourhoods,2215.00 ,Externally Purchased Professional Services ,2223P05_CR00561,163632
Sandwell Metropolitan Borough Council,http://www.sandwell.gov.uk/info/200202/performance_and_spending/1079/payments_over_500,01/08/2022,Housing & Communities,PETER KIRKHAM,Housing & Communities,4378.70 ,Externally Purchased Professional Services ,2223P05_CR00562,136988
Sandwell Metropolitan Borough Council,http://www.sandwell.gov.uk/info/200202/performance_and_spending/1079/payments_over_500,26/08/2022,Housing & Communities,A E HUDSON,Neighbourhoods,500.00 ,Rents,2223P05_CR00563,107342
Sandwell Metropolitan Borough Council,http://www.sandwell.gov.uk/info/200202/performance_and_spending/1079/payments_over_500,26/08/2022,Housing & Communities,A PRASHER,Neighbourhoods,500.00 ,Rents,2223P05_CR00564,112229
Sandwell Metropolitan Borough Council,http://www.sandwell.gov.uk/info/200202/performance_and_spending/1079/payments_over_500,26/08/2022,Housing & Communities,BALIJIT KAUR,Neighbourhoods,500.00 ,Rents,2223P05_CR00565,101860
Sandwell Metropolitan Borough Council,http://www.sandwell.gov.uk/info/200202/performance_and_spending/1079/payments_over_500,26/08/2022,Housing & Communities,BALWANT SINGH,Neighbourhoods,500.00 ,Rents,2223P05_CR00566,84433
Sandwell Metropolitan Borough Council,http://www.sandwell.gov.uk/info/200202/performance_and_spending/1079/payments_over_500,26/08/2022,Housing & Communities,C M REID,Neighbourhoods,500.00 ,Rents,2223P05_CR00567,106129
Sandwell Metropolitan Borough Council,http://www.sandwell.gov.uk/info/200202/performance_and_spending/1079/payments_over_500,26/08/2022,Housing & Communities,CHRISTINE ANN CADDEN,Neighbourhoods,500.00 ,Rents,2223P05_CR00568,112728
Sandwell Metropolitan Borough Council,http://www.sandwell.gov.uk/info/200202/performance_and_spending/1079/payments_over_500,26/08/2022,Housing & Communities,ELEANOR MCGEE,Neighbourhoods,550.00 ,Rents,2223P05_CR00569,109162
Sandwell Metropolitan Borough Council,http://www.sandwell.gov.uk/info/200202/performance_and_spending/1079/payments_over_500,26/08/2022,Housing & Communities,J S GARCHA,Neighbourhoods,500.00 ,Rents,2223P05_CR00570,106491
Sandwell Metropolitan Borough Council,http://www.sandwell.gov.uk/info/200202/performance_and_spending/1079/payments_over_500,26/08/2022,Housing & Communities,K PAREKH,Neighbourhoods,550.00 ,Rents,2223P05_CR00571,43404
Sandwell Metropolitan Borough Council,http://www.sandwell.gov.uk/info/200202/performance_and_spending/1079/payments_over_500,26/08/2022,Housing & Communities,LORNA DOUGLAS,Neighbourhoods,550.00 ,Rents,2223P05_CR00572,124809
Sandwell Metropolitan Borough Council,http://www.sandwell.gov.uk/info/200202/performance_and_spending/1079/payments_over_500,26/08/2022,Housing & Communities,MOHANAD ABBAS,Neighbourhoods,550.00 ,Rents,2223P05_CR00573,108876
Sandwell Metropolitan Borough Council,http://www.sandwell.gov.uk/info/200202/performance_and_spending/1079/payments_over_500,26/08/2022,Housing & Communities,NARINDER SINGH ,Neighbourhoods,500.00 ,Rents,2223P05_CR00574,114091
Sandwell Metropolitan Borough Council,http://www.sandwell.gov.uk/info/200202/performance_and_spending/1079/payments_over_500,26/08/2022,Housing & Communities,SAKANDAR SINGH,Neighbourhoods,1000.00 ,Rents,2223P05_CR00575,117913
Sandwell Metropolitan Borough Council,http://www.sandwell.gov.uk/info/200202/performance_and_spending/1079/payments_over_500,11/08/2022,Housing & Communities,SANDWELL AFRICAN CARIBBEAN MH FOUN,Neighbourhoods,5520.96 ,Grant Payments,2223P05_CR00576,01620937
Sandwell Metropolitan Borough Council,http://www.sandwell.gov.uk/info/200202/performance_and_spending/1079/payments_over_500,01/08/2022,Housing Revenue Account Capital,AXIS EUROPE PLC                                                          ,Housing Revenue Account Capital,3640.00 ,Deferred Charges/Grant Payments,2223P05_CR00577,64946
Sandwell Metropolitan Borough Council,http://www.sandwell.gov.uk/info/200202/performance_and_spending/1079/payments_over_500,01/08/2022,Housing Revenue Account Capital,AXIS EUROPE PLC                                                          ,Housing Revenue Account Capital,5767.82 ,Deferred Charges/Grant Payments,2223P05_CR00578,64946
Sandwell Metropolitan Borough Council,http://www.sandwell.gov.uk/info/200202/performance_and_spending/1079/payments_over_500,01/08/2022,Housing Revenue Account Capital,AXIS EUROPE PLC                                                          ,Housing Revenue Account Capital,6041.57 ,Deferred Charges/Grant Payments,2223P05_CR00579,64946
Sandwell Metropolitan Borough Council,http://www.sandwell.gov.uk/info/200202/performance_and_spending/1079/payments_over_500,01/08/2022,Housing Revenue Account Capital,AXIS EUROPE PLC                                                          ,Housing Revenue Account Capital,6247.12 ,Deferred Charges/Grant Payments,2223P05_CR00580,64946
Sandwell Metropolitan Borough Council,http://www.sandwell.gov.uk/info/200202/performance_and_spending/1079/payments_over_500,01/08/2022,Housing Revenue Account Capital,AXIS EUROPE PLC                                                          ,Housing Revenue Account Capital,6463.00 ,Deferred Charges/Grant Payments,2223P05_CR00581,64946
Sandwell Metropolitan Borough Council,http://www.sandwell.gov.uk/info/200202/performance_and_spending/1079/payments_over_500,02/08/2022,Housing Revenue Account Capital,AXIS EUROPE PLC                                                          ,Housing Revenue Account Capital,6469.72 ,Deferred Charges/Grant Payments,2223P05_CR00582,64946
Sandwell Metropolitan Borough Council,http://www.sandwell.gov.uk/info/200202/performance_and_spending/1079/payments_over_500,01/08/2022,Housing Revenue Account Capital,AXIS EUROPE PLC                                                          ,Housing Revenue Account Capital,6778.45 ,Deferred Charges/Grant Payments,2223P05_CR00583,64946
Sandwell Metropolitan Borough Council,http://www.sandwell.gov.uk/info/200202/performance_and_spending/1079/payments_over_500,01/08/2022,Housing Revenue Account Capital,AXIS EUROPE PLC                                                          ,Housing Revenue Account Capital,7071.95 ,Deferred Charges/Grant Payments,2223P05_CR00584,64946
Sandwell Metropolitan Borough Council,http://www.sandwell.gov.uk/info/200202/performance_and_spending/1079/payments_over_500,01/08/2022,Housing Revenue Account Capital,AXIS EUROPE PLC                                                          ,Housing Revenue Account Capital,7491.06 ,Deferred Charges/Grant Payments,2223P05_CR00585,64946
Sandwell Metropolitan Borough Council,http://www.sandwell.gov.uk/info/200202/performance_and_spending/1079/payments_over_500,01/08/2022,Housing Revenue Account Capital,AXIS EUROPE PLC                                                          ,Housing Revenue Account Capital,8084.71 ,Deferred Charges/Grant Payments,2223P05_CR00586,64946
Sandwell Metropolitan Borough Council,http://www.sandwell.gov.uk/info/200202/performance_and_spending/1079/payments_over_500,18/08/2022,Housing Revenue Account Capital,AXIS EUROPE PLC                                                          ,Housing Revenue Account Capital,28342.26 ,Deferred Charges/Grant Payments,2223P05_CR00587,64946
Sandwell Metropolitan Borough Council,http://www.sandwell.gov.uk/info/200202/performance_and_spending/1079/payments_over_500,18/08/2022,Housing Revenue Account Capital,AXIS EUROPE PLC                                                          ,Housing Revenue Account Capital,44020.84 ,Deferred Charges/Grant Payments,2223P05_CR00588,64946
Sandwell Metropolitan Borough Council,http://www.sandwell.gov.uk/info/200202/performance_and_spending/1079/payments_over_500,18/08/2022,Housing Revenue Account Capital,DOLPHIN LIFTS MIDLANDS LTD,Housing Revenue Account Capital,1300.00 ,Deferred Charges/Grant Payments,2223P05_CR00589,123852
Sandwell Metropolitan Borough Council,http://www.sandwell.gov.uk/info/200202/performance_and_spending/1079/payments_over_500,18/08/2022,Housing Revenue Account Capital,DOLPHIN LIFTS MIDLANDS LTD,Housing Revenue Account Capital,1370.40 ,Deferred Charges/Grant Payments,2223P05_CR00590,123852
Sandwell Metropolitan Borough Council,http://www.sandwell.gov.uk/info/200202/performance_and_spending/1079/payments_over_500,02/08/2022,Housing Revenue Account Capital,DOLPHIN LIFTS MIDLANDS LTD,Housing Revenue Account Capital,1466.66 ,Deferred Charges/Grant Payments,2223P05_CR00591,123852
Sandwell Metropolitan Borough Council,http://www.sandwell.gov.uk/info/200202/performance_and_spending/1079/payments_over_500,01/08/2022,Housing Revenue Account Capital,DOLPHIN LIFTS MIDLANDS LTD,Housing Revenue Account Capital,1844.00 ,Deferred Charges/Grant Payments,2223P05_CR00592,123852
Sandwell Metropolitan Borough Council,http://www.sandwell.gov.uk/info/200202/performance_and_spending/1079/payments_over_500,01/08/2022,Housing Revenue Account Capital,DOLPHIN LIFTS MIDLANDS LTD,Housing Revenue Account Capital,1852.26 ,Deferred Charges/Grant Payments,2223P05_CR00593,123852
Sandwell Metropolitan Borough Council,http://www.sandwell.gov.uk/info/200202/performance_and_spending/1079/payments_over_500,01/08/2022,Housing Revenue Account Capital,DOLPHIN LIFTS MIDLANDS LTD,Housing Revenue Account Capital,3282.66 ,Deferred Charges/Grant Payments,2223P05_CR00594,123852
Sandwell Metropolitan Borough Council,http://www.sandwell.gov.uk/info/200202/performance_and_spending/1079/payments_over_500,01/08/2022,Housing Revenue Account Capital,DOLPHIN LIFTS MIDLANDS LTD,Housing Revenue Account Capital,6161.60 ,Deferred Charges/Grant Payments,2223P05_CR00595,123852
Sandwell Metropolitan Borough Council,http://www.sandwell.gov.uk/info/200202/performance_and_spending/1079/payments_over_500,01/08/2022,Housing Revenue Account Capital,DOLPHIN LIFTS MIDLANDS LTD,Housing Revenue Account Capital,6327.00 ,Deferred Charges/Grant Payments,2223P05_CR00596,123852
Sandwell Metropolitan Borough Council,http://www.sandwell.gov.uk/info/200202/performance_and_spending/1079/payments_over_500,01/08/2022,Housing Revenue Account Capital,DOLPHIN LIFTS MIDLANDS LTD,Housing Revenue Account Capital,6441.66 ,Deferred Charges/Grant Payments,2223P05_CR00597,123852
Sandwell Metropolitan Borough Council,http://www.sandwell.gov.uk/info/200202/performance_and_spending/1079/payments_over_500,02/08/2022,Housing Revenue Account Capital,J A BEDWARD & SON                                              ,Housing Revenue Account Capital,2597.80 ,Deferred Charges/Grant Payments,2223P05_CR00598,77001727
Sandwell Metropolitan Borough Council,http://www.sandwell.gov.uk/info/200202/performance_and_spending/1079/payments_over_500,02/08/2022,Housing Revenue Account Capital,J A BEDWARD & SON                                                ,Housing Revenue Account Capital,7000.00 ,Deferred Charges/Grant Payments,2223P05_CR00599,77001727
Sandwell Metropolitan Borough Council,http://www.sandwell.gov.uk/info/200202/performance_and_spending/1079/payments_over_500,04/08/2022,Housing Revenue Account Capital,J.HARPER & SONS (LEOMINSTER) LIMITED,Housing Revenue Account Capital,100177.90 ,"CIP - New Construction,Conversion, Enhancement & Reno",2223P05_CR00600,111814
Sandwell Metropolitan Borough Council,http://www.sandwell.gov.uk/info/200202/performance_and_spending/1079/payments_over_500,01/08/2022,Housing Revenue Account Capital,LIFT & ENGINEERING SERVICES LTD,Housing Revenue Account Capital,732.88 ,CIP - Fixtures & Fittings,2223P05_CR00601,77003962
Sandwell Metropolitan Borough Council,http://www.sandwell.gov.uk/info/200202/performance_and_spending/1079/payments_over_500,01/08/2022,Housing Revenue Account Capital,LIFT & ENGINEERING SERVICES LTD,Housing Revenue Account Capital,801.17 ,CIP - Fixtures & Fittings,2223P05_CR00602,77003962
Sandwell Metropolitan Borough Council,http://www.sandwell.gov.uk/info/200202/performance_and_spending/1079/payments_over_500,01/08/2022,Housing Revenue Account Capital,LIFT & ENGINEERING SERVICES LTD,Housing Revenue Account Capital,6416.42 ,CIP - Fixtures & Fittings,2223P05_CR00603,77003962
Sandwell Metropolitan Borough Council,http://www.sandwell.gov.uk/info/200202/performance_and_spending/1079/payments_over_500,01/08/2022,Housing Revenue Account Capital,LOVELL PARTNERSHIPS  LTD,Housing Revenue Account Capital,4941.88 ,"CIP - New Construction,Conversion, Enhancement & Reno",2223P05_CR00604,77007398
Sandwell Metropolitan Borough Council,http://www.sandwell.gov.uk/info/200202/performance_and_spending/1079/payments_over_500,01/08/2022,Housing Revenue Account Capital,LOVELL PARTNERSHIPS  LTD,Housing Revenue Account Capital,30534.69 ,"CIP - New Construction,Conversion, Enhancement & Reno",2223P05_CR00605,77007398
Sandwell Metropolitan Borough Council,http://www.sandwell.gov.uk/info/200202/performance_and_spending/1079/payments_over_500,01/08/2022,Housing Revenue Account Capital,LOVELL PARTNERSHIPS  LTD,Housing Revenue Account Capital,232752.79 ,"CIP - New Construction,Conversion, Enhancement & Reno",2223P05_CR00606,77007398
Sandwell Metropolitan Borough Council,http://www.sandwell.gov.uk/info/200202/performance_and_spending/1079/payments_over_500,01/08/2022,Housing Revenue Account Capital,LOVELL PARTNERSHIPS  LTD,Housing Revenue Account Capital,261588.15 ,"CIP - New Construction,Conversion, Enhancement & Reno",2223P05_CR00607,77007398
Sandwell Metropolitan Borough Council,http://www.sandwell.gov.uk/info/200202/performance_and_spending/1079/payments_over_500,01/08/2022,Housing Revenue Account Capital,LOVELL PARTNERSHIPS  LTD,Housing Revenue Account Capital,592834.87 ,"CIP - New Construction,Conversion, Enhancement & Reno",2223P05_CR00608,77007398
Sandwell Metropolitan Borough Council,http://www.sandwell.gov.uk/info/200202/performance_and_spending/1079/payments_over_500,03/08/2022,Housing Revenue Account Capital,MOVECORP HOLDINGS LTD,Housing Revenue Account Capital,590.00 ,Hire of Facilities,2223P05_CR00609,152623
Sandwell Metropolitan Borough Council,http://www.sandwell.gov.uk/info/200202/performance_and_spending/1079/payments_over_500,03/08/2022,Housing Revenue Account Capital,PARCOR LTD,Housing Revenue Account Capital,8407.50 ,"CIP - New Construction,Conversion, Enhancement & Reno",2223P05_CR00610,163117
Sandwell Metropolitan Borough Council,http://www.sandwell.gov.uk/info/200202/performance_and_spending/1079/payments_over_500,01/08/2022,Housing Revenue Account Capital,POWRED HEATING COMPONENTS LIMITED,Housing Revenue Account Capital,995.90 ,Materials & Consumables,2223P05_CR00611,133978
Sandwell Metropolitan Borough Council,http://www.sandwell.gov.uk/info/200202/performance_and_spending/1079/payments_over_500,01/08/2022,Housing Revenue Account Capital,POWRED HEATING COMPONENTS LIMITED,Housing Revenue Account Capital,1000.28 ,Materials & Consumables,2223P05_CR00612,133978
Sandwell Metropolitan Borough Council,http://www.sandwell.gov.uk/info/200202/performance_and_spending/1079/payments_over_500,01/08/2022,Housing Revenue Account Capital,POWRED HEATING COMPONENTS LIMITED,Housing Revenue Account Capital,3851.99 ,Materials & Consumables,2223P05_CR00613,133978
Sandwell Metropolitan Borough Council,http://www.sandwell.gov.uk/info/200202/performance_and_spending/1079/payments_over_500,01/08/2022,Housing Revenue Account Capital,POWRED HEATING COMPONENTS LIMITED,Housing Revenue Account Capital,3928.97 ,Materials & Consumables,2223P05_CR00614,133978
Sandwell Metropolitan Borough Council,http://www.sandwell.gov.uk/info/200202/performance_and_spending/1079/payments_over_500,01/08/2022,Housing Revenue Account Capital,POWRED HEATING COMPONENTS LIMITED,Housing Revenue Account Capital,4473.23 ,Materials & Consumables,2223P05_CR00615,133978
Sandwell Metropolitan Borough Council,http://www.sandwell.gov.uk/info/200202/performance_and_spending/1079/payments_over_500,08/08/2022,Housing Revenue Account Capital,POWRED HEATING COMPONENTS LIMITED,Housing Revenue Account Capital,4962.15 ,Materials & Consumables,2223P05_CR00616,133978
Sandwell Metropolitan Borough Council,http://www.sandwell.gov.uk/info/200202/performance_and_spending/1079/payments_over_500,06/08/2022,Housing Revenue Account Capital,POWRED HEATING COMPONENTS LIMITED,Housing Revenue Account Capital,5217.86 ,Materials & Consumables,2223P05_CR00617,133978
Sandwell Metropolitan Borough Council,http://www.sandwell.gov.uk/info/200202/performance_and_spending/1079/payments_over_500,01/08/2022,Housing Revenue Account Capital,POWRED HEATING COMPONENTS LIMITED,Housing Revenue Account Capital,6983.25 ,Materials & Consumables,2223P05_CR00618,133978
Sandwell Metropolitan Borough Council,http://www.sandwell.gov.uk/info/200202/performance_and_spending/1079/payments_over_500,01/08/2022,Housing Revenue Account Capital,PR PROPERTY MAINTENANCE,Housing Revenue Account Capital,665.00 ,Deferred Charges/Grant Payments,2223P05_CR00619,33836
Sandwell Metropolitan Borough Council,http://www.sandwell.gov.uk/info/200202/performance_and_spending/1079/payments_over_500,01/08/2022,Housing Revenue Account Capital,PR PROPERTY MAINTENANCE,Housing Revenue Account Capital,5557.49 ,Deferred Charges/Grant Payments,2223P05_CR00620,33836
Sandwell Metropolitan Borough Council,http://www.sandwell.gov.uk/info/200202/performance_and_spending/1079/payments_over_500,01/08/2022,Housing Revenue Account Capital,PR PROPERTY MAINTENANCE,Housing Revenue Account Capital,6132.78 ,Deferred Charges/Grant Payments,2223P05_CR00621,33836
Sandwell Metropolitan Borough Council,http://www.sandwell.gov.uk/info/200202/performance_and_spending/1079/payments_over_500,01/08/2022,Housing Revenue Account Capital,PR PROPERTY MAINTENANCE,Housing Revenue Account Capital,6334.95 ,Deferred Charges/Grant Payments,2223P05_CR00622,33836
Sandwell Metropolitan Borough Council,http://www.sandwell.gov.uk/info/200202/performance_and_spending/1079/payments_over_500,01/08/2022,Housing Revenue Account Capital,PR PROPERTY MAINTENANCE,Housing Revenue Account Capital,7030.72 ,Deferred Charges/Grant Payments,2223P05_CR00623,33836
Sandwell Metropolitan Borough Council,http://www.sandwell.gov.uk/info/200202/performance_and_spending/1079/payments_over_500,01/08/2022,Housing Revenue Account Capital,PR PROPERTY MAINTENANCE,Housing Revenue Account Capital,7076.38 ,Deferred Charges/Grant Payments,2223P05_CR00624,33836
Sandwell Metropolitan Borough Council,http://www.sandwell.gov.uk/info/200202/performance_and_spending/1079/payments_over_500,01/08/2022,Housing Revenue Account Capital,PR PROPERTY MAINTENANCE,Housing Revenue Account Capital,7231.01 ,Deferred Charges/Grant Payments,2223P05_CR00625,33836
Sandwell Metropolitan Borough Council,http://www.sandwell.gov.uk/info/200202/performance_and_spending/1079/payments_over_500,01/08/2022,Housing Revenue Account Capital,PR PROPERTY MAINTENANCE,Housing Revenue Account Capital,7296.20 ,Deferred Charges/Grant Payments,2223P05_CR00626,33836
Sandwell Metropolitan Borough Council,http://www.sandwell.gov.uk/info/200202/performance_and_spending/1079/payments_over_500,01/08/2022,Housing Revenue Account Capital,PR PROPERTY MAINTENANCE,Housing Revenue Account Capital,7388.35 ,Deferred Charges/Grant Payments,2223P05_CR00627,33836
Sandwell Metropolitan Borough Council,http://www.sandwell.gov.uk/info/200202/performance_and_spending/1079/payments_over_500,01/08/2022,Housing Revenue Account Capital,PR PROPERTY MAINTENANCE,Housing Revenue Account Capital,7828.06 ,Deferred Charges/Grant Payments,2223P05_CR00628,33836
Sandwell Metropolitan Borough Council,http://www.sandwell.gov.uk/info/200202/performance_and_spending/1079/payments_over_500,01/08/2022,Housing Revenue Account Capital,PR PROPERTY MAINTENANCE,Housing Revenue Account Capital,7879.79 ,Deferred Charges/Grant Payments,2223P05_CR00629,33836
Sandwell Metropolitan Borough Council,http://www.sandwell.gov.uk/info/200202/performance_and_spending/1079/payments_over_500,01/08/2022,Housing Revenue Account Capital,PR PROPERTY MAINTENANCE,Housing Revenue Account Capital,8229.58 ,Deferred Charges/Grant Payments,2223P05_CR00630,33836
Sandwell Metropolitan Borough Council,http://www.sandwell.gov.uk/info/200202/performance_and_spending/1079/payments_over_500,01/08/2022,Housing Revenue Account Capital,PR PROPERTY MAINTENANCE,Housing Revenue Account Capital,8265.40 ,Deferred Charges/Grant Payments,2223P05_CR00631,33836
Sandwell Metropolitan Borough Council,http://www.sandwell.gov.uk/info/200202/performance_and_spending/1079/payments_over_500,02/08/2022,Housing Revenue Account Capital,PR PROPERTY MAINTENANCE,Housing Revenue Account Capital,8281.00 ,Deferred Charges/Grant Payments,2223P05_CR00632,33836
Sandwell Metropolitan Borough Council,http://www.sandwell.gov.uk/info/200202/performance_and_spending/1079/payments_over_500,01/08/2022,Housing Revenue Account Capital,PR PROPERTY MAINTENANCE,Housing Revenue Account Capital,8812.35 ,Deferred Charges/Grant Payments,2223P05_CR00633,33836
Sandwell Metropolitan Borough Council,http://www.sandwell.gov.uk/info/200202/performance_and_spending/1079/payments_over_500,01/08/2022,Housing Revenue Account Capital,PR PROPERTY MAINTENANCE,Housing Revenue Account Capital,9018.63 ,Deferred Charges/Grant Payments,2223P05_CR00634,33836
Sandwell Metropolitan Borough Council,http://www.sandwell.gov.uk/info/200202/performance_and_spending/1079/payments_over_500,01/08/2022,Housing Revenue Account Capital,PR PROPERTY MAINTENANCE,Housing Revenue Account Capital,12763.32 ,Deferred Charges/Grant Payments,2223P05_CR00635,33836
Sandwell Metropolitan Borough Council,http://www.sandwell.gov.uk/info/200202/performance_and_spending/1079/payments_over_500,02/08/2022,Housing Revenue Account Capital,PR PROPERTY MAINTENANCE,Housing Revenue Account Capital,22030.63 ,Deferred Charges/Grant Payments,2223P05_CR00636,33836
Sandwell Metropolitan Borough Council,http://www.sandwell.gov.uk/info/200202/performance_and_spending/1079/payments_over_500,01/08/2022,Housing Revenue Account Capital,PR PROPERTY MAINTENANCE,Housing Revenue Account Capital,30395.91 ,Deferred Charges/Grant Payments,2223P05_CR00637,33836
Sandwell Metropolitan Borough Council,http://www.sandwell.gov.uk/info/200202/performance_and_spending/1079/payments_over_500,01/08/2022,Housing Revenue Account Capital,PR PROPERTY MAINTENANCE,Housing Revenue Account Capital,37386.96 ,Deferred Charges/Grant Payments,2223P05_CR00638,33836
Sandwell Metropolitan Borough Council,http://www.sandwell.gov.uk/info/200202/performance_and_spending/1079/payments_over_500,01/08/2022,Housing Revenue Account Capital,RIDGE & PARTNERS LLP,Housing Revenue Account Capital,1000.00 ,"CIP - New Construction,Conversion, Enhancement & Reno",2223P05_CR00639,134994
Sandwell Metropolitan Borough Council,http://www.sandwell.gov.uk/info/200202/performance_and_spending/1079/payments_over_500,01/08/2022,Housing Revenue Account Capital,RIDGE & PARTNERS LLP,Housing Revenue Account Capital,2080.00 ,Consultancy,2223P05_CR00640,134994
Sandwell Metropolitan Borough Council,http://www.sandwell.gov.uk/info/200202/performance_and_spending/1079/payments_over_500,03/08/2022,Housing Revenue Account Capital,SEDDON CONSTRUCTION LIMITED,Housing Revenue Account Capital,154955.05 ,"CIP - New Construction,Conversion, Enhancement & Reno",2223P05_CR00641,132999
Sandwell Metropolitan Borough Council,http://www.sandwell.gov.uk/info/200202/performance_and_spending/1079/payments_over_500,10/08/2022,Housing Revenue Account Capital,SEDDON CONSTRUCTION LIMITED,Housing Revenue Account Capital,239928.73 ,"CIP - New Construction,Conversion, Enhancement & Reno",2223P05_CR00642,132999
Sandwell Metropolitan Borough Council,http://www.sandwell.gov.uk/info/200202/performance_and_spending/1079/payments_over_500,01/08/2022,Housing Revenue Account Capital,SEDDON CONSTRUCTION LIMITED,Housing Revenue Account Capital,321406.35 ,"CIP - New Construction,Conversion, Enhancement & Reno",2223P05_CR00643,132999
Sandwell Metropolitan Borough Council,http://www.sandwell.gov.uk/info/200202/performance_and_spending/1079/payments_over_500,01/08/2022,Housing Revenue Account Capital,SELECT WINDOWS (HOME IMPROVEMENTS) LIMITED,Housing Revenue Account Capital,649.90 ,Contract Payments,2223P05_CR00644,42616
Sandwell Metropolitan Borough Council,http://www.sandwell.gov.uk/info/200202/performance_and_spending/1079/payments_over_500,01/08/2022,Housing Revenue Account Capital,SELECT WINDOWS (HOME IMPROVEMENTS) LIMITED,Housing Revenue Account Capital,705.29 ,Contract Payments,2223P05_CR00645,42616
Sandwell Metropolitan Borough Council,http://www.sandwell.gov.uk/info/200202/performance_and_spending/1079/payments_over_500,01/08/2022,Housing Revenue Account Capital,SELECT WINDOWS (HOME IMPROVEMENTS) LIMITED,Housing Revenue Account Capital,712.13 ,Contract Payments,2223P05_CR00646,42616
Sandwell Metropolitan Borough Council,http://www.sandwell.gov.uk/info/200202/performance_and_spending/1079/payments_over_500,01/08/2022,Housing Revenue Account Capital,SELECT WINDOWS (HOME IMPROVEMENTS) LIMITED,Housing Revenue Account Capital,803.13 ,Contract Payments,2223P05_CR00647,42616
Sandwell Metropolitan Borough Council,http://www.sandwell.gov.uk/info/200202/performance_and_spending/1079/payments_over_500,01/08/2022,Housing Revenue Account Capital,STROMA SPECIALIST ACCESS LTD,Housing Revenue Account Capital,4698.00 ,"CIP - New Construction,Conversion, Enhancement & Reno",2223P05_CR00648,136243
Sandwell Metropolitan Borough Council,http://www.sandwell.gov.uk/info/200202/performance_and_spending/1079/payments_over_500,01/08/2022,Housing Revenue Account Capital,STROMA SPECIALIST ACCESS LTD,Housing Revenue Account Capital,6604.00 ,"CIP - New Construction,Conversion, Enhancement & Reno",2223P05_CR00649,136243
Sandwell Metropolitan Borough Council,http://www.sandwell.gov.uk/info/200202/performance_and_spending/1079/payments_over_500,01/08/2022,Housing Revenue Account Capital,SURE MAINTENANCE LIMITED,Housing Revenue Account Capital,253832.14 ,"CIP - New Construction,Conversion, Enhancement & Reno",2223P05_CR00650,93926
Sandwell Metropolitan Borough Council,http://www.sandwell.gov.uk/info/200202/performance_and_spending/1079/payments_over_500,02/08/2022,Housing Revenue Account Capital,"SUSIE DUKE BSc, CONSULTANT ECOLOGIST",Housing Revenue Account Capital,821.25 ,"CIP - New Construction,Conversion, Enhancement & Reno",2223P05_CR00651,100601
Sandwell Metropolitan Borough Council,http://www.sandwell.gov.uk/info/200202/performance_and_spending/1079/payments_over_500,01/08/2022,Housing Revenue Account Capital,SYCAMORE WINDOWS & CONSERVATORIES LIMITED,Housing Revenue Account Capital,95583.43 ,"CIP - New Construction,Conversion, Enhancement & Reno",2223P05_CR00652,145272
Sandwell Metropolitan Borough Council,http://www.sandwell.gov.uk/info/200202/performance_and_spending/1079/payments_over_500,05/08/2022,Housing Revenue Account Capital,VINCI CONSTRUCTION LTD,Housing Revenue Account Capital,71036.69 ,"CIP - New Construction,Conversion, Enhancement & Reno",2223P05_CR00653,36361
Sandwell Metropolitan Borough Council,http://www.sandwell.gov.uk/info/200202/performance_and_spending/1079/payments_over_500,17/08/2022,Housing Revenue Account Capital,VINCI CONSTRUCTION LTD,Housing Revenue Account Capital,385597.69 ,"CIP - New Construction,Conversion, Enhancement & Reno",2223P05_CR00654,36361
Sandwell Metropolitan Borough Council,http://www.sandwell.gov.uk/info/200202/performance_and_spending/1079/payments_over_500,02/08/2022,Housing Revenue Account Capital,VINCI CONSTRUCTION LTD,Housing Revenue Account Capital,1055.96 ,Deferred Charges/Grant Payments,2223P05_CR00655,36361
Sandwell Metropolitan Borough Council,http://www.sandwell.gov.uk/info/200202/performance_and_spending/1079/payments_over_500,02/08/2022,Housing Revenue Account Capital,VINCI CONSTRUCTION LTD,Housing Revenue Account Capital,4090.14 ,Deferred Charges/Grant Payments,2223P05_CR00656,36361
Sandwell Metropolitan Borough Council,http://www.sandwell.gov.uk/info/200202/performance_and_spending/1079/payments_over_500,02/08/2022,Housing Revenue Account Capital,VINCI CONSTRUCTION LTD,Housing Revenue Account Capital,4220.38 ,Deferred Charges/Grant Payments,2223P05_CR00657,36361
Sandwell Metropolitan Borough Council,http://www.sandwell.gov.uk/info/200202/performance_and_spending/1079/payments_over_500,02/08/2022,Housing Revenue Account Capital,VINCI CONSTRUCTION LTD,Housing Revenue Account Capital,4304.25 ,Deferred Charges/Grant Payments,2223P05_CR00658,36361
Sandwell Metropolitan Borough Council,http://www.sandwell.gov.uk/info/200202/performance_and_spending/1079/payments_over_500,02/08/2022,Housing Revenue Account Capital,VINCI CONSTRUCTION LTD,Housing Revenue Account Capital,4311.79 ,Deferred Charges/Grant Payments,2223P05_CR00659,36361
Sandwell Metropolitan Borough Council,http://www.sandwell.gov.uk/info/200202/performance_and_spending/1079/payments_over_500,18/08/2022,Housing Revenue Account Capital,VINCI CONSTRUCTION LTD,Housing Revenue Account Capital,4578.27 ,Deferred Charges/Grant Payments,2223P05_CR00660,36361
Sandwell Metropolitan Borough Council,http://www.sandwell.gov.uk/info/200202/performance_and_spending/1079/payments_over_500,02/08/2022,Housing Revenue Account Capital,VINCI CONSTRUCTION LTD,Housing Revenue Account Capital,4657.40 ,Deferred Charges/Grant Payments,2223P05_CR00661,36361
Sandwell Metropolitan Borough Council,http://www.sandwell.gov.uk/info/200202/performance_and_spending/1079/payments_over_500,18/08/2022,Housing Revenue Account Capital,VINCI CONSTRUCTION LTD,Housing Revenue Account Capital,4889.21 ,Deferred Charges/Grant Payments,2223P05_CR00662,36361
Sandwell Metropolitan Borough Council,http://www.sandwell.gov.uk/info/200202/performance_and_spending/1079/payments_over_500,02/08/2022,Housing Revenue Account Capital,VINCI CONSTRUCTION LTD,Housing Revenue Account Capital,4950.69 ,Deferred Charges/Grant Payments,2223P05_CR00663,36361
Sandwell Metropolitan Borough Council,http://www.sandwell.gov.uk/info/200202/performance_and_spending/1079/payments_over_500,02/08/2022,Housing Revenue Account Capital,VINCI CONSTRUCTION LTD,Housing Revenue Account Capital,5418.24 ,Deferred Charges/Grant Payments,2223P05_CR00664,36361
Sandwell Metropolitan Borough Council,http://www.sandwell.gov.uk/info/200202/performance_and_spending/1079/payments_over_500,01/08/2022,Housing Revenue Account Capital,VINCI CONSTRUCTION LTD,Housing Revenue Account Capital,25058.88 ,Deferred Charges/Grant Payments,2223P05_CR00665,36361
Sandwell Metropolitan Borough Council,http://www.sandwell.gov.uk/info/200202/performance_and_spending/1079/payments_over_500,01/08/2022,Housing Revenue Account Capital,VINCI CONSTRUCTION LTD,Housing Revenue Account Capital,31967.96 ,Deferred Charges/Grant Payments,2223P05_CR00666,36361
Sandwell Metropolitan Borough Council,http://www.sandwell.gov.uk/info/200202/performance_and_spending/1079/payments_over_500,01/08/2022,Housing Revenue Account Capital,VINCI CONSTRUCTION LTD,Housing Revenue Account Capital,33972.98 ,Deferred Charges/Grant Payments,2223P05_CR00667,36361
Sandwell Metropolitan Borough Council,http://www.sandwell.gov.uk/info/200202/performance_and_spending/1079/payments_over_500,01/08/2022,Housing Revenue Account Capital,AA PROJECTS LIMITED,Housing Revenue Account Capital,1750.00 ,Deferred Charges/Grant Payments,2223P05_CR00668,116074
Sandwell Metropolitan Borough Council,http://www.sandwell.gov.uk/info/200202/performance_and_spending/1079/payments_over_500,01/08/2022,Housing Revenue Account Capital,AA PROJECTS LIMITED,Housing Revenue Account Capital,1850.00 ,Deferred Charges/Grant Payments,2223P05_CR00669,116074
Sandwell Metropolitan Borough Council,http://www.sandwell.gov.uk/info/200202/performance_and_spending/1079/payments_over_500,18/08/2022,Housing Revenue Account Capital,PR PROPERTY MAINTENANCE,Housing Revenue Account Capital,16758.60 ,Deferred Charges/Grant Payments,2223P05_CR00670,33836
Sandwell Metropolitan Borough Council,http://www.sandwell.gov.uk/info/200202/performance_and_spending/1079/payments_over_500,01/08/2022,Housing Revenue Account Capital,SAFESPACES (CORNHOLME) LTD,Housing Revenue Account Capital,7419.44 ,Deferred Charges/Grant Payments,2223P05_CR00671,65847
Sandwell Metropolitan Borough Council,http://www.sandwell.gov.uk/info/200202/performance_and_spending/1079/payments_over_500,01/08/2022,Housing Revenue Account Capital,TDF DESIGN LIMITED,Housing Revenue Account Capital,35040.79 ,Deferred Charges/Grant Payments,2223P05_CR00672,10320
Sandwell Metropolitan Borough Council,http://www.sandwell.gov.uk/info/200202/performance_and_spending/1079/payments_over_500,01/08/2022,Individual School Budgets With Inclusion,ACORN CARE AND EDUCATION LIMITED,Individual School Budgets With Inclusion,540.98 ,Other Establishments,2223P05_CR00673,115235
Sandwell Metropolitan Borough Council,http://www.sandwell.gov.uk/info/200202/performance_and_spending/1079/payments_over_500,01/08/2022,Individual School Budgets With Inclusion,ACORN CARE AND EDUCATION LIMITED,Individual School Budgets With Inclusion,2000.00 ,Other Establishments,2223P05_CR00674,115235
Sandwell Metropolitan Borough Council,http://www.sandwell.gov.uk/info/200202/performance_and_spending/1079/payments_over_500,01/08/2022,Individual School Budgets With Inclusion,ACORN CARE AND EDUCATION LIMITED,Individual School Budgets With Inclusion,2359.59 ,Other Establishments,2223P05_CR00675,115235
Sandwell Metropolitan Borough Council,http://www.sandwell.gov.uk/info/200202/performance_and_spending/1079/payments_over_500,01/08/2022,Individual School Budgets With Inclusion,ACORN CARE AND EDUCATION LIMITED,Individual School Budgets With Inclusion,3411.26 ,Other Establishments,2223P05_CR00676,115235
Sandwell Metropolitan Borough Council,http://www.sandwell.gov.uk/info/200202/performance_and_spending/1079/payments_over_500,01/08/2022,Individual School Budgets With Inclusion,ACORN CARE AND EDUCATION LIMITED,Individual School Budgets With Inclusion,7250.96 ,Other Establishments,2223P05_CR00677,115235
Sandwell Metropolitan Borough Council,http://www.sandwell.gov.uk/info/200202/performance_and_spending/1079/payments_over_500,01/08/2022,Individual School Budgets With Inclusion,ACORN CARE AND EDUCATION LIMITED,Individual School Budgets With Inclusion,7321.10 ,Other Establishments,2223P05_CR00678,115235
Sandwell Metropolitan Borough Council,http://www.sandwell.gov.uk/info/200202/performance_and_spending/1079/payments_over_500,01/08/2022,Individual School Budgets With Inclusion,ACORN CARE AND EDUCATION LIMITED,Individual School Budgets With Inclusion,15429.56 ,Other Establishments,2223P05_CR00679,115235
Sandwell Metropolitan Borough Council,http://www.sandwell.gov.uk/info/200202/performance_and_spending/1079/payments_over_500,10/08/2022,Individual School Budgets With Inclusion,ACORN CARE AND EDUCATION LIMITED,Individual School Budgets With Inclusion,15554.34 ,Other Establishments,2223P05_CR00680,115235
Sandwell Metropolitan Borough Council,http://www.sandwell.gov.uk/info/200202/performance_and_spending/1079/payments_over_500,10/08/2022,Individual School Budgets With Inclusion,ACORN CARE AND EDUCATION LIMITED,Individual School Budgets With Inclusion,15554.34 ,Other Establishments,2223P05_CR00681,115235
Sandwell Metropolitan Borough Council,http://www.sandwell.gov.uk/info/200202/performance_and_spending/1079/payments_over_500,10/08/2022,Individual School Budgets With Inclusion,ACORN CARE AND EDUCATION LIMITED,Individual School Budgets With Inclusion,15554.34 ,Other Establishments,2223P05_CR00682,115235
Sandwell Metropolitan Borough Council,http://www.sandwell.gov.uk/info/200202/performance_and_spending/1079/payments_over_500,10/08/2022,Individual School Budgets With Inclusion,ACORN CARE AND EDUCATION LIMITED,Individual School Budgets With Inclusion,16006.66 ,Other Establishments,2223P05_CR00683,115235
Sandwell Metropolitan Borough Council,http://www.sandwell.gov.uk/info/200202/performance_and_spending/1079/payments_over_500,01/08/2022,Individual School Budgets With Inclusion,ACORN CARE AND EDUCATION LIMITED,Individual School Budgets With Inclusion,16451.08 ,Other Establishments,2223P05_CR00684,115235
Sandwell Metropolitan Borough Council,http://www.sandwell.gov.uk/info/200202/performance_and_spending/1079/payments_over_500,10/08/2022,Individual School Budgets With Inclusion,ACORN CARE AND EDUCATION LIMITED,Individual School Budgets With Inclusion,17302.00 ,Other Establishments,2223P05_CR00685,115235
Sandwell Metropolitan Borough Council,http://www.sandwell.gov.uk/info/200202/performance_and_spending/1079/payments_over_500,10/08/2022,Individual School Budgets With Inclusion,ACORN CARE AND EDUCATION LIMITED,Individual School Budgets With Inclusion,17803.34 ,Other Establishments,2223P05_CR00686,115235
Sandwell Metropolitan Borough Council,http://www.sandwell.gov.uk/info/200202/performance_and_spending/1079/payments_over_500,01/08/2022,Individual School Budgets With Inclusion,ACORN CARE AND EDUCATION LIMITED,Individual School Budgets With Inclusion,18150.89 ,Other Establishments,2223P05_CR00687,115235
Sandwell Metropolitan Borough Council,http://www.sandwell.gov.uk/info/200202/performance_and_spending/1079/payments_over_500,01/08/2022,Individual School Budgets With Inclusion,ACORN CARE AND EDUCATION LIMITED,Individual School Budgets With Inclusion,21875.12 ,Other Establishments,2223P05_CR00688,115235
Sandwell Metropolitan Borough Council,http://www.sandwell.gov.uk/info/200202/performance_and_spending/1079/payments_over_500,10/08/2022,Individual School Budgets With Inclusion,ACORN CARE AND EDUCATION LIMITED,Individual School Budgets With Inclusion,24913.34 ,Other Establishments,2223P05_CR00689,115235
Sandwell Metropolitan Borough Council,http://www.sandwell.gov.uk/info/200202/performance_and_spending/1079/payments_over_500,10/08/2022,Individual School Budgets With Inclusion,ACORN CARE AND EDUCATION LIMITED,Individual School Budgets With Inclusion,24913.34 ,Other Establishments,2223P05_CR00690,115235
Sandwell Metropolitan Borough Council,http://www.sandwell.gov.uk/info/200202/performance_and_spending/1079/payments_over_500,10/08/2022,Individual School Budgets With Inclusion,ACORN CARE AND EDUCATION LIMITED,Individual School Budgets With Inclusion,24913.34 ,Other Establishments,2223P05_CR00691,115235
Sandwell Metropolitan Borough Council,http://www.sandwell.gov.uk/info/200202/performance_and_spending/1079/payments_over_500,01/08/2022,Individual School Budgets With Inclusion,ACORN CARE AND EDUCATION LIMITED,Individual School Budgets With Inclusion,26367.12 ,Other Establishments,2223P05_CR00692,115235
Sandwell Metropolitan Borough Council,http://www.sandwell.gov.uk/info/200202/performance_and_spending/1079/payments_over_500,01/08/2022,Individual School Budgets With Inclusion,ACTIVE CARE GROUP,Individual School Budgets With Inclusion,1360.00 ,Externally Purchased Professional Services ,2223P05_CR00693,108302
Sandwell Metropolitan Borough Council,http://www.sandwell.gov.uk/info/200202/performance_and_spending/1079/payments_over_500,01/08/2022,Individual School Budgets With Inclusion,ACTIVE CARE GROUP,Individual School Budgets With Inclusion,3400.00 ,Externally Purchased Professional Services ,2223P05_CR00694,108302
Sandwell Metropolitan Borough Council,http://www.sandwell.gov.uk/info/200202/performance_and_spending/1079/payments_over_500,01/08/2022,Individual School Budgets With Inclusion,B CREATIVE,Individual School Budgets With Inclusion,1615.00 ,"Printing, Stationery & General Office Expenses",2223P05_CR00695,163453
Sandwell Metropolitan Borough Council,http://www.sandwell.gov.uk/info/200202/performance_and_spending/1079/payments_over_500,01/08/2022,Individual School Budgets With Inclusion,BOW STREET SCHOOL LTD,Individual School Budgets With Inclusion,101916.00 ,Other Establishments,2223P05_CR00696,115236
Sandwell Metropolitan Borough Council,http://www.sandwell.gov.uk/info/200202/performance_and_spending/1079/payments_over_500,01/08/2022,Individual School Budgets With Inclusion,CARE FIRST MANAGEMENT,Individual School Budgets With Inclusion,2267.08 ,Other Establishments,2223P05_CR00697,136901
Sandwell Metropolitan Borough Council,http://www.sandwell.gov.uk/info/200202/performance_and_spending/1079/payments_over_500,01/08/2022,Individual School Budgets With Inclusion,COMMUNITY ACTION PROJECT,Individual School Budgets With Inclusion,660.00 ,Externally Purchased Professional Services ,2223P05_CR00698,01702622
Sandwell Metropolitan Borough Council,http://www.sandwell.gov.uk/info/200202/performance_and_spending/1079/payments_over_500,01/08/2022,Individual School Budgets With Inclusion,COMMUNITY ACTION PROJECT,Individual School Budgets With Inclusion,660.00 ,Externally Purchased Professional Services ,2223P05_CR00699,01702622
Sandwell Metropolitan Borough Council,http://www.sandwell.gov.uk/info/200202/performance_and_spending/1079/payments_over_500,01/08/2022,Individual School Budgets With Inclusion,CONIFERS DAY NURSERY LTD,Individual School Budgets With Inclusion,630.00 ,Externally Purchased Professional Services ,2223P05_CR00700,131957
Sandwell Metropolitan Borough Council,http://www.sandwell.gov.uk/info/200202/performance_and_spending/1079/payments_over_500,01/08/2022,Individual School Budgets With Inclusion,EDUCATION SALES LIMITED,Individual School Budgets With Inclusion,1675.00 ,ICT ,2223P05_CR00701,38664
Sandwell Metropolitan Borough Council,http://www.sandwell.gov.uk/info/200202/performance_and_spending/1079/payments_over_500,10/08/2022,Individual School Budgets With Inclusion,EG (TRAINING) LTD,Individual School Budgets With Inclusion,1161.06 ,Other Local Authorities,2223P05_CR00702,146780
Sandwell Metropolitan Borough Council,http://www.sandwell.gov.uk/info/200202/performance_and_spending/1079/payments_over_500,01/08/2022,Individual School Budgets With Inclusion,ENVIRONMENTS FOR LEARNING SANDWELL PFI ONE LIMITED,Individual School Budgets With Inclusion,1210.84 ,PFI & PPP Schemes,2223P05_CR00703,98332
Sandwell Metropolitan Borough Council,http://www.sandwell.gov.uk/info/200202/performance_and_spending/1079/payments_over_500,01/08/2022,Individual School Budgets With Inclusion,ENVIRONMENTS FOR LEARNING SANDWELL PFI ONE LIMITED,Individual School Budgets With Inclusion,3537.09 ,PFI & PPP Schemes,2223P05_CR00704,98332
Sandwell Metropolitan Borough Council,http://www.sandwell.gov.uk/info/200202/performance_and_spending/1079/payments_over_500,01/08/2022,Individual School Budgets With Inclusion,ENVIRONMENTS FOR LEARNING SANDWELL PFI ONE LIMITED,Individual School Budgets With Inclusion,627212.22 ,PFI & PPP Schemes,2223P05_CR00705,98332
Sandwell Metropolitan Borough Council,http://www.sandwell.gov.uk/info/200202/performance_and_spending/1079/payments_over_500,01/08/2022,Individual School Budgets With Inclusion,FAIRYTALES NURSERY LTD,Individual School Budgets With Inclusion,2158.80 ,Externally Purchased Professional Services ,2223P05_CR00706,106247
Sandwell Metropolitan Borough Council,http://www.sandwell.gov.uk/info/200202/performance_and_spending/1079/payments_over_500,01/08/2022,Individual School Budgets With Inclusion,FIRST STEPS OLDBURY,Individual School Budgets With Inclusion,688.75 ,Externally Purchased Professional Services ,2223P05_CR00707,118886
Sandwell Metropolitan Borough Council,http://www.sandwell.gov.uk/info/200202/performance_and_spending/1079/payments_over_500,01/08/2022,Individual School Budgets With Inclusion,FIRST STEPS OLDBURY,Individual School Budgets With Inclusion,1710.00 ,Externally Purchased Professional Services ,2223P05_CR00708,118886
Sandwell Metropolitan Borough Council,http://www.sandwell.gov.uk/info/200202/performance_and_spending/1079/payments_over_500,01/08/2022,Individual School Budgets With Inclusion,FIVE STAR TAXIS (DUDLEY) LTD,Individual School Budgets With Inclusion,19176.13 ,Public Transport,2223P05_CR00709,133542
Sandwell Metropolitan Borough Council,http://www.sandwell.gov.uk/info/200202/performance_and_spending/1079/payments_over_500,01/08/2022,Individual School Budgets With Inclusion,FRONTING THE CHALLENGE PROJECTS LTD T/A THRIVE APPROACH,Individual School Budgets With Inclusion,12358.00 ,Externally Purchased Professional Services ,2223P05_CR00710,163753
Sandwell Metropolitan Borough Council,http://www.sandwell.gov.uk/info/200202/performance_and_spending/1079/payments_over_500,01/08/2022,Individual School Budgets With Inclusion,GL EDUCATION GROUP LIMITED,Individual School Budgets With Inclusion,1381.16 ,Materials & Consumables,2223P05_CR00711,01447883
Sandwell Metropolitan Borough Council,http://www.sandwell.gov.uk/info/200202/performance_and_spending/1079/payments_over_500,01/08/2022,Individual School Budgets With Inclusion,HALESOWEN C OF E PRIMARY SCHOOL,Individual School Budgets With Inclusion,1516.54 ,Other Local Authorities,2223P05_CR00712,137954
Sandwell Metropolitan Borough Council,http://www.sandwell.gov.uk/info/200202/performance_and_spending/1079/payments_over_500,01/08/2022,Individual School Budgets With Inclusion,HORIZON CARE AND EDUCATION GROUP LIMITED,Individual School Budgets With Inclusion,30384.60 ,Other Establishments,2223P05_CR00713,114884
Sandwell Metropolitan Borough Council,http://www.sandwell.gov.uk/info/200202/performance_and_spending/1079/payments_over_500,01/08/2022,Individual School Budgets With Inclusion,HORIZON CARE AND EDUCATION GROUP LIMITED,Individual School Budgets With Inclusion,248378.40 ,Other Establishments,2223P05_CR00714,114884
Sandwell Metropolitan Borough Council,http://www.sandwell.gov.uk/info/200202/performance_and_spending/1079/payments_over_500,01/08/2022,Individual School Budgets With Inclusion,IMPACT EDUCATION AND TRAINING LIMITED,Individual School Budgets With Inclusion,1756.40 ,Externally Purchased Professional Services ,2223P05_CR00715,97667
Sandwell Metropolitan Borough Council,http://www.sandwell.gov.uk/info/200202/performance_and_spending/1079/payments_over_500,01/08/2022,Individual School Budgets With Inclusion,IMPACT EDUCATION AND TRAINING LIMITED,Individual School Budgets With Inclusion,3298.50 ,Externally Purchased Professional Services ,2223P05_CR00716,97667
Sandwell Metropolitan Borough Council,http://www.sandwell.gov.uk/info/200202/performance_and_spending/1079/payments_over_500,10/08/2022,Individual School Budgets With Inclusion,INVICTUS COMPLEX CARE LTD,Individual School Budgets With Inclusion,2618.00 ,Other Local Authorities,2223P05_CR00717,161818
Sandwell Metropolitan Borough Council,http://www.sandwell.gov.uk/info/200202/performance_and_spending/1079/payments_over_500,04/08/2022,Individual School Budgets With Inclusion,KANGAROO POUCH LIMITED,Individual School Budgets With Inclusion,525.00 ,Externally Purchased Professional Services ,2223P05_CR00718,106981
Sandwell Metropolitan Borough Council,http://www.sandwell.gov.uk/info/200202/performance_and_spending/1079/payments_over_500,01/08/2022,Individual School Budgets With Inclusion,KEDLESTON (OS EDUCATION) LTD,Individual School Budgets With Inclusion,18333.33 ,Other Establishments,2223P05_CR00719,63209
Sandwell Metropolitan Borough Council,http://www.sandwell.gov.uk/info/200202/performance_and_spending/1079/payments_over_500,01/08/2022,Individual School Budgets With Inclusion,KEYS PCE LTD,Individual School Budgets With Inclusion,3184.00 ,Other Establishments,2223P05_CR00720,140986
Sandwell Metropolitan Borough Council,http://www.sandwell.gov.uk/info/200202/performance_and_spending/1079/payments_over_500,01/08/2022,Individual School Budgets With Inclusion,LAVENDER FARM DAY NURSERY,Individual School Budgets With Inclusion,1248.19 ,Externally Purchased Professional Services ,2223P05_CR00721,65596
Sandwell Metropolitan Borough Council,http://www.sandwell.gov.uk/info/200202/performance_and_spending/1079/payments_over_500,01/08/2022,Individual School Budgets With Inclusion,LAVENDER FARM DAY NURSERY,Individual School Budgets With Inclusion,2700.00 ,Externally Purchased Professional Services ,2223P05_CR00722,65596
Sandwell Metropolitan Borough Council,http://www.sandwell.gov.uk/info/200202/performance_and_spending/1079/payments_over_500,01/08/2022,Individual School Budgets With Inclusion,LAVENDER FARM DAY NURSERY,Individual School Budgets With Inclusion,2700.00 ,Externally Purchased Professional Services ,2223P05_CR00723,65596
Sandwell Metropolitan Borough Council,http://www.sandwell.gov.uk/info/200202/performance_and_spending/1079/payments_over_500,01/08/2022,Individual School Budgets With Inclusion,LAVENDER FARM DAY NURSERY,Individual School Budgets With Inclusion,4048.20 ,Externally Purchased Professional Services ,2223P05_CR00724,65596
Sandwell Metropolitan Borough Council,http://www.sandwell.gov.uk/info/200202/performance_and_spending/1079/payments_over_500,01/08/2022,Individual School Budgets With Inclusion,LAVENDER FARM DAY NURSERY,Individual School Budgets With Inclusion,4048.20 ,Externally Purchased Professional Services ,2223P05_CR00725,65596
Sandwell Metropolitan Borough Council,http://www.sandwell.gov.uk/info/200202/performance_and_spending/1079/payments_over_500,01/08/2022,Individual School Budgets With Inclusion,LEASOWES HIGH SCHOOL,Individual School Budgets With Inclusion,4350.00 ,Externally Purchased Professional Services ,2223P05_CR00726,119648
Sandwell Metropolitan Borough Council,http://www.sandwell.gov.uk/info/200202/performance_and_spending/1079/payments_over_500,01/08/2022,Individual School Budgets With Inclusion,LILLIPUT LODGE CHILDRENS DAY NURSERY,Individual School Budgets With Inclusion,1611.00 ,Externally Purchased Professional Services ,2223P05_CR00727,2980
Sandwell Metropolitan Borough Council,http://www.sandwell.gov.uk/info/200202/performance_and_spending/1079/payments_over_500,01/08/2022,Individual School Budgets With Inclusion,LITTLE EXPLORERS (WEST MIDLANDS) LTD,Individual School Budgets With Inclusion,912.00 ,Externally Purchased Professional Services ,2223P05_CR00728,114804
Sandwell Metropolitan Borough Council,http://www.sandwell.gov.uk/info/200202/performance_and_spending/1079/payments_over_500,01/08/2022,Individual School Budgets With Inclusion,LYNG PRIMARY SCHOOL    ,Individual School Budgets With Inclusion,750.00 ,Externally Purchased Professional Services ,2223P05_CR00729,21030682
Sandwell Metropolitan Borough Council,http://www.sandwell.gov.uk/info/200202/performance_and_spending/1079/payments_over_500,01/08/2022,Individual School Budgets With Inclusion,MIDLANDS ARTS CENTRE TRADING LIMITED,Individual School Budgets With Inclusion,3820.00 ,Externally Purchased Professional Services ,2223P05_CR00730,1353
Sandwell Metropolitan Borough Council,http://www.sandwell.gov.uk/info/200202/performance_and_spending/1079/payments_over_500,01/08/2022,Individual School Budgets With Inclusion,MINI MONKEYS LTD,Individual School Budgets With Inclusion,1296.75 ,Externally Purchased Professional Services ,2223P05_CR00731,114818
Sandwell Metropolitan Borough Council,http://www.sandwell.gov.uk/info/200202/performance_and_spending/1079/payments_over_500,01/08/2022,Individual School Budgets With Inclusion,MINI MONKEYS LTD,Individual School Budgets With Inclusion,3231.00 ,Externally Purchased Professional Services ,2223P05_CR00732,114818
Sandwell Metropolitan Borough Council,http://www.sandwell.gov.uk/info/200202/performance_and_spending/1079/payments_over_500,01/08/2022,Individual School Budgets With Inclusion,N & K VARMA LIMITED T/A (KIDDIES PLAYHOUSE TIPTON),Individual School Budgets With Inclusion,665.00 ,Externally Purchased Professional Services ,2223P05_CR00733,26124
Sandwell Metropolitan Borough Council,http://www.sandwell.gov.uk/info/200202/performance_and_spending/1079/payments_over_500,10/08/2022,Individual School Budgets With Inclusion,NEWBURY SCHOOL LTD,Individual School Budgets With Inclusion,16300.67 ,Other Establishments,2223P05_CR00734,153981
Sandwell Metropolitan Borough Council,http://www.sandwell.gov.uk/info/200202/performance_and_spending/1079/payments_over_500,10/08/2022,Individual School Budgets With Inclusion,NEWBURY SCHOOL LTD,Individual School Budgets With Inclusion,16300.67 ,Other Establishments,2223P05_CR00735,153981
Sandwell Metropolitan Borough Council,http://www.sandwell.gov.uk/info/200202/performance_and_spending/1079/payments_over_500,10/08/2022,Individual School Budgets With Inclusion,NISAI VIRTUAL ACADEMY LIMITED,Individual School Budgets With Inclusion,2083.34 ,Externally Purchased Professional Services ,2223P05_CR00736,131183
Sandwell Metropolitan Borough Council,http://www.sandwell.gov.uk/info/200202/performance_and_spending/1079/payments_over_500,01/08/2022,Individual School Budgets With Inclusion,PERRYFIELDS PRE SCHOOL,Individual School Budgets With Inclusion,833.50 ,Externally Purchased Professional Services ,2223P05_CR00737,18879
Sandwell Metropolitan Borough Council,http://www.sandwell.gov.uk/info/200202/performance_and_spending/1079/payments_over_500,01/08/2022,Individual School Budgets With Inclusion,PHOENIX COLLEGIATE,Individual School Budgets With Inclusion,1140.00 ,Externally Purchased Professional Services ,2223P05_CR00738,122448
Sandwell Metropolitan Borough Council,http://www.sandwell.gov.uk/info/200202/performance_and_spending/1079/payments_over_500,01/08/2022,Individual School Budgets With Inclusion,PRIME RESOLUTION LTD,Individual School Budgets With Inclusion,770.00 ,Externally Purchased Professional Services ,2223P05_CR00739,134794
Sandwell Metropolitan Borough Council,http://www.sandwell.gov.uk/info/200202/performance_and_spending/1079/payments_over_500,01/08/2022,Individual School Budgets With Inclusion,PROGRESS SCHOOLS LTD,Individual School Budgets With Inclusion,1348.09 ,Other Establishments,2223P05_CR00740,151111
Sandwell Metropolitan Borough Council,http://www.sandwell.gov.uk/info/200202/performance_and_spending/1079/payments_over_500,01/08/2022,Individual School Budgets With Inclusion,QUEEN ALEXANDRA COLLEGE,Individual School Budgets With Inclusion,2879.00 ,Externally Purchased Professional Services ,2223P05_CR00741,114126
Sandwell Metropolitan Borough Council,http://www.sandwell.gov.uk/info/200202/performance_and_spending/1079/payments_over_500,01/08/2022,Individual School Budgets With Inclusion,RAK DAY CARE LTD T/A HAPPY VALLEY PRE SCHOOL LTD,Individual School Budgets With Inclusion,2160.00 ,Externally Purchased Professional Services ,2223P05_CR00742,01572212
Sandwell Metropolitan Borough Council,http://www.sandwell.gov.uk/info/200202/performance_and_spending/1079/payments_over_500,14/08/2022,Individual School Budgets With Inclusion,RESOLUTION DYNAMICS,Individual School Budgets With Inclusion,960.00 ,Externally Purchased Professional Services ,2223P05_CR00743,135871
Sandwell Metropolitan Borough Council,http://www.sandwell.gov.uk/info/200202/performance_and_spending/1079/payments_over_500,14/08/2022,Individual School Budgets With Inclusion,RESOLUTION DYNAMICS,Individual School Budgets With Inclusion,960.00 ,Externally Purchased Professional Services ,2223P05_CR00744,135871
Sandwell Metropolitan Borough Council,http://www.sandwell.gov.uk/info/200202/performance_and_spending/1079/payments_over_500,11/08/2022,Individual School Budgets With Inclusion,RESOLUTION DYNAMICS,Individual School Budgets With Inclusion,960.00 ,Externally Purchased Professional Services ,2223P05_CR00745,135871
Sandwell Metropolitan Borough Council,http://www.sandwell.gov.uk/info/200202/performance_and_spending/1079/payments_over_500,01/08/2022,Individual School Budgets With Inclusion,ROWLEY VILLAGE DAY NURSERY,Individual School Budgets With Inclusion,1800.00 ,Externally Purchased Professional Services ,2223P05_CR00746,24228
Sandwell Metropolitan Borough Council,http://www.sandwell.gov.uk/info/200202/performance_and_spending/1079/payments_over_500,01/08/2022,Individual School Budgets With Inclusion,RUGELEY SCHOOL PRIORY,Individual School Budgets With Inclusion,33859.14 ,Other Establishments,2223P05_CR00747,148250
Sandwell Metropolitan Borough Council,http://www.sandwell.gov.uk/info/200202/performance_and_spending/1079/payments_over_500,01/08/2022,Individual School Budgets With Inclusion,RUGELEY SCHOOL PRIORY,Individual School Budgets With Inclusion,33859.14 ,Other Establishments,2223P05_CR00748,148250
Sandwell Metropolitan Borough Council,http://www.sandwell.gov.uk/info/200202/performance_and_spending/1079/payments_over_500,01/08/2022,Individual School Budgets With Inclusion,RUGELEY SCHOOL PRIORY,Individual School Budgets With Inclusion,36518.27 ,Other Establishments,2223P05_CR00749,148250
Sandwell Metropolitan Borough Council,http://www.sandwell.gov.uk/info/200202/performance_and_spending/1079/payments_over_500,01/08/2022,Individual School Budgets With Inclusion,SANDWELL FUTURES LTD,Individual School Budgets With Inclusion,506.19 ,Private Contractors,2223P05_CR00750,88151
Sandwell Metropolitan Borough Council,http://www.sandwell.gov.uk/info/200202/performance_and_spending/1079/payments_over_500,01/08/2022,Individual School Budgets With Inclusion,SANDWELL FUTURES LTD,Individual School Budgets With Inclusion,521.60 ,Private Contractors,2223P05_CR00751,88151
Sandwell Metropolitan Borough Council,http://www.sandwell.gov.uk/info/200202/performance_and_spending/1079/payments_over_500,01/08/2022,Individual School Budgets With Inclusion,SANDWELL FUTURES LTD,Individual School Budgets With Inclusion,1574.03 ,Private Contractors,2223P05_CR00752,88151
